Workbook

Sheet Contributions calculator
C2: Teachers Additional Pension Benefit Cost Calculator
C3: Member Details
C4: Date of Birth: | I4: =IF(I9="Election must start before normal pension age","Error","") -> 
C6: Normal pension age*
C7: Prospective Normal Pension Age | D7: =VLOOKUP(D4,'State pension age'!B4:E50,3,TRUE) -> 65 | E7: =IF(OR(D7="",D7=0),"","Years") -> Years | F7: =VLOOKUP(D4,'State pension age'!B4:E50,4,TRUE) -> 0 | G7: Months
C9: Date of AP election: | I9: =IF(OR(D12=""),"",IF(D11>=Codes!E8,"Election must start before normal pension age","")) -> 
C11: Age at start of agreement: | D11: =IF(OR(D4="",D9=""),"",ROUNDDOWN((D9-D4+1)/365.25,0)) ->  | I11: =IF(D11<16,"Error","") -> 
D12: =IF(OR(E7="",D11=""),"",Codes!E8-D11) ->  | E12: =IF(D7="","",IF(D11="","","Years")) -> 
C14: Additional pension contract details
C15: Maximum additional pension: | D15: =Codes!P14 -> 
C17: How much additional pension do you wish to purchase? | I17: =IF(D17>D15, "Error","") -> 
C19: Please select your payment method: | I19: =IF(D19=Codes!C2,"",IF(D12=1,"Payment can only be made by lump sum","")) -> 
C21: Regular payments over how many years?
C23: Would you like to buy dependants benefits? | I23: =IF(D12<2,"",IF(I21="Error","Payments can be made over a maximum of "&D12-1&" years","")) -> 
C26: Results
B27: =IF($D$19=Codes!$C$2,"A lump sum payment of:-",IF($D$19=Codes!$C$3,"Monthly payment amount:-","")) ->  | D27: =IF(ISERROR(Codes!J20),"",IF(OR($D$17="",Codes!J20="",$I$17="Error",$I$11="Error"),"",($D$17/250)*Codes!J20)) -> 
B28: =IF(D19="Regular contributions","Annual payment amount:-","") ->  | D28: =IF(OR(D19="",D19="Lump sum",D17="",D21="",D23="",ISERROR(Codes!J20)),"",IF(D19="Regular contributions",D27*12,"")) -> 
B29: =IF(D19="Regular contributions","Total amount payable over selected period:-","") ->  | D29: =IF(OR(D19="",D19="Lump sum",D21="",D23="",D17="",ISERROR(Codes!J20)),"",IF(D19="Regular contributions",D28*D21,"")) -> 
B31: Notes: *For protected scheme members and scheme members still covered by tapered protection the payable age for your election will be the same as your scheme pension age (60 or 65). All other members should use their state pension age to calculate the cost of additional pension. Additional pension must be bought in multiples of £250. Therefore the minimum amount available to purchase is £250. The maximum amount for each scheme is: • Scottish Teachers Superannuation Scheme (Scotland) £6800 • Teachers Pension Scheme (Scotland) 2015 £7000
K33: Updated December 2023

Sheet Printable estimate (hidden)
B3: Illustration of additional pension benefit cost
B5: Your details
B6: Date of Birth: | D6: ='Contributions calculator'!D4 -> 00:00:00
B8: Normal pension age: | D8: =IF(Codes!F8>0,Codes!E8&" years",Codes!E8) -> 65 years | E8: =IF(Codes!F8>0,Codes!F8&" months","") -> months
B10: Date of election: | D10: ='Contributions calculator'!D9 -> 00:00:00
B12: Age at start of agreement: | D12: ='Contributions calculator'!D11 -> 
B15: Your input data
B17: Amount elected to purchase: | D17: ='Contributions calculator'!D17 -> 0
B19: Payment method: | D19: =IF('Contributions calculator'!D19="Regular contributions","Regular contributions over "&'Contributions calculator'!D21&" years","Lump sum") -> Lump sum
B21: Covered for family benefits? | D21: =IF('Contributions calculator'!D23=Codes!D2,"No",IF('Contributions calculator'!D23=Codes!D3,"Yes")) -> FALSE
B23: Your estimated cost
B24: ='Contributions calculator'!B27 ->  | D24: ='Contributions calculator'!D27 -> 
B25: ='Contributions calculator'!B28 ->  | D25: ='Contributions calculator'!D28 -> 
B26: ='Contributions calculator'!B29 ->  | D26: ='Contributions calculator'!D29 -> 
B28: This calculation is intended for illustrative purposes only. This is not a statement of you legal entitlement. To obtain actual costs please contact SPPA. While every care has been taken in the preperation of this calculator the Scottish Public Pensions Agency will accept no responsibility for the accuracy of the ionformation it provides. Please refer to pages on the SPPA website for points of contact and other benefits available.

Sheet Guidance notes (hidden)
B2: Additional Pension guidance notes
B3: Disclaimer: This calculation is intended for illustrative purposes only. This is not a statement of you legal entitlement. While every care has been taken in the preparation of this calculator the Scottish Public Pension Agency will accept no responsibility for the accuracy of the information it provides. Please refer to pages on the SPPA website for points of contact and other benefits available.
B4: Using the calculator You must be a contributing member of the Scottish Teachers Pension Scheme 2015 if you wish to purchase additional pension. Additional pension benefits will be paid with your scheme retirement benefits and will be index linked. The cost of purchasing depends on your age and the amount of additional pension you wish to receive. There are two ways you can pay for AP. You can pay by having regular deductions taken from your monthly salary or by paying a one off lump sum. Additional pension must be bought in multiples of £250. Therefore the minimum amount available to purchase is £250. The maximum for each scheme is: • Scottish Teachers Superannuation Scheme £6800 • Scottish Teachers Pension Scheme 2015 £7000
B5: SPPA 7 Tweedside Park Galashiels TD1 3TE Telephone: 01896 893000
F39: G

Sheet Codes (hidden)
B1: DOB between | C1: Payment | D1: Form of AP | E1: NPA Options | F1: Lump sum table | I1: AP Table results
B2: =TODAY()-365.25*85 -> 1939-06-04T18:00:00 | C2: Lump Sum | D2: Member only | E2: 60 | F2: =IF('Contributions calculator'!J6=60,"APS60",IF('Contributions calculator'!J6=65,"APS65",IF('Contributions calculator'!J6="SPA","APS"&'Contributions calculator'!D7,""))) ->  | H2: APS60 | I2: Lump sum NPA 60 | J2: =IF('Contributions calculator'!D23=Codes!D2,VLOOKUP('Contributions calculator'!D11,'Lump Sum'!B9:D60,2,FALSE),IF('Contributions calculator'!D23=Codes!D3,VLOOKUP('Contributions calculator'!D11,'Lump Sum'!B9:D60,3,FALSE),"")) -> 
B3: =TODAY()-365.25*18 -> 2006-06-04T12:00:00 | C3: =IF(OR('Contributions calculator'!D12=0,'Contributions calculator'!D12=1),"","Regular contributions") -> Regular contributions | D3: Member and dependant | E3: 65 | H3: APS65 | I3: Lump sum NPA 65 | J3: =IF('Contributions calculator'!D23=Codes!D2,VLOOKUP('Contributions calculator'!D11,'Lump Sum'!F9:H60,2,FALSE),IF('Contributions calculator'!D23=Codes!D3,VLOOKUP('Contributions calculator'!D11,'Lump Sum'!F9:H60,3,FALSE),"")) -> 
E4: State Pension Age | H4: APS66 | I4: Lump sum NPA 66 | J4: =IF('Contributions calculator'!D23=Codes!D2,VLOOKUP('Contributions calculator'!D11,'Lump Sum'!J9:L60,2,FALSE),IF('Contributions calculator'!D23=Codes!D3,VLOOKUP('Contributions calculator'!D11,'Lump Sum'!J9:L60,3,FALSE),"")) -> 
H5: APS67 | I5: Lump sum NPA 67 | J5: =IF('Contributions calculator'!D23=Codes!D2,VLOOKUP('Contributions calculator'!D11,'Lump Sum'!N9:P60,2,FALSE),IF('Contributions calculator'!D23=Codes!D3,VLOOKUP('Contributions calculator'!D11,'Lump Sum'!N9:P60,3,FALSE),"")) -> 
B6: Yes/No | C6: Years (N) | E6: Chosen NPA | H6: APS68 | I6: Lump sum NPA 68 | J6: =IF('Contributions calculator'!D23=Codes!D2,VLOOKUP('Contributions calculator'!D11,'Lump Sum'!R9:T60,2,FALSE),IF('Contributions calculator'!D23=Codes!D3,VLOOKUP('Contributions calculator'!D11,'Lump Sum'!R9:T60,3,FALSE),"")) -> 
B7: Yes | C7: 0 | E7: Years | F7: Months | H7: P60 | I7: Regular conts for personal AP of £250 with PNPA 60 | J7: =INDEX('NRA60'!$W$6:$AQ$58,MATCH('Contributions calculator'!$D$11,'NRA60'!$W$6:$W$58,0),MATCH('Contributions calculator'!$D$21,'NRA60'!$W$6:$AQ$6,0)) -> 
B8: No | C8: =IF(OR('Contributions calculator'!D7=66,'Contributions calculator'!D7=67,'Contributions calculator'!D7=68),1,"") ->  | E8: =IF('Contributions calculator'!J6=60,60,IF('Contributions calculator'!J6=65,65,IF(OR('Contributions calculator'!J6="SPA",'Contributions calculator'!J6=""),'Contributions calculator'!D7,""))) -> 65 | F8: =IF('Contributions calculator'!J6=60,0,IF('Contributions calculator'!J6=65,0,IF('Contributions calculator'!J6="SPA",'Contributions calculator'!F7,""))) ->  | H8: P65 | I8: Regular conts for personal AP of £250 with PNPA 65 | J8: =INDEX('NRA65'!$W$6:$AQ$58,MATCH('Contributions calculator'!$D$11,'NRA65'!$W$6:$W$58,0),MATCH('Contributions calculator'!$D$21,'NRA65'!$W$6:$AQ$6,0)) -> 
C9: =IF(OR('Contributions calculator'!D7=67,'Contributions calculator'!D7=68),2,"") ->  | H9: P66 | I9: Regular conts for personal AP of £250 with PNPA 66 | J9: =INDEX('NRA66'!$W$6:$AQ$58,MATCH('Contributions calculator'!$D$11,'NRA66'!$W$6:$W$58,0),MATCH('Contributions calculator'!$D$21,'NRA66'!$W$6:$AQ$6,0)) -> 
C10: =IF(OR('Contributions calculator'!D7=68),3,"") ->  | H10: P67 | I10: Regular conts for personal AP of £250 with PNPA 67 | J10: =INDEX('NRA67'!$W$6:$AQ$58,MATCH('Contributions calculator'!$D$11,'NRA67'!$W$6:$W$58,0),MATCH('Contributions calculator'!$D$21,'NRA67'!$W$6:$AQ$6,0)) -> 
H11: P68 | I11: Regular conts for personal AP of £250 with PNPA 68 | J11: =INDEX('NRA68'!$W$6:$AQ$58,MATCH('Contributions calculator'!$D$11,'NRA68'!$W$6:$W$58,0),MATCH('Contributions calculator'!$D$21,'NRA68'!$W$6:$AQ$6,0)) ->  | M11: AP Limits
B12: Existing AP | C12: AP Available | D12: Contribution period | H12: D60 | I12: Regular conts for personal AP of £250 with PNPA 60 + dependants AP | J12: =INDEX('NRA60'!$A$6:$U$58,MATCH('Contributions calculator'!$D$11,'NRA60'!$A$6:$A$58,0),MATCH('Contributions calculator'!$D$21,'NRA60'!$A$6:$U$6,0)) ->  | M12: • Scottish Teacgers Superannuation Scheme (Scotland) | P12: 6800
B13: 0 | C13: =IF('Contributions calculator'!$D$15="","",250) ->  | D13: 1 | H13: D65 | I13: Regular conts for personal AP of £250 with PNPA 65 + dependants AP | J13: =INDEX('NRA65'!$A$6:$U$58,MATCH('Contributions calculator'!$D$11,'NRA65'!$A$6:$A$58,0),MATCH('Contributions calculator'!$D$21,'NRA65'!$A$6:$U$6,0)) ->  | M13: • Teachers Pension Scheme (Scotland) 2013 | P13: 7000
B14: =IF(B13<(Codes!$P$14),Codes!B13+250,"") -> 250 | C14: =IF('Contributions calculator'!$D$15="","",IF(C13<('Contributions calculator'!$D$15-249),Codes!C13+250,"")) ->  | D14: =IF(D13="","",IF(Codes!D13+1<'Contributions calculator'!$D$12,Codes!D13+1,"")) -> 2 | H14: D66 | I14: Regular conts for personal AP of £250 with PNPA 66 + dependants AP | J14: =INDEX('NRA66'!$A$6:$U$58,MATCH('Contributions calculator'!$D$11,'NRA66'!$A$6:$A$58,0),MATCH('Contributions calculator'!$D$21,'NRA66'!$A$6:$U$6,0)) ->  | O14: Applicable Limit | P14: =IF(OR('Contributions calculator'!J6=60,'Contributions calculator'!J6=65),Codes!P12,IF('Contributions calculator'!J6="SPA",Codes!P13,"")) -> 
B15: =IF(B14<(Codes!$P$14),Codes!B14+250,"") -> 500 | C15: =IF('Contributions calculator'!$D$15="","",IF(C14<('Contributions calculator'!$D$15-249),Codes!C14+250,"")) ->  | D15: =IF(D14="","",IF(Codes!D14+1<'Contributions calculator'!$D$12,Codes!D14+1,"")) -> 3 | H15: D67 | I15: Regular conts for personal AP of £250 with PNPA 67 + dependants AP | J15: =INDEX('NRA67'!$A$6:$U$58,MATCH('Contributions calculator'!$D$11,'NRA67'!$A$6:$A$58,0),MATCH('Contributions calculator'!$D$21,'NRA67'!$A$6:$U$6,0)) -> 
B16: =IF(B15<(Codes!$P$14),Codes!B15+250,"") -> 750 | C16: =IF('Contributions calculator'!$D$15="","",IF(C15<('Contributions calculator'!$D$15-249),Codes!C15+250,"")) ->  | D16: =IF(D15="","",IF(Codes!D15+1<'Contributions calculator'!$D$12,Codes!D15+1,"")) -> 4 | H16: D68 | I16: Regular conts for personal AP of £250 with PNPA 68 + dependants AP | J16: =INDEX('NRA68'!$A$6:$U$58,MATCH('Contributions calculator'!$D$11,'NRA68'!$A$6:$A$58,0),MATCH('Contributions calculator'!$D$21,'NRA68'!$A$6:$U$6,0)) -> 
B17: =IF(B16<(Codes!$P$14),Codes!B16+250,"") -> 1000 | C17: =IF('Contributions calculator'!$D$15="","",IF(C16<('Contributions calculator'!$D$15-249),Codes!C16+250,"")) ->  | D17: =IF(D16="","",IF(Codes!D16+1<'Contributions calculator'!$D$12,Codes!D16+1,"")) -> 5
B18: =IF(B17<(Codes!$P$14),Codes!B17+250,"") -> 1250 | C18: =IF('Contributions calculator'!$D$15="","",IF(C17<('Contributions calculator'!$D$15-249),Codes!C17+250,"")) ->  | D18: =IF(D17="","",IF(Codes!D17+1<'Contributions calculator'!$D$12,Codes!D17+1,"")) -> 6 | I18: =IF(AND('Contributions calculator'!D19=C3,'Contributions calculator'!F7<>0),"Relevent tables are "&H27&" & "&H28,"Relevent table is "&H27&"") -> Relevent table is 65
B19: =IF(B18<(Codes!$P$14),Codes!B18+250,"") -> 1500 | C19: =IF('Contributions calculator'!$D$15="","",IF(C18<('Contributions calculator'!$D$15-249),Codes!C18+250,"")) ->  | D19: =IF(D18="","",IF(Codes!D18+1<'Contributions calculator'!$D$12,Codes!D18+1,"")) -> 7
B20: =IF(B19<(Codes!$P$14),Codes!B19+250,"") -> 1750 | C20: =IF('Contributions calculator'!$D$15="","",IF(C19<('Contributions calculator'!$D$15-249),Codes!C19+250,"")) ->  | D20: =IF(D19="","",IF(Codes!D19+1<'Contributions calculator'!$D$12,Codes!D19+1,"")) -> 8 | I20: Cost of £250 of AP | J20: =IF(H28="",I27,((I28-I27)*I25+I27)) -> 
B21: =IF(B20<(Codes!$P$14),Codes!B20+250,"") -> 2000 | C21: =IF('Contributions calculator'!$D$15="","",IF(C20<('Contributions calculator'!$D$15-249),Codes!C20+250,"")) ->  | D21: =IF(D20="","",IF(Codes!D20+1<'Contributions calculator'!$D$12,Codes!D20+1,"")) -> 9
B22: =IF(B21<(Codes!$P$14),Codes!B21+250,"") -> 2250 | C22: =IF('Contributions calculator'!$D$15="","",IF(C21<('Contributions calculator'!$D$15-249),Codes!C21+250,"")) ->  | D22: =IF(D21="","",IF(Codes!D21+1<'Contributions calculator'!$D$12,Codes!D21+1,"")) -> 10 | I22: Interpolation for monthly contributions for non-integer NPA
B23: =IF(B22<(Codes!$P$14),Codes!B22+250,"") -> 2500 | C23: =IF('Contributions calculator'!$D$15="","",IF(C22<('Contributions calculator'!$D$15-249),Codes!C22+250,"")) ->  | D23: =IF(D22="","",IF(Codes!D22+1<'Contributions calculator'!$D$12,Codes!D22+1,"")) -> 11
B24: =IF(B23<(Codes!$P$14),Codes!B23+250,"") -> 2750 | C24: =IF('Contributions calculator'!$D$15="","",IF(C23<('Contributions calculator'!$D$15-249),Codes!C23+250,"")) ->  | D24: =IF(D23="","",IF(Codes!D23+1<'Contributions calculator'!$D$12,Codes!D23+1,"")) -> 12 | H24: NPA: | I24: =E8&" Years "&F8&" months" -> 65 Years months
B25: =IF(B24<(Codes!$P$14),Codes!B24+250,"") -> 3000 | C25: =IF('Contributions calculator'!$D$15="","",IF(C24<('Contributions calculator'!$D$15-249),Codes!C24+250,"")) ->  | D25: =IF(D24="","",IF(Codes!D24+1<'Contributions calculator'!$D$12,Codes!D24+1,"")) -> 13 | H25: Part years | I25: ='Contributions calculator'!F7/12 -> 0
B26: =IF(B25<(Codes!$P$14),Codes!B25+250,"") -> 3250 | C26: =IF('Contributions calculator'!$D$15="","",IF(C25<('Contributions calculator'!$D$15-249),Codes!C25+250,"")) ->  | D26: =IF(D25="","",IF(Codes!D25+1<'Contributions calculator'!$D$12,Codes!D25+1,"")) -> 14
B27: =IF(B26<(Codes!$P$14),Codes!B26+250,"") -> 3500 | C27: =IF('Contributions calculator'!$D$15="","",IF(C26<('Contributions calculator'!$D$15-249),Codes!C26+250,"")) ->  | D27: =IF(D26="","",IF(Codes!D26+1<'Contributions calculator'!$D$12,Codes!D26+1,"")) -> 15 | H27: =IF('Contributions calculator'!D19=Codes!C2,F2,IF('Contributions calculator'!D23=D2,"P",IF('Contributions calculator'!D23=D3,"D",""))&Codes!E8) -> 65 | I27: =VLOOKUP(H27,H2:J16,3,FALSE) -> 
B28: =IF(B27<(Codes!$P$14),Codes!B27+250,"") -> 3750 | C28: =IF('Contributions calculator'!$D$15="","",IF(C27<('Contributions calculator'!$D$15-249),Codes!C27+250,"")) ->  | D28: =IF(D27="","",IF(Codes!D27+1<'Contributions calculator'!$D$12,Codes!D27+1,"")) -> 16 | H28: =IF(OR(F8="",F8=0),"", IF(AND('Contributions calculator'!D19="Regular contributions",'Contributions calculator'!D23=D2),"P"&E8+1, IF(AND('Contributions calculator'!D19="Regular contributions",'Contributions calculator'!D23=D3),"D"&E8+1, IF(AND('Contributions calculator'!D19="Lump Sum"),"APS"&E8+1,"") ))) ->  | I28: =VLOOKUP(H28,H4:J16,3,FALSE) -> 
B29: =IF(B28<(Codes!$P$14),Codes!B28+250,"") -> 4000 | C29: =IF('Contributions calculator'!$D$15="","",IF(C28<('Contributions calculator'!$D$15-249),Codes!C28+250,"")) ->  | D29: =IF(D28="","",IF(Codes!D28+1<'Contributions calculator'!$D$12,Codes!D28+1,"")) -> 17
B30: =IF(B29<(Codes!$P$14),Codes!B29+250,"") -> 4250 | C30: =IF('Contributions calculator'!$D$15="","",IF(C29<('Contributions calculator'!$D$15-249),Codes!C29+250,"")) ->  | D30: =IF(D29="","",IF(Codes!D29+1<'Contributions calculator'!$D$12,Codes!D29+1,"")) -> 18 | I30: ="Interpolation for NPA of "&I24 -> Interpolation for NPA of 65 Years months
B31: =IF(B30<(Codes!$P$14),Codes!B30+250,"") -> 4500 | C31: =IF('Contributions calculator'!$D$15="","",IF(C30<('Contributions calculator'!$D$15-249),Codes!C30+250,"")) ->  | D31: =IF(D30="","",IF(Codes!D30+1<'Contributions calculator'!$D$12,Codes!D30+1,"")) -> 19 | H31: = | I31: ="("&H28&" figure - "&H27&" figure) x months/12 + "&H28&" figure" -> ( figure - 65 figure) x months/12 + figure
B32: =IF(B31<(Codes!$P$14),Codes!B31+250,"") -> 4750 | C32: =IF('Contributions calculator'!$D$15="","",IF(C31<('Contributions calculator'!$D$15-249),Codes!C31+250,"")) ->  | D32: =IF(D31="","",IF(Codes!D31+1<'Contributions calculator'!$D$12,Codes!D31+1,"")) -> 20 | H32: = | I32: ="("&I28&" - "&I27&") x "&I25&" + "&I28 -> 
B33: =IF(B32<(Codes!$P$14),Codes!B32+250,"") -> 5000 | C33: =IF('Contributions calculator'!$D$15="","",IF(C32<('Contributions calculator'!$D$15-249),Codes!C32+250,"")) ->  | H33: = | I33: =J20 -> 
B34: =IF(B33<(Codes!$P$14),Codes!B33+250,"") -> 5250 | C34: =IF('Contributions calculator'!$D$15="","",IF(C33<('Contributions calculator'!$D$15-249),Codes!C33+250,"")) -> 
B35: =IF(B34<(Codes!$P$14),Codes!B34+250,"") -> 5500 | C35: =IF('Contributions calculator'!$D$15="","",IF(C34<('Contributions calculator'!$D$15-249),Codes!C34+250,"")) -> 
B36: =IF(B35<(Codes!$P$14),Codes!B35+250,"") -> 5750 | C36: =IF('Contributions calculator'!$D$15="","",IF(C35<('Contributions calculator'!$D$15-249),Codes!C35+250,"")) -> 
B37: =IF(B36<(Codes!$P$14),Codes!B36+250,"") -> 6000 | C37: =IF('Contributions calculator'!$D$15="","",IF(C36<('Contributions calculator'!$D$15-249),Codes!C36+250,"")) -> 
B38: =IF(B37<(Codes!$P$14),Codes!B37+250,"") -> 6250 | C38: =IF('Contributions calculator'!$D$15="","",IF(C37<('Contributions calculator'!$D$15-249),Codes!C37+250,"")) -> 
B39: =IF(B38<(Codes!$P$14),Codes!B38+250,"") -> 6500 | C39: =IF('Contributions calculator'!$D$15="","",IF(C38<('Contributions calculator'!$D$15-249),Codes!C38+250,"")) -> 
B40: =IF(B39<(Codes!$P$14),Codes!B39+250,"") -> 6750 | C40: =IF('Contributions calculator'!$D$15="","",IF(C39<('Contributions calculator'!$D$15-249),Codes!C39+250,"")) -> 
B41: =IF(B40<(Codes!$P$14),Codes!B40+250,"") -> 7000 | C41: =IF('Contributions calculator'!$D$15="","",IF(C40<('Contributions calculator'!$D$15-249),Codes!C40+250,"")) -> 
C42: =IF('Contributions calculator'!$D$13="","",IF(C41<('Contributions calculator'!$D$13-249),Codes!C41+250,"")) -> 
C43: =IF('Contributions calculator'!$D$13="","",IF(C42<('Contributions calculator'!$D$13-249),Codes!C42+250,"")) -> 
B49: =IF(B48<('Contributions calculator'!$E$13-250),Codes!B48+250,"") -> 
B50: =IF(B49<('Contributions calculator'!$E$13-250),Codes!B49+250,"") -> 
B51: =IF(B50<('Contributions calculator'!$E$13-250),Codes!B50+250,"") -> 
B52: =IF(B51<('Contributions calculator'!$E$13-250),Codes!B51+250,"") -> 
B53: =IF(B52<('Contributions calculator'!$E$13-250),Codes!B52+250,"") -> 
B54: =IF(B53<('Contributions calculator'!$E$13-250),Codes!B53+250,"") -> 
B55: =IF(B54<('Contributions calculator'!$E$13-250),Codes!B54+250,"") -> 
B56: =IF(B55<('Contributions calculator'!$E$13-250),Codes!B55+250,"") -> 
B57: =IF(B56<('Contributions calculator'!$E$13-250),Codes!B56+250,"") -> 
B58: =IF(B57<('Contributions calculator'!$E$13-250),Codes!B57+250,"") -> 
B59: =IF(B58<('Contributions calculator'!$E$13-250),Codes!B58+250,"") -> 
B60: =IF(B59<('Contributions calculator'!$E$13-250),Codes!B59+250,"") -> 
B61: =IF(B60<('Contributions calculator'!$E$13-250),Codes!B60+250,"") -> 
B62: =IF(B61<('Contributions calculator'!$E$13-250),Codes!B61+250,"") -> 
B63: =IF(B62<('Contributions calculator'!$E$13-250),Codes!B62+250,"") -> 
B64: =IF(B63<('Contributions calculator'!$E$13-250),Codes!B63+250,"") -> 
B65: =IF(B64<('Contributions calculator'!$E$13-250),Codes!B64+250,"") -> 
B66: =IF(B65<('Contributions calculator'!$E$13-250),Codes!B65+250,"") -> 
B67: =IF(B66<('Contributions calculator'!$E$13-250),Codes!B66+250,"") -> 
B68: =IF(B67<('Contributions calculator'!$E$13-250),Codes!B67+250,"") -> 
B69: =IF(B68<('Contributions calculator'!$E$13-250),Codes!B68+250,"") -> 
B70: =IF(B69<('Contributions calculator'!$E$13-250),Codes!B69+250,"") -> 
B71: =IF(B70<('Contributions calculator'!$E$13-250),Codes!B70+250,"") -> 
B72: =IF(B71<('Contributions calculator'!$E$13-250),Codes!B71+250,"") -> 
B73: =IF(B72<('Contributions calculator'!$E$13-250),Codes!B72+250,"") -> 
B74: =IF(B73<('Contributions calculator'!$E$13-250),Codes!B73+250,"") -> 
B75: =IF(B74<('Contributions calculator'!$E$13-250),Codes!B74+250,"") -> 
B76: =IF(B75<('Contributions calculator'!$E$13-250),Codes!B75+250,"") -> 
B77: =IF(B76<('Contributions calculator'!$E$13-250),Codes!B76+250,"") -> 
B78: =IF(B77<('Contributions calculator'!$E$13-250),Codes!B77+250,"") -> 
B79: =IF(B78<('Contributions calculator'!$E$13-250),Codes!B78+250,"") -> 
B80: =IF(B79<('Contributions calculator'!$E$13-250),Codes!B79+250,"") -> 
B81: =IF(B80<('Contributions calculator'!$E$13-250),Codes!B80+250,"") -> 
B82: =IF(B81<('Contributions calculator'!$E$13-250),Codes!B81+250,"") -> 
B83: =IF(B82<('Contributions calculator'!$E$13-250),Codes!B82+250,"") -> 
B84: =IF(B83<('Contributions calculator'!$E$13-250),Codes!B83+250,"") -> 
B85: =IF(B84<('Contributions calculator'!$E$13-250),Codes!B84+250,"") -> 
B86: =IF(B85<('Contributions calculator'!$E$13-250),Codes!B85+250,"") -> 
B87: =IF(B86<('Contributions calculator'!$E$13-250),Codes!B86+250,"") -> 
B88: =IF(B87<('Contributions calculator'!$E$13-250),Codes!B87+250,"") -> 
B89: =IF(B88<('Contributions calculator'!$E$13-250),Codes!B88+250,"") -> 
B90: =IF(B89<('Contributions calculator'!$E$13-250),Codes!B89+250,"") -> 
B91: =IF(B90<('Contributions calculator'!$E$13-250),Codes!B90+250,"") -> 
B92: =IF(B91<('Contributions calculator'!$E$13-250),Codes!B91+250,"") -> 
B93: =IF(B92<('Contributions calculator'!$E$13-250),Codes!B92+250,"") -> 
B94: =IF(B93<('Contributions calculator'!$E$13-250),Codes!B93+250,"") -> 
B95: =IF(B94<('Contributions calculator'!$E$13-250),Codes!B94+250,"") -> 
B96: =IF(B95<('Contributions calculator'!$E$13-250),Codes!B95+250,"") -> 
B97: =IF(B96<('Contributions calculator'!$E$13-250),Codes!B96+250,"") -> 
B98: =IF(B97<('Contributions calculator'!$E$13-250),Codes!B97+250,"") -> 
B99: =IF(B98<('Contributions calculator'!$E$13-250),Codes!B98+250,"") -> 
B100: =IF(B99<('Contributions calculator'!$E$13-250),Codes!B99+250,"") -> 
B101: =IF(B100<('Contributions calculator'!$E$13-250),Codes!B100+250,"") -> 
B102: =IF(B101<('Contributions calculator'!$E$13-250),Codes!B101+250,"") -> 
B103: =IF(B102<('Contributions calculator'!$E$13-250),Codes!B102+250,"") -> 
B104: =IF(B103<('Contributions calculator'!$E$13-250),Codes!B103+250,"") -> 
B105: =IF(B104<('Contributions calculator'!$E$13-250),Codes!B104+250,"") -> 
B106: =IF(B105<('Contributions calculator'!$E$13-250),Codes!B105+250,"") -> 
B107: =IF(B106<('Contributions calculator'!$E$13-250),Codes!B106+250,"") -> 
B108: =IF(B107<('Contributions calculator'!$E$13-250),Codes!B107+250,"") -> 
B109: =IF(B108<('Contributions calculator'!$E$13-250),Codes!B108+250,"") -> 
B110: =IF(B109<('Contributions calculator'!$E$13-250),Codes!B109+250,"") -> 
B111: =IF(B110<('Contributions calculator'!$E$13-250),Codes!B110+250,"") -> 
B112: =IF(B111<('Contributions calculator'!$E$13-250),Codes!B111+250,"") -> 
B113: =IF(B112<('Contributions calculator'!$E$13-250),Codes!B112+250,"") -> 
B114: =IF(B113<('Contributions calculator'!$E$13-250),Codes!B113+250,"") -> 
B115: =IF(B114<('Contributions calculator'!$E$13-250),Codes!B114+250,"") -> 
B116: =IF(B115<('Contributions calculator'!$E$13-250),Codes!B115+250,"") -> 
B117: =IF(B116<('Contributions calculator'!$E$13-250),Codes!B116+250,"") -> 
B118: =IF(B117<('Contributions calculator'!$E$13-250),Codes!B117+250,"") -> 
B119: =IF(B118<('Contributions calculator'!$E$13-250),Codes!B118+250,"") -> 
B120: =IF(B119<('Contributions calculator'!$E$13-250),Codes!B119+250,"") -> 
B121: =IF(B120<('Contributions calculator'!$E$13-250),Codes!B120+250,"") -> 
B122: =IF(B121<('Contributions calculator'!$E$13-250),Codes!B121+250,"") -> 
B123: =IF(B122<('Contributions calculator'!$E$13-250),Codes!B122+250,"") -> 
B124: =IF(B123<('Contributions calculator'!$E$13-250),Codes!B123+250,"") -> 
B125: =IF(B124<('Contributions calculator'!$E$13-250),Codes!B124+250,"") -> 
B126: =IF(B125<('Contributions calculator'!$E$13-250),Codes!B125+250,"") -> 
B127: =IF(B126<('Contributions calculator'!$E$13-250),Codes!B126+250,"") -> 
B128: =IF(B127<('Contributions calculator'!$E$13-250),Codes!B127+250,"") -> 
B129: =IF(B128<('Contributions calculator'!$E$13-250),Codes!B128+250,"") -> 
B130: =IF(B129<('Contributions calculator'!$E$13-250),Codes!B129+250,"") -> 
B131: =IF(B130<('Contributions calculator'!$E$13-250),Codes!B130+250,"") -> 
B132: =IF(B131<('Contributions calculator'!$E$13-250),Codes!B131+250,"") -> 
B133: =IF(B132<('Contributions calculator'!$E$13-250),Codes!B132+250,"") -> 
B134: =IF(B133<('Contributions calculator'!$E$13-250),Codes!B133+250,"") -> 
B135: =IF(B134<('Contributions calculator'!$E$13-250),Codes!B134+250,"") -> 
B136: =IF(B135<('Contributions calculator'!$E$13-250),Codes!B135+250,"") -> 
B137: =IF(B136<('Contributions calculator'!$E$13-250),Codes!B136+250,"") -> 
B138: =IF(B137<('Contributions calculator'!$E$13-250),Codes!B137+250,"") -> 
B139: =IF(B138<('Contributions calculator'!$E$13-250),Codes!B138+250,"") -> 
B140: =IF(B139<('Contributions calculator'!$E$13-250),Codes!B139+250,"") -> 
B141: =IF(B140<('Contributions calculator'!$E$13-250),Codes!B140+250,"") -> 
B142: =IF(B141<('Contributions calculator'!$E$13-250),Codes!B141+250,"") -> 
B143: =IF(B142<('Contributions calculator'!$E$13-250),Codes!B142+250,"") -> 
B144: =IF(B143<('Contributions calculator'!$E$13-250),Codes!B143+250,"") -> 
B145: =IF(B144<('Contributions calculator'!$E$13-250),Codes!B144+250,"") -> 
B146: =IF(B145<('Contributions calculator'!$E$13-250),Codes!B145+250,"") -> 
B147: =IF(B146<('Contributions calculator'!$E$13-250),Codes!B146+250,"") -> 
B148: =IF(B147<('Contributions calculator'!$E$13-250),Codes!B147+250,"") -> 
B149: =IF(B148<('Contributions calculator'!$E$13-250),Codes!B148+250,"") -> 
B150: =IF(B149<('Contributions calculator'!$E$13-250),Codes!B149+250,"") -> 
B151: =IF(B150<('Contributions calculator'!$E$13-250),Codes!B150+250,"") -> 
B152: =IF(B151<('Contributions calculator'!$E$13-250),Codes!B151+250,"") -> 
B153: =IF(B152<('Contributions calculator'!$E$13-250),Codes!B152+250,"") -> 
B154: =IF(B153<('Contributions calculator'!$E$13-250),Codes!B153+250,"") -> 
B155: =IF(B154<('Contributions calculator'!$E$13-250),Codes!B154+250,"") -> 
B156: =IF(B155<('Contributions calculator'!$E$13-250),Codes!B155+250,"") -> 
B157: =IF(B156<('Contributions calculator'!$E$13-250),Codes!B156+250,"") -> 
B158: =IF(B157<('Contributions calculator'!$E$13-250),Codes!B157+250,"") -> 
B159: =IF(B158<('Contributions calculator'!$E$13-250),Codes!B158+250,"") -> 
B160: =IF(B159<('Contributions calculator'!$E$13-250),Codes!B159+250,"") -> 
B161: =IF(B160<('Contributions calculator'!$E$13-250),Codes!B160+250,"") -> 
B162: =IF(B161<('Contributions calculator'!$E$13-250),Codes!B161+250,"") -> 
B163: =IF(B162<('Contributions calculator'!$E$13-250),Codes!B162+250,"") -> 
B164: =IF(B163<('Contributions calculator'!$E$13-250),Codes!B163+250,"") -> 
B165: =IF(B164<('Contributions calculator'!$E$13-250),Codes!B164+250,"") -> 
B166: =IF(B165<('Contributions calculator'!$E$13-250),Codes!B165+250,"") -> 
B167: =IF(B166<('Contributions calculator'!$E$13-250),Codes!B166+250,"") -> 
B168: =IF(B167<('Contributions calculator'!$E$13-250),Codes!B167+250,"") -> 
B169: =IF(B168<('Contributions calculator'!$E$13-250),Codes!B168+250,"") -> 
B170: =IF(B169<('Contributions calculator'!$E$13-250),Codes!B169+250,"") -> 
B171: =IF(B170<('Contributions calculator'!$E$13-250),Codes!B170+250,"") -> 
B172: =IF(B171<('Contributions calculator'!$E$13-250),Codes!B171+250,"") -> 
B173: =IF(B172<('Contributions calculator'!$E$13-250),Codes!B172+250,"") -> 
B174: =IF(B173<('Contributions calculator'!$E$13-250),Codes!B173+250,"") -> 
B175: =IF(B174<('Contributions calculator'!$E$13-250),Codes!B174+250,"") -> 
B176: =IF(B175<('Contributions calculator'!$E$13-250),Codes!B175+250,"") -> 
B177: =IF(B176<('Contributions calculator'!$E$13-250),Codes!B176+250,"") -> 
B178: =IF(B177<('Contributions calculator'!$E$13-250),Codes!B177+250,"") -> 
B179: =IF(B178<('Contributions calculator'!$E$13-250),Codes!B178+250,"") -> 
B180: =IF(B179<('Contributions calculator'!$E$13-250),Codes!B179+250,"") -> 
B181: =IF(B180<('Contributions calculator'!$E$13-250),Codes!B180+250,"") -> 
B182: =IF(B181<('Contributions calculator'!$E$13-250),Codes!B181+250,"") -> 
B183: =IF(B182<('Contributions calculator'!$E$13-250),Codes!B182+250,"") -> 
B184: =IF(B183<('Contributions calculator'!$E$13-250),Codes!B183+250,"") -> 
B185: =IF(B184<('Contributions calculator'!$E$13-250),Codes!B184+250,"") -> 
B186: =IF(B185<('Contributions calculator'!$E$13-250),Codes!B185+250,"") -> 
B187: =IF(B186<('Contributions calculator'!$E$13-250),Codes!B186+250,"") -> 
B188: =IF(B187<('Contributions calculator'!$E$13-250),Codes!B187+250,"") -> 
B189: =IF(B188<('Contributions calculator'!$E$13-250),Codes!B188+250,"") -> 
B190: =IF(B189<('Contributions calculator'!$E$13-250),Codes!B189+250,"") -> 
B191: =IF(B190<('Contributions calculator'!$E$13-250),Codes!B190+250,"") -> 
B192: =IF(B191<('Contributions calculator'!$E$13-250),Codes!B191+250,"") -> 
B193: =IF(B192<('Contributions calculator'!$E$13-250),Codes!B192+250,"") -> 
B194: =IF(B193<('Contributions calculator'!$E$13-250),Codes!B193+250,"") -> 
B195: =IF(B194<('Contributions calculator'!$E$13-250),Codes!B194+250,"") -> 
B196: =IF(B195<('Contributions calculator'!$E$13-250),Codes!B195+250,"") -> 
B197: =IF(B196<('Contributions calculator'!$E$13-250),Codes!B196+250,"") -> 
B198: =IF(B197<('Contributions calculator'!$E$13-250),Codes!B197+250,"") -> 
B199: =IF(B198<('Contributions calculator'!$E$13-250),Codes!B198+250,"") -> 
B200: =IF(B199<('Contributions calculator'!$E$13-250),Codes!B199+250,"") -> 
B201: =IF(B200<('Contributions calculator'!$E$13-250),Codes!B200+250,"") -> 
B202: =IF(B201<('Contributions calculator'!$E$13-250),Codes!B201+250,"") -> 
B203: =IF(B202<('Contributions calculator'!$E$13-250),Codes!B202+250,"") -> 
B204: =IF(B203<('Contributions calculator'!$E$13-250),Codes!B203+250,"") -> 
B205: =IF(B204<('Contributions calculator'!$E$13-250),Codes!B204+250,"") -> 
... 26 more rows

Sheet State pension age (hidden)
D2: SPA
B3: Date of birth | C3: Total whole Months | D3: Years | E3: Months- altair rounding-up | F3: Months | G3: Days | H3: DOB from | J3: DOB to | K3: SPA date
B4: =IF('Contributions calculator'!$D$4<H5,'Contributions calculator'!$D$4,"") -> 00:00:00 | D4: 65
A5: Increase from 65 to 66 | B5: =IF(AND('Contributions calculator'!$D$4>=H5,'Contributions calculator'!$D$4<=J5),'Contributions calculator'!$D$4,"") ->  | C5: =IF(B5="","",IF(DAY(K5)>=DAY(B5),0,-1)+(YEAR(K5)-YEAR(B5))*12+MONTH(K5)-MONTH(B5)) ->  | D5: =IF(B5="","",ROUNDDOWN(C5/12,0)) ->  | E5: =IF(OR(G5="",G5=0),F5,F5+1) ->  | F5: =IF(B5="","",C5-(65*12)) ->  | G5: =IF(B5="","",K5-M5) ->  | H5: 1953-12-06 | J5: 1954-01-05 | K5: 2019-03-06 | M5: =IF(B5="","",DATE(YEAR(B5)+65,MONTH(B5)+F5,DAY(B5))) -> 
B6: =IF(AND('Contributions calculator'!$D$4>=H6,'Contributions calculator'!$D$4<=J6),'Contributions calculator'!$D$4,"") ->  | D6: =IF(B6="","",ROUNDDOWN(C6/12,0)) ->  | E6: =IF(OR(G6="",G6=0),F6,F6+1) ->  | F6: =IF(B6="","",C6-(65*12)) ->  | G6: =IF(B6="","",K6-M6) ->  | H6: 1954-01-06 | J6: 1954-02-05 | K6: 2019-05-06
B7: =IF(AND('Contributions calculator'!$D$4>=H7,'Contributions calculator'!$D$4<=J7),'Contributions calculator'!$D$4,"") ->  | H7: 1954-02-06 | J7: 1954-03-05 | K7: 2019-07-06
B8: =IF(AND('Contributions calculator'!$D$4>=H8,'Contributions calculator'!$D$4<=J8),'Contributions calculator'!$D$4,"") ->  | H8: 1954-03-06 | J8: 1954-04-05 | K8: 2019-09-06
B9: =IF(AND('Contributions calculator'!$D$4>=H9,'Contributions calculator'!$D$4<=J9),'Contributions calculator'!$D$4,"") ->  | H9: 1954-04-06 | J9: 1954-05-05 | K9: 2019-11-06
B10: =IF(AND('Contributions calculator'!$D$4>=H10,'Contributions calculator'!$D$4<=J10),'Contributions calculator'!$D$4,"") ->  | H10: 1954-05-06 | J10: 1954-06-05 | K10: 2020-01-06
B11: =IF(AND('Contributions calculator'!$D$4>=H11,'Contributions calculator'!$D$4<=J11),'Contributions calculator'!$D$4,"") ->  | H11: 1954-06-06 | J11: 1954-07-05 | K11: 2020-03-06
B12: =IF(AND('Contributions calculator'!$D$4>=H12,'Contributions calculator'!$D$4<=J12),'Contributions calculator'!$D$4,"") ->  | H12: 1954-07-06 | J12: 1954-08-05 | K12: 2020-05-06
B13: =IF(AND('Contributions calculator'!$D$4>=H13,'Contributions calculator'!$D$4<=J13),'Contributions calculator'!$D$4,"") ->  | H13: 1954-08-06 | J13: 1954-09-05 | K13: 2020-07-06
B14: =IF(AND('Contributions calculator'!$D$4>=H14,'Contributions calculator'!$D$4<=J14),'Contributions calculator'!$D$4,"") ->  | D14: =IF(B14="","",66) ->  | H14: 1954-09-06 | J14: 1954-10-05 | K14: 2020-09-06 | M14: =IF(B14="","",DATE(YEAR(B14)+65,MONTH(B14)+F14,DAY(B14))) -> 
B15: =IF(AND('Contributions calculator'!$D$4>=H15,'Contributions calculator'!$D$4<=J15),'Contributions calculator'!$D$4,"") ->  | C15: =IF(B15="","",IF(DAY(K15)>=DAY(B15),0,-1)+(YEAR(K15)-YEAR(B15))*12+MONTH(K15)-MONTH(B15)) ->  | D15: =IF(B15="","",66) ->  | H15: 1954-10-06 | J15: 1960-04-05 | K15: =IF(AND('Contributions calculator'!D$4>=H15,'Contributions calculator'!D$4<=J15),(DATE(YEAR(B15)+66,MONTH(B15),DAY(B15))),"") ->  | M15: =IF(B15="","",DATE(YEAR(B15)+D15,MONTH(B15)+F15,DAY(B15))) -> 
F16: =IF(B16="","",C16-(D16*12)) -> 
A17: Increase from 66 to 67 | B17: =IF(AND('Contributions calculator'!$D$4>=H17,'Contributions calculator'!$D$4<=J17),'Contributions calculator'!$D$4,"") ->  | D17: =IF(B17="","",66) ->  | F17: =IF(B17="","",1) ->  | H17: 1960-04-06 | J17: 1960-05-05
B18: =IF(AND('Contributions calculator'!$D$4>=H18,'Contributions calculator'!$D$4<=J18),'Contributions calculator'!$D$4,"") ->  | F18: =IF(B18="","",2) ->  | H18: 1960-05-06 | J18: 1960-06-05
B19: =IF(AND('Contributions calculator'!$D$4>=H19,'Contributions calculator'!$D$4<=J19),'Contributions calculator'!$D$4,"") ->  | F19: =IF(B19="","",3) ->  | H19: 1960-06-06 | J19: 1960-07-05
B20: =IF(AND('Contributions calculator'!$D$4>=H20,'Contributions calculator'!$D$4<=J20),'Contributions calculator'!$D$4,"") ->  | F20: =IF(B20="","",4) ->  | H20: 1960-07-06 | J20: 1960-08-05
B21: =IF(AND('Contributions calculator'!$D$4>=H21,'Contributions calculator'!$D$4<=J21),'Contributions calculator'!$D$4,"") ->  | F21: =IF(B21="","",5) ->  | H21: 1960-08-06 | J21: 1960-09-05
B22: =IF(AND('Contributions calculator'!$D$4>=H22,'Contributions calculator'!$D$4<=J22),'Contributions calculator'!$D$4,"") ->  | F22: =IF(B22="","",6) ->  | H22: 1960-09-06 | J22: 1960-10-05
B23: =IF(AND('Contributions calculator'!$D$4>=H23,'Contributions calculator'!$D$4<=J23),'Contributions calculator'!$D$4,"") ->  | F23: =IF(B23="","",7) ->  | H23: 1960-10-06 | J23: 1960-11-05
B24: =IF(AND('Contributions calculator'!$D$4>=H24,'Contributions calculator'!$D$4<=J24),'Contributions calculator'!$D$4,"") ->  | F24: =IF(B24="","",8) ->  | H24: 1960-11-06 | J24: 1960-12-05
B25: =IF(AND('Contributions calculator'!$D$4>=H25,'Contributions calculator'!$D$4<=J25),'Contributions calculator'!$D$4,"") ->  | F25: =IF(B25="","",9) ->  | H25: 1960-12-06 | J25: 1961-01-05
B26: =IF(AND('Contributions calculator'!$D$4>=H26,'Contributions calculator'!$D$4<=J26),'Contributions calculator'!$D$4,"") ->  | F26: =IF(B26="","",10) ->  | H26: 1961-01-06 | J26: 1961-02-05
B27: =IF(AND('Contributions calculator'!$D$4>=H27,'Contributions calculator'!$D$4<=J27),'Contributions calculator'!$D$4,"") ->  | F27: =IF(B27="","",11) ->  | H27: 1961-02-06 | J27: 1961-03-05
B28: =IF(AND('Contributions calculator'!$D$4>=H28,'Contributions calculator'!$D$4<=J28),'Contributions calculator'!$D$4,"") ->  | D28: =IF(B28="","",67) ->  | H28: 1961-03-06 | J28: 1977-04-05
F29: =IF(B29="","",C29-(D29*12)) -> 
A30: Increase from 67 to 68 | B30: =IF(AND('Contributions calculator'!$D$4>=H30,'Contributions calculator'!$D$4<=J30),'Contributions calculator'!$D$4,"") ->  | C30: =IF(B30="","",IF(DAY(K30)>=DAY(B30),0,-1)+(YEAR(K30)-YEAR(B30))*12+MONTH(K30)-MONTH(B30)) ->  | D30: =IF(B30="","",ROUNDDOWN(C30/12,0)) ->  | F30: =IF(B30="","",C30-(67*12)) ->  | H30: 1977-04-06 | J30: 1977-05-05 | K30: 2044-05-06 | M30: =IF(B30="","",DATE(YEAR(B30)+67,MONTH(B30)+F30,DAY(B30))) -> 
B31: =IF(AND('Contributions calculator'!$D$4>=H31,'Contributions calculator'!$D$4<=J31),'Contributions calculator'!$D$4,"") ->  | D31: =IF(B31="","",ROUNDDOWN(C31/12,0)) ->  | H31: 1977-05-06 | J31: 1977-06-05 | K31: 2044-07-06
B32: =IF(AND('Contributions calculator'!$D$4>=H32,'Contributions calculator'!$D$4<=J32),'Contributions calculator'!$D$4,"") ->  | H32: 1977-06-06 | J32: 1977-07-05 | K32: 2044-09-06
B33: =IF(AND('Contributions calculator'!$D$4>=H33,'Contributions calculator'!$D$4<=J33),'Contributions calculator'!$D$4,"") ->  | H33: 1977-07-06 | J33: 1977-08-05 | K33: 2044-11-06
B34: =IF(AND('Contributions calculator'!$D$4>=H34,'Contributions calculator'!$D$4<=J34),'Contributions calculator'!$D$4,"") ->  | H34: 1977-08-06 | J34: 1977-09-05 | K34: 2045-01-06
B35: =IF(AND('Contributions calculator'!$D$4>=H35,'Contributions calculator'!$D$4<=J35),'Contributions calculator'!$D$4,"") ->  | H35: 1977-09-06 | J35: 1977-10-05 | K35: 2045-03-06
B36: =IF(AND('Contributions calculator'!$D$4>=H36,'Contributions calculator'!$D$4<=J36),'Contributions calculator'!$D$4,"") ->  | H36: 1977-10-06 | J36: 1977-11-05 | K36: 2045-05-06
B37: =IF(AND('Contributions calculator'!$D$4>=H37,'Contributions calculator'!$D$4<=J37),'Contributions calculator'!$D$4,"") ->  | H37: 1977-11-06 | J37: 1977-12-05 | K37: 2045-07-06
B38: =IF(AND('Contributions calculator'!$D$4>=H38,'Contributions calculator'!$D$4<=J38),'Contributions calculator'!$D$4,"") ->  | H38: 1977-12-06 | J38: 1978-01-05 | K38: 2045-09-06
B39: =IF(AND('Contributions calculator'!$D$4>=H39,'Contributions calculator'!$D$4<=J39),'Contributions calculator'!$D$4,"") ->  | H39: 1978-01-06 | J39: 1978-02-05 | K39: 2045-11-06
B40: =IF(AND('Contributions calculator'!$D$4>=H40,'Contributions calculator'!$D$4<=J40),'Contributions calculator'!$D$4,"") ->  | H40: 1978-02-06 | J40: 1978-03-05 | K40: 2046-01-06
B41: =IF(AND('Contributions calculator'!$D$4>=H41,'Contributions calculator'!$D$4<=J41),'Contributions calculator'!$D$4,"") ->  | D41: =IF(B41="","",68) ->  | E41: 0 | F41: =IF(B41="","",C41-(67*12)) ->  | G41: =IF(B41="","",K41-M41) ->  | H41: 1978-03-06 | J41: 1978-04-05 | K41: 2046-03-06 | M41: =IF(B41="","",DATE(YEAR(B41)+67,MONTH(B41)+F41,DAY(B41))) -> 
B42: =IF(AND('Contributions calculator'!$D$4>=H42,'Contributions calculator'!$D$4<=J42),'Contributions calculator'!$D$4,"") ->  | D42: =IF(B42="","",68) ->  | H42: 1978-04-06 | J42: =TODAY() -> 2024-06-04 | K42: =IF(AND('Contributions calculator'!D$4>=H42,'Contributions calculator'!D$4<=J42),(DATE(YEAR(B42)+68,MONTH(B42),DAY(B42))),"") ->  | M42: =IF(B42="","",DATE(YEAR(B42)+D42,MONTH(B42)+F42,DAY(B42))) -> 

Sheet Lump Sum (hidden)
G1: Lump Sum Elections | J1: Date Factors Issued to Client | K1: 2023-10-17
B3: x-701 | F3: x-702 | J3: x-703 | N3: x-704 | R3: x-705
B5: Table APS60: NPA 60, STSS | F5: Table APS65: NPA 65, STSS and STPS | J5: Table APS66: NPA 66, STPS | N5: Table APS67: NPA 67, STPS | R5: Table APS68: NPA 68, STPS
B7: Benefits | C7: Personal | D7: Personal and dependant's | F7: Benefits | G7: Personal | H7: Personal and dependant's | J7: Benefits | K7: Personal | L7: Personal and dependant's | N7: Benefits | O7: Personal | P7: Personal and dependant's | R7: Benefits | S7: Personal | T7: Personal and dependant's
B8: Age when notice of election given | C8: Single premium to purchase £250 of APB at date of election, £ | F8: Age when notice of election given | G8: Single premium to purchase £250 of APB at date of election, £ | J8: Age when notice of election given | K8: Single premium to purchase £250 of AP at date of election, £ | N8: Age when notice of election given | O8: Single premium to purchase £250 of AP at date of election, £ | R8: Age when notice of election given | S8: Single premium to purchase £250 of AP at date of election, £
B9: 20 | F9: 20 | G9: 2510 | H9: 2720 | J9: 20 | K9: 2400 | L9: 2620 | N9: 20 | O9: 2300 | P9: 2520 | R9: 20 | S9: 2210 | T9: 2420
B10: 21 | F10: 21 | G10: 2550 | H10: 2760 | J10: 21 | K10: 2440 | L10: 2660 | N10: 21 | O10: 2340 | P10: 2550 | R10: 21 | S10: 2240 | T10: 2450
B11: 22 | F11: 22 | G11: 2580 | H11: 2800 | J11: 22 | K11: 2480 | L11: 2690 | N11: 22 | O11: 2370 | P11: 2590 | R11: 22 | S11: 2270 | T11: 2490
B12: 23 | F12: 23 | G12: 2620 | H12: 2840 | J12: 23 | K12: 2510 | L12: 2730 | N12: 23 | O12: 2410 | P12: 2630 | R12: 23 | S12: 2300 | T12: 2530
B13: 24 | F13: 24 | G13: 2660 | H13: 2890 | J13: 24 | K13: 2550 | L13: 2770 | N13: 24 | O13: 2440 | P13: 2670 | R13: 24 | S13: 2340 | T13: 2560
B14: 25 | F14: 25 | G14: 2700 | H14: 2930 | J14: 25 | K14: 2590 | L14: 2820 | N14: 25 | O14: 2480 | P14: 2710 | R14: 25 | S14: 2370 | T14: 2600
B15: 26 | F15: 26 | G15: 2740 | H15: 2970 | J15: 26 | K15: 2620 | L15: 2860 | N15: 26 | O15: 2510 | P15: 2750 | R15: 26 | S15: 2400 | T15: 2640
B16: 27 | F16: 27 | G16: 2780 | H16: 3010 | J16: 27 | K16: 2660 | L16: 2900 | N16: 27 | O16: 2550 | P16: 2790 | R16: 27 | S16: 2440 | T16: 2680
B17: 28 | F17: 28 | G17: 2820 | H17: 3060 | J17: 28 | K17: 2700 | L17: 2940 | N17: 28 | O17: 2590 | P17: 2830 | R17: 28 | S17: 2470 | T17: 2720
B18: 29 | F18: 29 | G18: 2860 | H18: 3100 | J18: 29 | K18: 2740 | L18: 2980 | N18: 29 | O18: 2620 | P18: 2870 | R18: 29 | S18: 2510 | T18: 2750
B19: 30 | F19: 30 | G19: 2900 | H19: 3150 | J19: 30 | K19: 2780 | L19: 3030 | N19: 30 | O19: 2660 | P19: 2910 | R19: 30 | S19: 2550 | T19: 2790
B20: 31 | F20: 31 | G20: 2940 | H20: 3190 | J20: 31 | K20: 2820 | L20: 3070 | N20: 31 | O20: 2700 | P20: 2950 | R20: 31 | S20: 2580 | T20: 2830
B21: 32 | F21: 32 | G21: 2990 | H21: 3240 | J21: 32 | K21: 2860 | L21: 3120 | N21: 32 | O21: 2740 | P21: 2990 | R21: 32 | S21: 2620 | T21: 2870
B22: 33 | F22: 33 | G22: 3030 | H22: 3290 | J22: 33 | K22: 2900 | L22: 3160 | N22: 33 | O22: 2780 | P22: 3040 | R22: 33 | S22: 2660 | T22: 2920
B23: 34 | F23: 34 | G23: 3080 | H23: 3340 | J23: 34 | K23: 2940 | L23: 3210 | N23: 34 | O23: 2820 | P23: 3080 | R23: 34 | S23: 2690 | T23: 2960
B24: 35 | F24: 35 | G24: 3120 | H24: 3380 | J24: 35 | K24: 2990 | L24: 3250 | N24: 35 | O24: 2860 | P24: 3120 | R24: 35 | S24: 2730 | T24: 3000
B25: 36 | F25: 36 | G25: 3170 | H25: 3430 | J25: 36 | K25: 3030 | L25: 3300 | N25: 36 | O25: 2900 | P25: 3170 | R25: 36 | S25: 2770 | T25: 3040
B26: 37 | F26: 37 | G26: 3210 | H26: 3480 | J26: 37 | K26: 3070 | L26: 3350 | N26: 37 | O26: 2940 | P26: 3210 | R26: 37 | S26: 2810 | T26: 3080
B27: 38 | F27: 38 | G27: 3260 | H27: 3530 | J27: 38 | K27: 3120 | L27: 3390 | N27: 38 | O27: 2980 | P27: 3260 | R27: 38 | S27: 2850 | T27: 3130
B28: 39 | F28: 39 | G28: 3300 | H28: 3580 | J28: 39 | K28: 3160 | L28: 3440 | N28: 39 | O28: 3020 | P28: 3300 | R28: 39 | S28: 2890 | T28: 3170
B29: 40 | F29: 40 | G29: 3350 | H29: 3630 | J29: 40 | K29: 3210 | L29: 3490 | N29: 40 | O29: 3070 | P29: 3350 | R29: 40 | S29: 2930 | T29: 3210
B30: 41 | F30: 41 | G30: 3400 | H30: 3690 | J30: 41 | K30: 3250 | L30: 3540 | N30: 41 | O30: 3110 | P30: 3400 | R30: 41 | S30: 2970 | T30: 3260
B31: 42 | F31: 42 | G31: 3450 | H31: 3740 | J31: 42 | K31: 3300 | L31: 3590 | N31: 42 | O31: 3160 | P31: 3440 | R31: 42 | S31: 3020 | T31: 3300
B32: 43 | F32: 43 | G32: 3500 | H32: 3790 | J32: 43 | K32: 3350 | L32: 3640 | N32: 43 | O32: 3200 | P32: 3490 | R32: 43 | S32: 3060 | T32: 3350
B33: 44 | F33: 44 | G33: 3550 | H33: 3840 | J33: 44 | K33: 3400 | L33: 3690 | N33: 44 | O33: 3250 | P33: 3540 | R33: 44 | S33: 3100 | T33: 3400
B34: 45 | F34: 45 | G34: 3600 | H34: 3900 | J34: 45 | K34: 3440 | L34: 3740 | N34: 45 | O34: 3290 | P34: 3590 | R34: 45 | S34: 3140 | T34: 3440
B35: 46 | F35: 46 | G35: 3650 | H35: 3950 | J35: 46 | K35: 3490 | L35: 3790 | N35: 46 | O35: 3340 | P35: 3640 | R35: 46 | S35: 3190 | T35: 3490
B36: 47 | F36: 47 | G36: 3700 | H36: 4010 | J36: 47 | K36: 3540 | L36: 3840 | N36: 47 | O36: 3380 | P36: 3690 | R36: 47 | S36: 3230 | T36: 3530
B37: 48 | F37: 48 | G37: 3760 | H37: 4060 | J37: 48 | K37: 3590 | L37: 3900 | N37: 48 | O37: 3430 | P37: 3740 | R37: 48 | S37: 3270 | T37: 3580
B38: 49 | F38: 49 | G38: 3810 | H38: 4120 | J38: 49 | K38: 3640 | L38: 3950 | N38: 49 | O38: 3480 | P38: 3790 | R38: 49 | S38: 3320 | T38: 3630
B39: 50 | F39: 50 | G39: 3860 | H39: 4170 | J39: 50 | K39: 3690 | L39: 4000 | N39: 50 | O39: 3520 | P39: 3830 | R39: 50 | S39: 3360 | T39: 3670
B40: 51 | F40: 51 | G40: 3910 | H40: 4230 | J40: 51 | K40: 3740 | L40: 4050 | N40: 51 | O40: 3570 | P40: 3880 | R40: 51 | S40: 3400 | T40: 3720
B41: 52 | F41: 52 | G41: 3970 | H41: 4290 | J41: 52 | K41: 3790 | L41: 4110 | N41: 52 | O41: 3620 | P41: 3930 | R41: 52 | S41: 3450 | T41: 3770
B42: 53 | F42: 53 | G42: 4020 | H42: 4340 | J42: 53 | K42: 3840 | L42: 4160 | N42: 53 | O42: 3660 | P42: 3980 | R42: 53 | S42: 3490 | T42: 3810
B43: 54 | F43: 54 | G43: 4080 | H43: 4400 | J43: 54 | K43: 3890 | L43: 4210 | N43: 54 | O43: 3710 | P43: 4030 | R43: 54 | S43: 3540 | T43: 3860
B44: 55 | F44: 55 | G44: 4140 | H44: 4460 | J44: 55 | K44: 3950 | L44: 4270 | N44: 55 | O44: 3760 | P44: 4090 | R44: 55 | S44: 3580 | T44: 3910
B45: 56 | F45: 56 | G45: 4190 | H45: 4520 | J45: 56 | K45: 4000 | L45: 4330 | N45: 56 | O45: 3810 | P45: 4140 | R45: 56 | S45: 3630 | T45: 3960
B46: 57 | F46: 57 | G46: 4250 | H46: 4580 | J46: 57 | K46: 4060 | L46: 4380 | N46: 57 | O46: 3860 | P46: 4190 | R46: 57 | S46: 3680 | T46: 4000
B47: 58 | F47: 58 | G47: 4320 | H47: 4640 | J47: 58 | K47: 4110 | L47: 4440 | N47: 58 | O47: 3920 | P47: 4250 | R47: 58 | S47: 3730 | T47: 4060
B48: 59 | F48: 59 | G48: 4380 | H48: 4710 | J48: 59 | K48: 4170 | L48: 4500 | N48: 59 | O48: 3970 | P48: 4300 | R48: 59 | S48: 3780 | T48: 4110
F49: 60 | G49: 4450 | H49: 4780 | J49: 60 | K49: 4230 | L49: 4560 | N49: 60 | O49: 4030 | P49: 4360 | R49: 60 | S49: 3830 | T49: 4160
F50: 61 | G50: 4510 | H50: 4850 | J50: 61 | K50: 4300 | L50: 4630 | N50: 61 | O50: 4090 | P50: 4420 | R50: 61 | S50: 3880 | T50: 4210
F51: 62 | G51: 4590 | H51: 4920 | J51: 62 | K51: 4360 | L51: 4700 | N51: 62 | O51: 4150 | P51: 4480 | R51: 62 | S51: 3940 | T51: 4270
F52: 63 | G52: 4660 | H52: 4990 | J52: 63 | K52: 4430 | L52: 4770 | N52: 63 | O52: 4210 | P52: 4540 | R52: 63 | S52: 4000 | T52: 4330
F53: 64 | G53: 4740 | H53: 5070 | J53: 64 | K53: 4500 | L53: 4840 | N53: 64 | O53: 4280 | P53: 4610 | R53: 64 | S53: 4060 | T53: 4390
J54: 65 | K54: 4580 | L54: 4910 | N54: 65 | O54: 4350 | P54: 4680 | R54: 65 | S54: 4120 | T54: 4460
N55: 66 | O55: 4420 | P55: 4760 | R55: 66 | S55: 4190 | T55: 4520
R56: 67 | S56: 4260 | T56: 4600

Sheet NRA60 (hidden)
U1: Date Factors Issued to Client | V1: 2023-10-17
A2: Regular Contribution Elections made after 31 March 2011 | W2: Regular Contribution Elections made after 31 March 2011
A3: Table D60: Personal and Dependant's Benefits, NRA 60 | L3: x-707 | W3: Table P60: Personal Benefits, NRA 60 | AD3: x-706
A5: Age when notice of election given â | B5: Monthly contribution to purchase £250 of APB at date of election, £ | W5: Age when notice of election given â | X5: Monthly contribution to purchase £250 of APB at date of election, £
A6: Payment period (in years) à | B6: 1 | C6: 2 | D6: 3 | E6: 4 | F6: 5 | G6: 6 | H6: 7 | I6: 8 | J6: 9 | K6: 10 | L6: 11 | M6: 12 | N6: 13 | O6: 14 | P6: 15 | Q6: 16 | R6: 17 | S6: 18 | T6: 19 | U6: 20 | W6: Payment period (in years) à | X6: 1 | Y6: 2 | Z6: 3 | AA6: 4 | AB6: 5 | AC6: 6 | AD6: 7 | AE6: 8 | AF6: 9 | AG6: 10 | AH6: 11 | AI6: 12 | AJ6: 13 | AK6: 14 | AL6: 15 | AM6: 16 | AN6: 17 | AO6: 18 | AP6: 19 | AQ6: 20
A7: 16 | W7: 16
A8: 17 | W8: 17
A9: 18 | W9: 18
A10: 19 | W10: 19
A11: 20 | B11: 274.5 | C11: 139.8 | D11: 94.9 | E11: 72.5 | F11: 59 | G11: 50.1 | H11: 43.7 | I11: 38.9 | J11: 35.2 | K11: 32.2 | L11: 29.8 | M11: 27.8 | N11: 26.1 | O11: 24.6 | P11: 23.4 | Q11: 22.3 | R11: 21.3 | S11: 20.5 | T11: 19.7 | U11: 19 | W11: 20 | X11: 256.8 | Y11: 130.7 | Z11: 88.8 | AA11: 67.8 | AB11: 55.2 | AC11: 46.8 | AD11: 40.9 | AE11: 36.4 | AF11: 32.9 | AG11: 30.1 | AH11: 27.9 | AI11: 26 | AJ11: 24.4 | AK11: 23 | AL11: 21.9 | AM11: 20.9 | AN11: 20 | AO11: 19.2 | AP11: 18.5 | AQ11: 17.8
A12: 21 | B12: 278.7 | C12: 141.9 | D12: 96.3 | E12: 73.6 | F12: 59.9 | G12: 50.8 | H12: 44.3 | I12: 39.5 | J12: 35.7 | K12: 32.7 | L12: 30.2 | M12: 28.2 | N12: 26.5 | O12: 25 | P12: 23.7 | Q12: 22.6 | R12: 21.7 | S12: 20.8 | T12: 20 | U12: 19.3 | W12: 21 | X12: 260.6 | Y12: 132.7 | Z12: 90.1 | AA12: 68.8 | AB12: 56 | AC12: 47.5 | AD12: 41.5 | AE12: 36.9 | AF12: 33.4 | AG12: 30.6 | AH12: 28.3 | AI12: 26.4 | AJ12: 24.8 | AK12: 23.4 | AL12: 22.2 | AM12: 21.2 | AN12: 20.3 | AO12: 19.5 | AP12: 18.7 | AQ12: 18.1
A13: 22 | B13: 282.9 | C13: 144 | D13: 97.8 | E13: 74.7 | F13: 60.8 | G13: 51.6 | H13: 45 | I13: 40.1 | J13: 36.3 | K13: 33.2 | L13: 30.7 | M13: 28.6 | N13: 26.9 | O13: 25.4 | P13: 24.1 | Q13: 23 | R13: 22 | S13: 21.1 | T13: 20.3 | U13: 19.6 | W13: 22 | X13: 264.5 | Y13: 134.7 | Z13: 91.4 | AA13: 69.8 | AB13: 56.9 | AC13: 48.2 | AD13: 42.1 | AE13: 37.5 | AF13: 33.9 | AG13: 31 | AH13: 28.7 | AI13: 26.8 | AJ13: 25.1 | AK13: 23.7 | AL13: 22.5 | AM13: 21.5 | AN13: 20.6 | AO13: 19.7 | AP13: 19 | AQ13: 18.4
A14: 23 | B14: 287.1 | C14: 146.2 | D14: 99.2 | E14: 75.8 | F14: 61.7 | G14: 52.4 | H14: 45.7 | I14: 40.7 | J14: 36.8 | K14: 33.7 | L14: 31.2 | M14: 29.1 | N14: 27.3 | O14: 25.8 | P14: 24.5 | Q14: 23.3 | R14: 22.3 | S14: 21.4 | T14: 20.6 | U14: 19.9 | W14: 23 | X14: 268.5 | Y14: 136.7 | Z14: 92.8 | AA14: 70.9 | AB14: 57.7 | AC14: 49 | AD14: 42.7 | AE14: 38 | AF14: 34.4 | AG14: 31.5 | AH14: 29.2 | AI14: 27.2 | AJ14: 25.5 | AK14: 24.1 | AL14: 22.9 | AM14: 21.8 | AN14: 20.9 | AO14: 20 | AP14: 19.3 | AQ14: 18.6
A15: 24 | B15: 291.4 | C15: 148.4 | D15: 100.7 | E15: 76.9 | F15: 62.7 | G15: 53.1 | H15: 46.4 | I15: 41.3 | J15: 37.4 | K15: 34.2 | L15: 31.6 | M15: 29.5 | N15: 27.7 | O15: 26.2 | P15: 24.8 | Q15: 23.7 | R15: 22.7 | S15: 21.8 | T15: 21 | U15: 20.2 | W15: 24 | X15: 272.5 | Y15: 138.8 | Z15: 94.2 | AA15: 71.9 | AB15: 58.6 | AC15: 49.7 | AD15: 43.4 | AE15: 38.6 | AF15: 34.9 | AG15: 32 | AH15: 29.6 | AI15: 27.6 | AJ15: 25.9 | AK15: 24.5 | AL15: 23.2 | AM15: 22.1 | AN15: 21.2 | AO15: 20.4 | AP15: 19.6 | AQ15: 18.9
A16: 25 | B16: 295.8 | C16: 150.6 | D16: 102.2 | E16: 78.1 | F16: 63.6 | G16: 53.9 | H16: 47.1 | I16: 41.9 | J16: 37.9 | K16: 34.7 | L16: 32.1 | M16: 29.9 | N16: 28.1 | O16: 26.6 | P16: 25.2 | Q16: 24 | R16: 23 | S16: 22.1 | T16: 21.3 | U16: 20.5 | W16: 25 | X16: 276.6 | Y16: 140.8 | Z16: 95.6 | AA16: 73 | AB16: 59.5 | AC16: 50.5 | AD16: 44 | AE16: 39.2 | AF16: 35.5 | AG16: 32.5 | AH16: 30 | AI16: 28 | AJ16: 26.3 | AK16: 24.8 | AL16: 23.6 | AM16: 22.5 | AN16: 21.5 | AO16: 20.7 | AP16: 19.9 | AQ16: 19.2
A17: 26 | B17: 300.2 | C17: 152.9 | D17: 103.8 | E17: 79.3 | F17: 64.5 | G17: 54.8 | H17: 47.8 | I17: 42.5 | J17: 38.5 | K17: 35.2 | L17: 32.6 | M17: 30.4 | N17: 28.5 | O17: 27 | P17: 25.6 | Q17: 24.4 | R17: 23.4 | S17: 22.4 | T17: 21.6 | U17: 20.9 | W17: 26 | X17: 280.7 | Y17: 143 | Z17: 97 | AA17: 74.1 | AB17: 60.4 | AC17: 51.2 | AD17: 44.7 | AE17: 39.8 | AF17: 36 | AG17: 33 | AH17: 30.5 | AI17: 28.4 | AJ17: 26.7 | AK17: 25.2 | AL17: 23.9 | AM17: 22.8 | AN17: 21.8 | AO17: 21 | AP17: 20.2 | AQ17: 19.5
A18: 27 | B18: 304.7 | C18: 155.2 | D18: 105.3 | E18: 80.4 | F18: 65.5 | G18: 55.6 | H18: 48.5 | I18: 43.2 | J18: 39.1 | K18: 35.8 | L18: 33.1 | M18: 30.9 | N18: 29 | O18: 27.4 | P18: 26 | Q18: 24.8 | R18: 23.7 | S18: 22.8 | T18: 21.9 | U18: 21.2 | W18: 27 | X18: 284.9 | Y18: 145.1 | Z18: 98.5 | AA18: 75.2 | AB18: 61.3 | AC18: 52 | AD18: 45.3 | AE18: 40.4 | AF18: 36.5 | AG18: 33.5 | AH18: 30.9 | AI18: 28.9 | AJ18: 27.1 | AK18: 25.6 | AL18: 24.3 | AM18: 23.2 | AN18: 22.2 | AO18: 21.3 | AP18: 20.5 | AQ18: 19.8
A19: 28 | B19: 309.3 | C19: 157.5 | D19: 106.9 | E19: 81.6 | F19: 66.5 | G19: 56.4 | H19: 49.2 | I19: 43.8 | J19: 39.7 | K19: 36.3 | L19: 33.6 | M19: 31.3 | N19: 29.4 | O19: 27.8 | P19: 26.4 | Q19: 25.1 | R19: 24.1 | S19: 23.1 | T19: 22.3 | U19: 21.5 | W19: 28 | X19: 289.2 | Y19: 147.3 | Z19: 100 | AA19: 76.3 | AB19: 62.2 | AC19: 52.8 | AD19: 46 | AE19: 41 | AF19: 37.1 | AG19: 34 | AH19: 31.4 | AI19: 29.3 | AJ19: 27.5 | AK19: 26 | AL19: 24.7 | AM19: 23.5 | AN19: 22.5 | AO19: 21.6 | AP19: 20.8 | AQ19: 20.1
A20: 29 | B20: 313.9 | C20: 159.8 | D20: 108.5 | E20: 82.9 | F20: 67.5 | G20: 57.3 | H20: 50 | I20: 44.5 | J20: 40.3 | K20: 36.9 | L20: 34.1 | M20: 31.8 | N20: 29.9 | O20: 28.2 | P20: 26.8 | Q20: 25.5 | R20: 24.4 | S20: 23.5 | T20: 22.6 | U20: 21.8 | W20: 29 | X20: 293.5 | Y20: 149.5 | Z20: 101.5 | AA20: 77.5 | AB20: 63.1 | AC20: 53.5 | AD20: 46.7 | AE20: 41.6 | AF20: 37.6 | AG20: 34.5 | AH20: 31.9 | AI20: 29.7 | AJ20: 27.9 | AK20: 26.4 | AL20: 25 | AM20: 23.9 | AN20: 22.9 | AO20: 21.9 | AP20: 21.1 | AQ20: 20.4
A21: 30 | B21: 318.6 | C21: 162.2 | D21: 110.1 | E21: 84.1 | F21: 68.5 | G21: 58.1 | H21: 50.7 | I21: 45.2 | J21: 40.9 | K21: 37.4 | L21: 34.6 | M21: 32.3 | N21: 30.3 | O21: 28.6 | P21: 27.2 | Q21: 25.9 | R21: 24.8 | S21: 23.8 | T21: 23 | U21: 22.2 | W21: 30 | X21: 297.9 | Y21: 151.7 | Z21: 103 | AA21: 78.7 | AB21: 64.1 | AC21: 54.3 | AD21: 47.4 | AE21: 42.2 | AF21: 38.2 | AG21: 35 | AH21: 32.4 | AI21: 30.2 | AJ21: 28.4 | AK21: 26.8 | AL21: 25.4 | AM21: 24.2 | AN21: 23.2 | AO21: 22.3 | AP21: 21.5 | AQ21: 20.7
A22: 31 | B22: 323.3 | C22: 164.6 | D22: 111.8 | E22: 85.4 | F22: 69.5 | G22: 59 | H22: 51.5 | I22: 45.8 | J22: 41.5 | K22: 38 | L22: 35.1 | M22: 32.8 | N22: 30.8 | O22: 29.1 | P22: 27.6 | Q22: 26.3 | R22: 25.2 | S22: 24.2 | T22: 23.3 | U22: 22.5 | W22: 31 | X22: 302.3 | Y22: 154 | Z22: 104.5 | AA22: 79.8 | AB22: 65 | AC22: 55.2 | AD22: 48.1 | AE22: 42.9 | AF22: 38.8 | AG22: 35.5 | AH22: 32.9 | AI22: 30.6 | AJ22: 28.8 | AK22: 27.2 | AL22: 25.8 | AM22: 24.6 | AN22: 23.6 | AO22: 22.6 | AP22: 21.8 | AQ22: 21.1
A23: 32 | B23: 328.1 | C23: 167.1 | D23: 113.4 | E23: 86.6 | F23: 70.6 | G23: 59.9 | H23: 52.2 | I23: 46.5 | J23: 42.1 | K23: 38.6 | L23: 35.7 | M23: 33.3 | N23: 31.2 | O23: 29.5 | P23: 28 | Q23: 26.7 | R23: 25.6 | S23: 24.6 | T23: 23.7 | U23: 22.9 | W23: 32 | X23: 306.8 | Y23: 156.2 | Z23: 106.1 | AA23: 81 | AB23: 66 | AC23: 56 | AD23: 48.9 | AE23: 43.5 | AF23: 39.4 | AG23: 36.1 | AH23: 33.4 | AI23: 31.1 | AJ23: 29.2 | AK23: 27.6 | AL23: 26.2 | AM23: 25 | AN23: 23.9 | AO23: 23 | AP23: 22.1 | AQ23: 21.4
A24: 33 | B24: 333 | C24: 169.6 | D24: 115.1 | E24: 87.9 | F24: 71.6 | G24: 60.8 | H24: 53 | I24: 47.2 | J24: 42.7 | K24: 39.1 | L24: 36.2 | M24: 33.8 | N24: 31.7 | O24: 30 | P24: 28.4 | Q24: 27.1 | R24: 26 | S24: 24.9 | T24: 24 | U24: 23.2 | W24: 33 | X24: 311.4 | Y24: 158.6 | Z24: 107.7 | AA24: 82.2 | AB24: 67 | AC24: 56.8 | AD24: 49.6 | AE24: 44.2 | AF24: 40 | AG24: 36.6 | AH24: 33.9 | AI24: 31.6 | AJ24: 29.7 | AK24: 28 | AL24: 26.6 | AM24: 25.4 | AN24: 24.3 | AO24: 23.3 | AP24: 22.5 | AQ24: 21.7
A25: 34 | B25: 337.9 | C25: 172.1 | D25: 116.8 | E25: 89.2 | F25: 72.7 | G25: 61.7 | H25: 53.8 | I25: 47.9 | J25: 43.4 | K25: 39.7 | L25: 36.8 | M25: 34.3 | N25: 32.2 | O25: 30.4 | P25: 28.9 | Q25: 27.5 | R25: 26.4 | S25: 25.3 | T25: 24.4 | U25: 23.6 | W25: 34 | X25: 316 | Y25: 160.9 | Z25: 109.3 | AA25: 83.5 | AB25: 68 | AC25: 57.7 | AD25: 50.3 | AE25: 44.8 | AF25: 40.6 | AG25: 37.2 | AH25: 34.4 | AI25: 32.1 | AJ25: 30.1 | AK25: 28.5 | AL25: 27 | AM25: 25.8 | AN25: 24.7 | AO25: 23.7 | AP25: 22.8 | AQ25: 22.1
A26: 35 | B26: 342.9 | C26: 174.6 | D26: 118.6 | E26: 90.6 | F26: 73.8 | G26: 62.6 | H26: 54.6 | I26: 48.7 | J26: 44 | K26: 40.3 | L26: 37.3 | M26: 34.8 | N26: 32.7 | O26: 30.9 | P26: 29.3 | Q26: 28 | R26: 26.8 | S26: 25.7 | T26: 24.8 | U26: 24 | W26: 35 | X26: 320.7 | Y26: 163.3 | Z26: 110.9 | AA26: 84.7 | AB26: 69 | AC26: 58.5 | AD26: 51.1 | AE26: 45.5 | AF26: 41.2 | AG26: 37.7 | AH26: 34.9 | AI26: 32.6 | AJ26: 30.6 | AK26: 28.9 | AL26: 27.4 | AM26: 26.2 | AN26: 25.1 | AO26: 24.1 | AP26: 23.2 | AQ26: 22.4
A27: 36 | B27: 348 | C27: 177.2 | D27: 120.3 | E27: 91.9 | F27: 74.9 | G27: 63.5 | H27: 55.4 | I27: 49.4 | J27: 44.7 | K27: 40.9 | L27: 37.9 | M27: 35.3 | N27: 33.2 | O27: 31.4 | P27: 29.8 | Q27: 28.4 | R27: 27.2 | S27: 26.1 | T27: 25.2 | U27: 24.4 | W27: 36 | X27: 325.5 | Y27: 165.8 | Z27: 112.6 | AA27: 86 | AB27: 70 | AC27: 59.4 | AD27: 51.9 | AE27: 46.2 | AF27: 41.8 | AG27: 38.3 | AH27: 35.4 | AI27: 33.1 | AJ27: 31 | AK27: 29.3 | AL27: 27.9 | AM27: 26.6 | AN27: 25.5 | AO27: 24.5 | AP27: 23.6 | AQ27: 22.8
A28: 37 | B28: 353.1 | C28: 179.8 | D28: 122.1 | E28: 93.3 | F28: 76 | G28: 64.5 | H28: 56.3 | I28: 50.1 | J28: 45.4 | K28: 41.6 | L28: 38.4 | M28: 35.9 | N28: 33.7 | O28: 31.8 | P28: 30.2 | Q28: 28.9 | R28: 27.6 | S28: 26.6 | T28: 25.6 | U28: 24.7 | W28: 37 | X28: 330.3 | Y28: 168.2 | Z28: 114.2 | AA28: 87.3 | AB28: 71.1 | AC28: 60.3 | AD28: 52.6 | AE28: 46.9 | AF28: 42.4 | AG28: 38.9 | AH28: 36 | AI28: 33.6 | AJ28: 31.5 | AK28: 29.8 | AL28: 28.3 | AM28: 27 | AN28: 25.9 | AO28: 24.8 | AP28: 24 | AQ28: 23.2
A29: 38 | B29: 358.3 | C29: 182.5 | D29: 123.9 | E29: 94.7 | F29: 77.1 | G29: 65.4 | H29: 57.1 | I29: 50.9 | J29: 46 | K29: 42.2 | L29: 39 | M29: 36.4 | N29: 34.2 | O29: 32.3 | P29: 30.7 | Q29: 29.3 | R29: 28.1 | S29: 27 | T29: 26 | U29: 25.2 | W29: 38 | X29: 335.2 | Y29: 170.7 | Z29: 115.9 | AA29: 88.6 | AB29: 72.2 | AC29: 61.2 | AD29: 53.4 | AE29: 47.6 | AF29: 43.1 | AG29: 39.5 | AH29: 36.5 | AI29: 34.1 | AJ29: 32 | AK29: 30.3 | AL29: 28.7 | AM29: 27.4 | AN29: 26.3 | AO29: 25.3 | AP29: 24.3 | AQ29: 23.5
A30: 39 | B30: 363.6 | C30: 185.2 | D30: 125.8 | E30: 96.1 | F30: 78.3 | G30: 66.4 | H30: 58 | I30: 51.6 | J30: 46.7 | K30: 42.8 | L30: 39.6 | M30: 37 | N30: 34.8 | O30: 32.9 | P30: 31.2 | Q30: 29.8 | R30: 28.5 | S30: 27.4 | T30: 26.4 | U30: 25.6 | W30: 39 | X30: 340.2 | Y30: 173.3 | Z30: 117.7 | AA30: 89.9 | AB30: 73.2 | AC30: 62.2 | AD30: 54.2 | AE30: 48.3 | AF30: 43.7 | AG30: 40.1 | AH30: 37.1 | AI30: 34.6 | AJ30: 32.5 | AK30: 30.7 | AL30: 29.2 | AM30: 27.9 | AN30: 26.7 | AO30: 25.7 | AP30: 24.7 | AQ30: 23.9
A31: 40 | B31: 369 | C31: 187.9 | D31: 127.6 | E31: 97.5 | F31: 79.4 | G31: 67.4 | H31: 58.8 | I31: 52.4 | J31: 47.5 | K31: 43.5 | L31: 40.2 | M31: 37.6 | N31: 35.3 | O31: 33.4 | P31: 31.7 | Q31: 30.3 | R31: 29 | S31: 27.9 | T31: 26.9 | W31: 40 | X31: 345.3 | Y31: 175.9 | Z31: 119.4 | AA31: 91.2 | AB31: 74.3 | AC31: 63.1 | AD31: 55.1 | AE31: 49.1 | AF31: 44.4 | AG31: 40.7 | AH31: 37.7 | AI31: 35.2 | AJ31: 33 | AK31: 31.2 | AL31: 29.7 | AM31: 28.3 | AN31: 27.1 | AO31: 26.1 | AP31: 25.2
A32: 41 | B32: 374.4 | C32: 190.7 | D32: 129.5 | E32: 98.9 | F32: 80.6 | G32: 68.4 | H32: 59.7 | I32: 53.2 | J32: 48.2 | K32: 44.2 | L32: 40.9 | M32: 38.2 | N32: 35.9 | O32: 33.9 | P32: 32.2 | Q32: 30.8 | R32: 29.5 | S32: 28.3 | W32: 41 | X32: 350.4 | Y32: 178.5 | Z32: 121.2 | AA32: 92.6 | AB32: 75.5 | AC32: 64.1 | AD32: 55.9 | AE32: 49.8 | AF32: 45.1 | AG32: 41.3 | AH32: 38.3 | AI32: 35.7 | AJ32: 33.6 | AK32: 31.7 | AL32: 30.2 | AM32: 28.8 | AN32: 27.6 | AO32: 26.5
A33: 42 | B33: 379.9 | C33: 193.5 | D33: 131.4 | E33: 100.4 | F33: 81.8 | G33: 69.5 | H33: 60.6 | I33: 54 | J33: 48.9 | K33: 44.9 | L33: 41.5 | M33: 38.8 | N33: 36.4 | O33: 34.5 | P33: 32.8 | Q33: 31.3 | R33: 30 | W33: 42 | X33: 355.7 | Y33: 181.2 | Z33: 123.1 | AA33: 94 | AB33: 76.6 | AC33: 65 | AD33: 56.8 | AE33: 50.6 | AF33: 45.8 | AG33: 42 | AH33: 38.9 | AI33: 36.3 | AJ33: 34.1 | AK33: 32.3 | AL33: 30.7 | AM33: 29.3 | AN33: 28.1
A34: 43 | B34: 385.5 | C34: 196.4 | D34: 133.4 | E34: 101.9 | F34: 83.1 | G34: 70.5 | H34: 61.6 | I34: 54.9 | J34: 49.7 | K34: 45.6 | L34: 42.2 | M34: 39.4 | N34: 37 | O34: 35 | P34: 33.3 | Q34: 31.8 | W34: 43 | X34: 361 | Y34: 183.9 | Z34: 124.9 | AA34: 95.5 | AB34: 77.8 | AC34: 66 | AD34: 57.7 | AE34: 51.4 | AF34: 46.5 | AG34: 42.7 | AH34: 39.5 | AI34: 36.9 | AJ34: 34.7 | AK34: 32.8 | AL34: 31.2 | AM34: 29.8
A35: 44 | B35: 391.2 | C35: 199.3 | D35: 135.4 | E35: 103.5 | F35: 84.3 | G35: 71.6 | H35: 62.5 | I35: 55.7 | J35: 50.5 | K35: 46.3 | L35: 42.9 | M35: 40 | N35: 37.6 | O35: 35.6 | P35: 33.9 | W35: 44 | X35: 366.4 | Y35: 186.7 | Z35: 126.8 | AA35: 96.9 | AB35: 79 | AC35: 67.1 | AD35: 58.6 | AE35: 52.2 | AF35: 47.3 | AG35: 43.4 | AH35: 40.2 | AI35: 37.5 | AJ35: 35.3 | AK35: 33.4 | AL35: 31.7
A36: 45 | B36: 396.9 | C36: 202.3 | D36: 137.4 | E36: 105 | F36: 85.6 | G36: 72.7 | H36: 63.5 | I36: 56.6 | J36: 51.3 | K36: 47 | L36: 43.6 | M36: 40.7 | N36: 38.3 | O36: 36.2 | W36: 45 | X36: 371.8 | Y36: 189.5 | Z36: 128.7 | AA36: 98.4 | AB36: 80.2 | AC36: 68.1 | AD36: 59.5 | AE36: 53 | AF36: 48 | AG36: 44.1 | AH36: 40.8 | AI36: 38.1 | AJ36: 35.9 | AK36: 33.9
A37: 46 | B37: 402.7 | C37: 205.2 | D37: 139.5 | E37: 106.6 | F37: 86.9 | G37: 73.8 | H37: 64.5 | I37: 57.5 | J37: 52.1 | K37: 47.8 | L37: 44.3 | M37: 41.4 | N37: 38.9 | W37: 46 | X37: 377.4 | Y37: 192.3 | Z37: 130.7 | AA37: 99.9 | AB37: 81.5 | AC37: 69.2 | AD37: 60.4 | AE37: 53.9 | AF37: 48.8 | AG37: 44.8 | AH37: 41.5 | AI37: 38.8 | AJ37: 36.5
A38: 47 | B38: 408.6 | C38: 208.3 | D38: 141.5 | E38: 108.2 | F38: 88.3 | G38: 75 | H38: 65.5 | I38: 58.4 | J38: 52.9 | K38: 48.6 | L38: 45 | M38: 42.1 | W38: 47 | X38: 383 | Y38: 195.2 | Z38: 132.7 | AA38: 101.4 | AB38: 82.7 | AC38: 70.3 | AD38: 61.4 | AE38: 54.8 | AF38: 49.6 | AG38: 45.5 | AH38: 42.2 | AI38: 39.4
A39: 48 | B39: 414.6 | C39: 211.4 | D39: 143.7 | E39: 109.9 | F39: 89.6 | G39: 76.1 | H39: 66.5 | I39: 59.4 | J39: 53.8 | K39: 49.4 | L39: 45.8 | W39: 48 | X39: 388.8 | Y39: 198.2 | Z39: 134.7 | AA39: 103 | AB39: 84 | AC39: 71.4 | AD39: 62.4 | AE39: 55.7 | AF39: 50.5 | AG39: 46.3 | AH39: 42.9
A40: 49 | B40: 420.7 | C40: 214.5 | D40: 145.8 | E40: 111.5 | F40: 91 | G40: 77.3 | H40: 67.6 | I40: 60.3 | J40: 54.7 | K40: 50.2 | W40: 49 | X40: 394.6 | Y40: 201.2 | Z40: 136.8 | AA40: 104.6 | AB40: 85.4 | AC40: 72.5 | AD40: 63.4 | AE40: 56.6 | AF40: 51.3 | AG40: 47.1
A41: 50 | B41: 426.9 | C41: 217.7 | D41: 148 | E41: 113.3 | F41: 92.4 | G41: 78.6 | H41: 68.7 | I41: 61.3 | J41: 55.6 | W41: 50 | X41: 400.6 | Y41: 204.3 | Z41: 138.9 | AA41: 106.3 | AB41: 86.7 | AC41: 73.7 | AD41: 64.4 | AE41: 57.5 | AF41: 52.2
A42: 51 | B42: 433.2 | C42: 221 | D42: 150.3 | E42: 115 | F42: 93.9 | G42: 79.8 | H42: 69.8 | I42: 62.3 | W42: 51 | X42: 406.6 | Y42: 207.4 | Z42: 141.1 | AA42: 107.9 | AB42: 88.1 | AC42: 74.9 | AD42: 65.5 | AE42: 58.5
A43: 52 | B43: 439.6 | C43: 224.3 | D43: 152.6 | E43: 116.8 | F43: 95.3 | G43: 81.1 | H43: 70.9 | W43: 52 | X43: 412.8 | Y43: 210.6 | Z43: 143.3 | AA43: 109.7 | AB43: 89.5 | AC43: 76.1 | AD43: 66.6
A44: 53 | B44: 446.1 | C44: 227.7 | D44: 154.9 | E44: 118.6 | F44: 96.8 | G44: 82.4 | W44: 53 | X44: 419.1 | Y44: 213.9 | Z44: 145.6 | AA44: 111.4 | AB44: 91 | AC44: 77.4
A45: 54 | B45: 452.8 | C45: 231.1 | D45: 157.3 | E45: 120.4 | F45: 98.4 | W45: 54 | X45: 425.6 | Y45: 217.3 | Z45: 147.9 | AA45: 113.2 | AB45: 92.5
A46: 55 | B46: 459.5 | C46: 234.6 | D46: 159.7 | E46: 122.3 | W46: 55 | X46: 432.2 | Y46: 220.7 | Z46: 150.2 | AA46: 115.1
A47: 56 | B47: 466.5 | C47: 238.3 | D47: 162.2 | W47: 56 | X47: 439.1 | Y47: 224.2 | Z47: 152.7
A48: 57 | B48: 473.8 | C48: 242 | W48: 57 | X48: 446.2 | Y48: 227.9
A49: 58 | B49: 481.3 | W49: 58 | X49: 453.6

Sheet NRA65 (hidden)
U1: Date Factors Issued to Client | V1: 2023-10-17
A2: Regular Contribution Elections | W2: Regular Contribution Elections
A3: Table D65: Personal and Dependant’s Benefits, NRA 65 | K3: x-709 | W3: Table P65: Personal Benefits, NRA 65 | AH3: x-708
A5: Age when notice of election given â | B5: Monthly contribution to purchase £250 of APB at date of election, £ | W5: Age when notice of election given â | X5: Monthly contribution to purchase £250 of APB at date of election, £
A6: Payment period (in years) à | B6: 1 | C6: 2 | D6: 3 | E6: 4 | F6: 5 | G6: 6 | H6: 7 | I6: 8 | J6: 9 | K6: 10 | L6: 11 | M6: 12 | N6: 13 | O6: 14 | P6: 15 | Q6: 16 | R6: 17 | S6: 18 | T6: 19 | U6: 20 | W6: Payment period (in years) à | X6: 1 | Y6: 2 | Z6: 3 | AA6: 4 | AB6: 5 | AC6: 6 | AD6: 7 | AE6: 8 | AF6: 9 | AG6: 10 | AH6: 11 | AI6: 12 | AJ6: 13 | AK6: 14 | AL6: 15 | AM6: 16 | AN6: 17 | AO6: 18 | AP6: 19 | AQ6: 20
A7: 16 | W7: 16
A8: 17 | W8: 17
A9: 18 | W9: 18
A10: 19 | W10: 19
A11: 20 | B11: 227.5 | C11: 115.9 | D11: 78.6 | E11: 60.1 | F11: 48.9 | G11: 41.5 | H11: 36.2 | I11: 32.2 | J11: 29.2 | K11: 26.7 | L11: 24.7 | M11: 23 | N11: 21.6 | O11: 20.4 | P11: 19.4 | Q11: 18.5 | R11: 17.7 | S11: 17 | T11: 16.3 | U11: 15.8 | W11: 20 | X11: 209.5 | Y11: 106.7 | Z11: 72.4 | AA11: 55.3 | AB11: 45 | AC11: 38.2 | AD11: 33.3 | AE11: 29.7 | AF11: 26.8 | AG11: 24.6 | AH11: 22.7 | AI11: 21.2 | AJ11: 19.9 | AK11: 18.8 | AL11: 17.8 | AM11: 17 | AN11: 16.3 | AO11: 15.6 | AP11: 15.1 | AQ11: 14.5
A12: 21 | B12: 230.9 | C12: 117.6 | D12: 79.8 | E12: 60.9 | F12: 49.6 | G12: 42.1 | H12: 36.7 | I12: 32.7 | J12: 29.6 | K12: 27.1 | L12: 25.1 | M12: 23.4 | N12: 21.9 | O12: 20.7 | P12: 19.7 | Q12: 18.8 | R12: 17.9 | S12: 17.2 | T12: 16.6 | U12: 16 | W12: 21 | X12: 212.6 | Y12: 108.2 | Z12: 73.5 | AA12: 56.1 | AB12: 45.7 | AC12: 38.8 | AD12: 33.8 | AE12: 30.1 | AF12: 27.2 | AG12: 24.9 | AH12: 23.1 | AI12: 21.5 | AJ12: 20.2 | AK12: 19.1 | AL12: 18.1 | AM12: 17.3 | AN12: 16.5 | AO12: 15.9 | AP12: 15.3 | AQ12: 14.8
A13: 22 | B13: 234.3 | C13: 119.3 | D13: 81 | E13: 61.8 | F13: 50.4 | G13: 42.7 | H13: 37.3 | I13: 33.2 | J13: 30 | K13: 27.5 | L13: 25.4 | M13: 23.7 | N13: 22.3 | O13: 21 | P13: 20 | Q13: 19 | R13: 18.2 | S13: 17.5 | T13: 16.8 | U13: 16.3 | W13: 22 | X13: 215.7 | Y13: 109.8 | Z13: 74.6 | AA13: 56.9 | AB13: 46.4 | AC13: 39.3 | AD13: 34.3 | AE13: 30.6 | AF13: 27.6 | AG13: 25.3 | AH13: 23.4 | AI13: 21.8 | AJ13: 20.5 | AK13: 19.4 | AL13: 18.4 | AM13: 17.5 | AN13: 16.8 | AO13: 16.1 | AP13: 15.5 | AQ13: 15
A14: 23 | B14: 237.7 | C14: 121.1 | D14: 82.2 | E14: 62.8 | F14: 51.1 | G14: 43.4 | H14: 37.8 | I14: 33.7 | J14: 30.5 | K14: 27.9 | L14: 25.8 | M14: 24.1 | N14: 22.6 | O14: 21.3 | P14: 20.3 | Q14: 19.3 | R14: 18.5 | S14: 17.7 | T14: 17.1 | U14: 16.5 | W14: 23 | X14: 218.9 | Y14: 111.5 | Z14: 75.7 | AA14: 57.8 | AB14: 47.1 | AC14: 39.9 | AD14: 34.8 | AE14: 31 | AF14: 28.1 | AG14: 25.7 | AH14: 23.8 | AI14: 22.2 | AJ14: 20.8 | AK14: 19.6 | AL14: 18.6 | AM14: 17.8 | AN14: 17 | AO14: 16.3 | AP14: 15.7 | AQ14: 15.2
A15: 24 | B15: 241.2 | C15: 122.8 | D15: 83.4 | E15: 63.7 | F15: 51.9 | G15: 44 | H15: 38.4 | I15: 34.2 | J15: 30.9 | K15: 28.3 | L15: 26.2 | M15: 24.4 | N15: 22.9 | O15: 21.7 | P15: 20.6 | Q15: 19.6 | R15: 18.8 | S15: 18 | T15: 17.3 | U15: 16.7 | W15: 24 | X15: 222.1 | Y15: 113.1 | Z15: 76.8 | AA15: 58.6 | AB15: 47.7 | AC15: 40.5 | AD15: 35.3 | AE15: 31.5 | AF15: 28.5 | AG15: 26.1 | AH15: 24.1 | AI15: 22.5 | AJ15: 21.1 | AK15: 19.9 | AL15: 18.9 | AM15: 18 | AN15: 17.3 | AO15: 16.6 | AP15: 16 | AQ15: 15.4
A16: 25 | B16: 244.8 | C16: 124.6 | D16: 84.6 | E16: 64.6 | F16: 52.6 | G16: 44.6 | H16: 38.9 | I16: 34.7 | J16: 31.4 | K16: 28.7 | L16: 26.6 | M16: 24.8 | N16: 23.3 | O16: 22 | P16: 20.9 | Q16: 19.9 | R16: 19 | S16: 18.3 | T16: 17.6 | U16: 17 | W16: 25 | X16: 225.3 | Y16: 114.7 | Z16: 77.9 | AA16: 59.5 | AB16: 48.4 | AC16: 41.1 | AD16: 35.9 | AE16: 31.9 | AF16: 28.9 | AG16: 26.5 | AH16: 24.5 | AI16: 22.8 | AJ16: 21.4 | AK16: 20.2 | AL16: 19.2 | AM16: 18.3 | AN16: 17.5 | AO16: 16.8 | AP16: 16.2 | AQ16: 15.7
A17: 26 | B17: 248.3 | C17: 126.5 | D17: 85.8 | E17: 65.6 | F17: 53.4 | G17: 45.3 | H17: 39.5 | I17: 35.2 | J17: 31.8 | K17: 29.2 | L17: 27 | M17: 25.1 | N17: 23.6 | O17: 22.3 | P17: 21.2 | Q17: 20.2 | R17: 19.3 | S17: 18.5 | T17: 17.9 | U17: 17.3 | W17: 26 | X17: 228.6 | Y17: 116.4 | Z17: 79 | AA17: 60.4 | AB17: 49.2 | AC17: 41.7 | AD17: 36.4 | AE17: 32.4 | AF17: 29.3 | AG17: 26.8 | AH17: 24.8 | AI17: 23.2 | AJ17: 21.7 | AK17: 20.5 | AL17: 19.5 | AM17: 18.6 | AN17: 17.8 | AO17: 17.1 | AP17: 16.4 | AQ17: 15.9
A18: 27 | B18: 252 | C18: 128.3 | D18: 87.1 | E18: 66.5 | F18: 54.2 | G18: 46 | H18: 40.1 | I18: 35.7 | J18: 32.3 | K18: 29.6 | L18: 27.4 | M18: 25.5 | N18: 24 | O18: 22.6 | P18: 21.5 | Q18: 20.5 | R18: 19.6 | S18: 18.8 | T18: 18.1 | U18: 17.5 | W18: 27 | X18: 232 | Y18: 118.1 | Z18: 80.2 | AA18: 61.2 | AB18: 49.9 | AC18: 42.3 | AD18: 36.9 | AE18: 32.9 | AF18: 29.7 | AG18: 27.2 | AH18: 25.2 | AI18: 23.5 | AJ18: 22.1 | AK18: 20.8 | AL18: 19.8 | AM18: 18.9 | AN18: 18 | AO18: 17.3 | AP18: 16.7 | AQ18: 16.1
A19: 28 | B19: 255.7 | C19: 130.2 | D19: 88.4 | E19: 67.5 | F19: 55 | G19: 46.6 | H19: 40.7 | I19: 36.2 | J19: 32.8 | K19: 30 | L19: 27.8 | M19: 25.9 | N19: 24.3 | O19: 23 | P19: 21.8 | Q19: 20.8 | R19: 19.9 | S19: 19.1 | T19: 18.4 | U19: 17.8 | W19: 28 | X19: 235.3 | Y19: 119.8 | Z19: 81.4 | AA19: 62.1 | AB19: 50.6 | AC19: 42.9 | AD19: 37.5 | AE19: 33.4 | AF19: 30.2 | AG19: 27.6 | AH19: 25.6 | AI19: 23.8 | AJ19: 22.4 | AK19: 21.1 | AL19: 20.1 | AM19: 19.1 | AN19: 18.3 | AO19: 17.6 | AP19: 16.9 | AQ19: 16.4
A20: 29 | B20: 259.4 | C20: 132.1 | D20: 89.7 | E20: 68.5 | F20: 55.8 | G20: 47.3 | H20: 41.3 | I20: 36.8 | J20: 33.3 | K20: 30.5 | L20: 28.2 | M20: 26.3 | N20: 24.7 | O20: 23.3 | P20: 22.1 | Q20: 21.1 | R20: 20.2 | S20: 19.4 | T20: 18.7 | U20: 18 | W20: 29 | X20: 238.8 | Y20: 121.6 | Z20: 82.5 | AA20: 63 | AB20: 51.3 | AC20: 43.6 | AD20: 38 | AE20: 33.8 | AF20: 30.6 | AG20: 28 | AH20: 25.9 | AI20: 24.2 | AJ20: 22.7 | AK20: 21.5 | AL20: 20.4 | AM20: 19.4 | AN20: 18.6 | AO20: 17.9 | AP20: 17.2 | AQ20: 16.6
A21: 30 | B21: 263.1 | C21: 134 | D21: 91 | E21: 69.5 | F21: 56.6 | G21: 48 | H21: 41.9 | I21: 37.3 | J21: 33.7 | K21: 30.9 | L21: 28.6 | M21: 26.7 | N21: 25 | O21: 23.7 | P21: 22.5 | Q21: 21.4 | R21: 20.5 | S21: 19.7 | T21: 19 | U21: 18.3 | W21: 30 | X21: 242.2 | Y21: 123.4 | Z21: 83.7 | AA21: 64 | AB21: 52.1 | AC21: 44.2 | AD21: 38.6 | AE21: 34.3 | AF21: 31.1 | AG21: 28.5 | AH21: 26.3 | AI21: 24.5 | AJ21: 23.1 | AK21: 21.8 | AL21: 20.7 | AM21: 19.7 | AN21: 18.9 | AO21: 18.1 | AP21: 17.5 | AQ21: 16.9
A22: 31 | B22: 267 | C22: 135.9 | D22: 92.3 | E22: 70.5 | F22: 57.4 | G22: 48.7 | H22: 42.5 | I22: 37.9 | J22: 34.2 | K22: 31.4 | L22: 29 | M22: 27.1 | N22: 25.4 | O22: 24 | P22: 22.8 | Q22: 21.7 | R22: 20.8 | S22: 20 | T22: 19.2 | U22: 18.6 | W22: 31 | X22: 245.8 | Y22: 125.2 | Z22: 85 | AA22: 64.9 | AB22: 52.9 | AC22: 44.8 | AD22: 39.1 | AE22: 34.8 | AF22: 31.5 | AG22: 28.9 | AH22: 26.7 | AI22: 24.9 | AJ22: 23.4 | AK22: 22.1 | AL22: 21 | AM22: 20 | AN22: 19.1 | AO22: 18.4 | AP22: 17.7 | AQ22: 17.1
A23: 32 | B23: 270.8 | C23: 137.9 | D23: 93.6 | E23: 71.5 | F23: 58.2 | G23: 49.4 | H23: 43.1 | I23: 38.4 | J23: 34.7 | K23: 31.8 | L23: 29.4 | M23: 27.5 | N23: 25.8 | O23: 24.4 | P23: 23.1 | Q23: 22.1 | R23: 21.1 | S23: 20.3 | T23: 19.5 | U23: 18.9 | W23: 32 | X23: 249.3 | Y23: 127 | Z23: 86.2 | AA23: 65.8 | AB23: 53.6 | AC23: 45.5 | AD23: 39.7 | AE23: 35.4 | AF23: 32 | AG23: 29.3 | AH23: 27.1 | AI23: 25.3 | AJ23: 23.7 | AK23: 22.4 | AL23: 21.3 | AM23: 20.3 | AN23: 19.4 | AO23: 18.7 | AP23: 18 | AQ23: 17.4
A24: 33 | B24: 274.7 | C24: 139.9 | D24: 95 | E24: 72.5 | F24: 59.1 | G24: 50.1 | H24: 43.7 | I24: 39 | J24: 35.3 | K24: 32.3 | L24: 29.9 | M24: 27.9 | N24: 26.2 | O24: 24.7 | P24: 23.5 | Q24: 22.4 | R24: 21.4 | S24: 20.6 | T24: 19.8 | U24: 19.2 | W24: 33 | X24: 252.9 | Y24: 128.8 | Z24: 87.5 | AA24: 66.8 | AB24: 54.4 | AC24: 46.2 | AD24: 40.3 | AE24: 35.9 | AF24: 32.5 | AG24: 29.7 | AH24: 27.5 | AI24: 25.7 | AJ24: 24.1 | AK24: 22.8 | AL24: 21.6 | AM24: 20.6 | AN24: 19.7 | AO24: 19 | AP24: 18.3 | AQ24: 17.6
A25: 34 | B25: 278.7 | C25: 141.9 | D25: 96.4 | E25: 73.6 | F25: 59.9 | G25: 50.9 | H25: 44.4 | I25: 39.5 | J25: 35.8 | K25: 32.8 | L25: 30.3 | M25: 28.3 | N25: 26.6 | O25: 25.1 | P25: 23.8 | Q25: 22.7 | R25: 21.8 | S25: 20.9 | T25: 20.1 | U25: 19.5 | W25: 34 | X25: 256.6 | Y25: 130.7 | Z25: 88.7 | AA25: 67.8 | AB25: 55.2 | AC25: 46.8 | AD25: 40.9 | AE25: 36.4 | AF25: 32.9 | AG25: 30.2 | AH25: 27.9 | AI25: 26 | AJ25: 24.4 | AK25: 23.1 | AL25: 21.9 | AM25: 20.9 | AN25: 20 | AO25: 19.2 | AP25: 18.5 | AQ25: 17.9
A26: 35 | B26: 282.7 | C26: 144 | D26: 97.7 | E26: 74.7 | F26: 60.8 | G26: 51.6 | H26: 45 | I26: 40.1 | J26: 36.3 | K26: 33.2 | L26: 30.8 | M26: 28.7 | N26: 26.9 | O26: 25.5 | P26: 24.2 | Q26: 23.1 | R26: 22.1 | S26: 21.2 | T26: 20.4 | U26: 19.8 | W26: 35 | X26: 260.3 | Y26: 132.6 | Z26: 90 | AA26: 68.7 | AB26: 56 | AC26: 47.5 | AD26: 41.5 | AE26: 36.9 | AF26: 33.4 | AG26: 30.6 | AH26: 28.3 | AI26: 26.4 | AJ26: 24.8 | AK26: 23.4 | AL26: 22.3 | AM26: 21.2 | AN26: 20.3 | AO26: 19.5 | AP26: 18.8 | AQ26: 18.2
A27: 36 | B27: 286.7 | C27: 146 | D27: 99.2 | E27: 75.7 | F27: 61.7 | G27: 52.3 | H27: 45.7 | I27: 40.7 | J27: 36.8 | K27: 33.7 | L27: 31.2 | M27: 29.1 | N27: 27.3 | O27: 25.8 | P27: 24.5 | Q27: 23.4 | R27: 22.4 | S27: 21.5 | T27: 20.8 | U27: 20.1 | W27: 36 | X27: 264.1 | Y27: 134.5 | Z27: 91.3 | AA27: 69.7 | AB27: 56.8 | AC27: 48.2 | AD27: 42.1 | AE27: 37.5 | AF27: 33.9 | AG27: 31.1 | AH27: 28.7 | AI27: 26.8 | AJ27: 25.2 | AK27: 23.8 | AL27: 22.6 | AM27: 21.6 | AN27: 20.6 | AO27: 19.8 | AP27: 19.1 | AQ27: 18.5
A28: 37 | B28: 290.8 | C28: 148.1 | D28: 100.6 | E28: 76.8 | F28: 62.6 | G28: 53.1 | H28: 46.3 | I28: 41.3 | J28: 37.4 | K28: 34.2 | L28: 31.7 | M28: 29.5 | N28: 27.8 | O28: 26.2 | P28: 24.9 | Q28: 23.8 | R28: 22.8 | S28: 21.9 | T28: 21.1 | U28: 20.4 | W28: 37 | X28: 267.9 | Y28: 136.4 | Z28: 92.6 | AA28: 70.8 | AB28: 57.6 | AC28: 48.9 | AD28: 42.7 | AE28: 38 | AF28: 34.4 | AG28: 31.5 | AH28: 29.2 | AI28: 27.2 | AJ28: 25.6 | AK28: 24.2 | AL28: 22.9 | AM28: 21.9 | AN28: 21 | AO28: 20.1 | AP28: 19.4 | AQ28: 18.8
A29: 38 | B29: 295 | C29: 150.2 | D29: 102 | E29: 77.9 | F29: 63.5 | G29: 53.9 | H29: 47 | I29: 41.9 | J29: 37.9 | K29: 34.7 | L29: 32.1 | M29: 30 | N29: 28.2 | O29: 26.6 | P29: 25.3 | Q29: 24.1 | R29: 23.1 | S29: 22.2 | T29: 21.4 | U29: 20.7 | W29: 38 | X29: 271.7 | Y29: 138.4 | Z29: 94 | AA29: 71.8 | AB29: 58.5 | AC29: 49.6 | AD29: 43.3 | AE29: 38.6 | AF29: 34.9 | AG29: 32 | AH29: 29.6 | AI29: 27.6 | AJ29: 26 | AK29: 24.5 | AL29: 23.3 | AM29: 22.2 | AN29: 21.3 | AO29: 20.5 | AP29: 19.7 | AQ29: 19.1
A30: 39 | B30: 299.2 | C30: 152.4 | D30: 103.5 | E30: 79 | F30: 64.4 | G30: 54.6 | H30: 47.7 | I30: 42.5 | J30: 38.5 | K30: 35.2 | L30: 32.6 | M30: 30.4 | N30: 28.6 | O30: 27 | P30: 25.7 | Q30: 24.5 | R30: 23.5 | S30: 22.6 | T30: 21.8 | U30: 21 | W30: 39 | X30: 275.7 | Y30: 140.4 | Z30: 95.3 | AA30: 72.8 | AB30: 59.3 | AC30: 50.4 | AD30: 43.9 | AE30: 39.2 | AF30: 35.4 | AG30: 32.5 | AH30: 30 | AI30: 28 | AJ30: 26.3 | AK30: 24.9 | AL30: 23.7 | AM30: 22.6 | AN30: 21.6 | AO30: 20.8 | AP30: 20 | AQ30: 19.4
A31: 40 | B31: 303.4 | C31: 154.6 | D31: 105 | E31: 80.2 | F31: 65.3 | G31: 55.4 | H31: 48.4 | I31: 43.1 | J31: 39 | K31: 35.8 | L31: 33.1 | M31: 30.9 | N31: 29 | O31: 27.4 | P31: 26.1 | Q31: 24.9 | R31: 23.8 | S31: 22.9 | T31: 22.1 | U31: 21.4 | W31: 40 | X31: 279.6 | Y31: 142.4 | Z31: 96.7 | AA31: 73.9 | AB31: 60.2 | AC31: 51.1 | AD31: 44.6 | AE31: 39.7 | AF31: 36 | AG31: 33 | AH31: 30.5 | AI31: 28.5 | AJ31: 26.8 | AK31: 25.3 | AL31: 24 | AM31: 22.9 | AN31: 22 | AO31: 21.1 | AP31: 20.4 | AQ31: 19.7
A32: 41 | B32: 307.8 | C32: 156.8 | D32: 106.5 | E32: 81.3 | F32: 66.3 | G32: 56.2 | H32: 49.1 | I32: 43.8 | J32: 39.6 | K32: 36.3 | L32: 33.6 | M32: 31.4 | N32: 29.5 | O32: 27.9 | P32: 26.5 | Q32: 25.3 | R32: 24.2 | S32: 23.3 | T32: 22.5 | U32: 21.7 | W32: 41 | X32: 283.6 | Y32: 144.5 | Z32: 98.1 | AA32: 75 | AB32: 61.1 | AC32: 51.8 | AD32: 45.3 | AE32: 40.3 | AF32: 36.5 | AG32: 33.5 | AH32: 31 | AI32: 28.9 | AJ32: 27.2 | AK32: 25.7 | AL32: 24.4 | AM32: 23.3 | AN32: 22.3 | AO32: 21.5 | AP32: 20.7 | AQ32: 20
A33: 42 | B33: 312.1 | C33: 159 | D33: 108 | E33: 82.5 | F33: 67.2 | G33: 57.1 | H33: 49.8 | I33: 44.4 | J33: 40.2 | K33: 36.8 | L33: 34.1 | M33: 31.8 | N33: 29.9 | O33: 28.3 | P33: 26.9 | Q33: 25.7 | R33: 24.6 | S33: 23.7 | T33: 22.8 | U33: 22.1 | W33: 42 | X33: 287.7 | Y33: 146.6 | Z33: 99.5 | AA33: 76.1 | AB33: 62 | AC33: 52.6 | AD33: 45.9 | AE33: 40.9 | AF33: 37.1 | AG33: 34 | AH33: 31.4 | AI33: 29.4 | AJ33: 27.6 | AK33: 26.1 | AL33: 24.8 | AM33: 23.7 | AN33: 22.7 | AO33: 21.8 | AP33: 21.1 | AQ33: 20.4
A34: 43 | B34: 316.5 | C34: 161.3 | D34: 109.5 | E34: 83.7 | F34: 68.2 | G34: 57.9 | H34: 50.6 | I34: 45.1 | J34: 40.8 | K34: 37.4 | L34: 34.6 | M34: 32.3 | N34: 30.4 | O34: 28.8 | P34: 27.3 | Q34: 26.1 | R34: 25 | S34: 24.1 | T34: 23.2 | U34: 22.5 | W34: 43 | X34: 291.9 | Y34: 148.7 | Z34: 101 | AA34: 77.2 | AB34: 62.9 | AC34: 53.4 | AD34: 46.6 | AE34: 41.6 | AF34: 37.6 | AG34: 34.5 | AH34: 31.9 | AI34: 29.8 | AJ34: 28 | AK34: 26.5 | AL34: 25.2 | AM34: 24.1 | AN34: 23.1 | AO34: 22.2 | AP34: 21.4 | AQ34: 20.7
A35: 44 | B35: 321 | C35: 163.5 | D35: 111.1 | E35: 84.9 | F35: 69.2 | G35: 58.8 | H35: 51.3 | I35: 45.7 | J35: 41.4 | K35: 38 | L35: 35.2 | M35: 32.8 | N35: 30.9 | O35: 29.2 | P35: 27.8 | Q35: 26.5 | R35: 25.4 | S35: 24.5 | T35: 23.6 | U35: 22.9 | W35: 44 | X35: 296.1 | Y35: 150.8 | Z35: 102.5 | AA35: 78.3 | AB35: 63.8 | AC35: 54.2 | AD35: 47.3 | AE35: 42.2 | AF35: 38.2 | AG35: 35 | AH35: 32.4 | AI35: 30.3 | AJ35: 28.5 | AK35: 27 | AL35: 25.6 | AM35: 24.5 | AN35: 23.5 | AO35: 22.6 | AP35: 21.8 | AQ35: 21.1
A36: 45 | B36: 325.5 | C36: 165.9 | D36: 112.7 | E36: 86.1 | F36: 70.2 | G36: 59.6 | H36: 52.1 | I36: 46.4 | J36: 42.1 | K36: 38.6 | L36: 35.7 | M36: 33.4 | N36: 31.4 | O36: 29.7 | P36: 28.2 | Q36: 27 | R36: 25.9 | S36: 24.9 | T36: 24 | U36: 23.2 | W36: 45 | X36: 300.3 | Y36: 153 | Z36: 104 | AA36: 79.4 | AB36: 64.8 | AC36: 55 | AD36: 48 | AE36: 42.8 | AF36: 38.8 | AG36: 35.6 | AH36: 33 | AI36: 30.8 | AJ36: 29 | AK36: 27.4 | AL36: 26 | AM36: 24.9 | AN36: 23.9 | AO36: 23 | AP36: 22.2 | AQ36: 21.4
A37: 46 | B37: 330 | C37: 168.2 | D37: 114.3 | E37: 87.4 | F37: 71.2 | G37: 60.5 | H37: 52.8 | I37: 47.1 | J37: 42.7 | K37: 39.2 | L37: 36.3 | M37: 33.9 | N37: 31.9 | O37: 30.2 | P37: 28.7 | Q37: 27.4 | R37: 26.3 | S37: 25.3 | T37: 24.4 | W37: 46 | X37: 304.6 | Y37: 155.2 | Z37: 105.5 | AA37: 80.6 | AB37: 65.7 | AC37: 55.8 | AD37: 48.8 | AE37: 43.5 | AF37: 39.4 | AG37: 36.1 | AH37: 33.5 | AI37: 31.3 | AJ37: 29.4 | AK37: 27.8 | AL37: 26.5 | AM37: 25.3 | AN37: 24.3 | AO37: 23.4 | AP37: 22.5
A38: 47 | B38: 334.6 | C38: 170.5 | D38: 115.9 | E38: 88.6 | F38: 72.3 | G38: 61.4 | H38: 53.6 | I38: 47.8 | J38: 43.3 | K38: 39.8 | L38: 36.9 | M38: 34.4 | N38: 32.4 | O38: 30.7 | P38: 29.2 | Q38: 27.9 | R38: 26.7 | S38: 25.7 | W38: 47 | X38: 308.9 | Y38: 157.4 | Z38: 107 | AA38: 81.8 | AB38: 66.7 | AC38: 56.7 | AD38: 49.5 | AE38: 44.2 | AF38: 40 | AG38: 36.7 | AH38: 34 | AI38: 31.8 | AJ38: 29.9 | AK38: 28.3 | AL38: 26.9 | AM38: 25.7 | AN38: 24.7 | AO38: 23.8
A39: 48 | B39: 339.2 | C39: 172.9 | D39: 117.5 | E39: 89.9 | F39: 73.3 | G39: 62.3 | H39: 54.4 | I39: 48.6 | J39: 44 | K39: 40.4 | L39: 37.4 | M39: 35 | N39: 32.9 | O39: 31.2 | P39: 29.7 | Q39: 28.3 | R39: 27.2 | W39: 48 | X39: 313.3 | Y39: 159.7 | Z39: 108.6 | AA39: 83 | AB39: 67.7 | AC39: 57.5 | AD39: 50.3 | AE39: 44.9 | AF39: 40.6 | AG39: 37.3 | AH39: 34.6 | AI39: 32.3 | AJ39: 30.4 | AK39: 28.8 | AL39: 27.4 | AM39: 26.2 | AN39: 25.1
A40: 49 | B40: 343.9 | C40: 175.3 | D40: 119.2 | E40: 91.2 | F40: 74.4 | G40: 63.2 | H40: 55.3 | I40: 49.3 | J40: 44.7 | K40: 41 | L40: 38 | M40: 35.5 | N40: 33.5 | O40: 31.7 | P40: 30.1 | Q40: 28.8 | W40: 49 | X40: 317.7 | Y40: 162 | Z40: 110.1 | AA40: 84.2 | AB40: 68.7 | AC40: 58.4 | AD40: 51 | AE40: 45.5 | AF40: 41.3 | AG40: 37.9 | AH40: 35.1 | AI40: 32.8 | AJ40: 30.9 | AK40: 29.3 | AL40: 27.9 | AM40: 26.6
A41: 50 | B41: 348.6 | C41: 177.8 | D41: 120.9 | E41: 92.5 | F41: 75.5 | G41: 64.1 | H41: 56.1 | I41: 50 | J41: 45.4 | K41: 41.7 | L41: 38.6 | M41: 36.1 | N41: 34 | O41: 32.2 | P41: 30.6 | W41: 50 | X41: 322.2 | Y41: 164.3 | Z41: 111.7 | AA41: 85.5 | AB41: 69.7 | AC41: 59.3 | AD41: 51.8 | AE41: 46.3 | AF41: 41.9 | AG41: 38.5 | AH41: 35.7 | AI41: 33.4 | AJ41: 31.4 | AK41: 29.8 | AL41: 28.3
A42: 51 | B42: 353.3 | C42: 180.2 | D42: 122.6 | E42: 93.8 | F42: 76.6 | G42: 65.1 | H42: 56.9 | I42: 50.8 | J42: 46.1 | K42: 42.3 | L42: 39.2 | M42: 36.7 | N42: 34.5 | O42: 32.7 | W42: 51 | X42: 326.7 | Y42: 166.6 | Z42: 113.3 | AA42: 86.7 | AB42: 70.8 | AC42: 60.2 | AD42: 52.6 | AE42: 47 | AF42: 42.6 | AG42: 39.1 | AH42: 36.3 | AI42: 33.9 | AJ42: 31.9 | AK42: 30.3
A43: 52 | B43: 358.1 | C43: 182.7 | D43: 124.3 | E43: 95.1 | F43: 77.7 | G43: 66 | H43: 57.8 | I43: 51.6 | J43: 46.8 | K43: 43 | L43: 39.9 | M43: 37.3 | N43: 35.1 | W43: 52 | X43: 331.3 | Y43: 169 | Z43: 115 | AA43: 88 | AB43: 71.8 | AC43: 61.1 | AD43: 53.4 | AE43: 47.7 | AF43: 43.3 | AG43: 39.7 | AH43: 36.9 | AI43: 34.5 | AJ43: 32.5
A44: 53 | B44: 362.9 | C44: 185.2 | D44: 126 | E44: 96.5 | F44: 78.8 | G44: 67 | H44: 58.6 | I44: 52.4 | J44: 47.5 | K44: 43.6 | L44: 40.5 | M44: 37.9 | W44: 53 | X44: 335.9 | Y44: 171.4 | Z44: 116.7 | AA44: 89.3 | AB44: 72.9 | AC44: 62 | AD44: 54.3 | AE44: 48.5 | AF44: 44 | AG44: 40.4 | AH44: 37.5 | AI44: 35.1
A45: 54 | B45: 367.9 | C45: 187.8 | D45: 127.8 | E45: 97.9 | F45: 79.9 | G45: 68 | H45: 59.5 | I45: 53.1 | J45: 48.2 | K45: 44.3 | L45: 41.1 | W45: 54 | X45: 340.7 | Y45: 173.9 | Z45: 118.4 | AA45: 90.6 | AB45: 74 | AC45: 63 | AD45: 55.1 | AE45: 49.2 | AF45: 44.7 | AG45: 41 | AH45: 38.1
A46: 55 | B46: 372.9 | C46: 190.4 | D46: 129.6 | E46: 99.3 | F46: 81.1 | G46: 69 | H46: 60.4 | I46: 54 | J46: 49 | K46: 45 | W46: 55 | X46: 345.5 | Y46: 176.4 | Z46: 120.1 | AA46: 92 | AB46: 75.1 | AC46: 63.9 | AD46: 56 | AE46: 50 | AF46: 45.4 | AG46: 41.7
A47: 56 | B47: 378 | C47: 193 | D47: 131.4 | E47: 100.7 | F47: 82.3 | G47: 70 | H47: 61.3 | I47: 54.8 | J47: 49.8 | W47: 56 | X47: 350.5 | Y47: 179 | Z47: 121.9 | AA47: 93.4 | AB47: 76.3 | AC47: 64.9 | AD47: 56.8 | AE47: 50.8 | AF47: 46.2
A48: 57 | B48: 383.2 | C48: 195.7 | D48: 133.3 | E48: 102.1 | F48: 83.5 | G48: 71.1 | H48: 62.2 | I48: 55.7 | W48: 57 | X48: 355.6 | Y48: 181.6 | Z48: 123.7 | AA48: 94.8 | AB48: 77.5 | AC48: 66 | AD48: 57.7 | AE48: 51.7
A49: 58 | B49: 388.6 | C49: 198.5 | D49: 135.3 | E49: 103.7 | F49: 84.7 | G49: 72.2 | H49: 63.2 | W49: 58 | X49: 360.8 | Y49: 184.4 | Z49: 125.6 | AA49: 96.3 | AB49: 78.7 | AC49: 67 | AD49: 58.7
A50: 59 | B50: 394.1 | C50: 201.4 | D50: 137.3 | E50: 105.2 | F50: 86 | G50: 73.3 | W50: 59 | X50: 366.3 | Y50: 187.2 | Z50: 127.6 | AA50: 97.8 | AB50: 80 | AC50: 68.2
A51: 60 | B51: 399.9 | C51: 204.4 | D51: 139.3 | E51: 106.8 | F51: 87.4 | W51: 60 | X51: 371.9 | Y51: 190.1 | Z51: 129.6 | AA51: 99.4 | AB51: 81.3
A52: 61 | B52: 405.8 | C52: 207.5 | D52: 141.5 | E52: 108.6 | W52: 61 | X52: 377.7 | Y52: 193.1 | Z52: 131.7 | AA52: 101.1
A53: 62 | B53: 412 | C53: 210.7 | D53: 143.7 | W53: 62 | X53: 383.9 | Y53: 196.3 | Z53: 134
A54: 63 | B54: 418.6 | C54: 214.1 | W54: 63 | X54: 390.4 | Y54: 199.7
B55: 425.3 | W55: 64 | X55: 397.1

Sheet NRA66 (hidden)
U1: Date Factors Issued to Client | V1: 2023-10-17
A2: Regular Contribution Elections | W2: Regular Contribution Elections
A3: Table D66: Personal and Dependant’s Benefits, NRA 66 | J3: x-711 | W3: Table P66: Personal Benefits, NRA 66 | AC3: x-710
A5: Age when notice of election given â | B5: Monthly contribution to purchase £250 of APB at date of election, £ | W5: Age when notice of election given â | X5: Monthly contribution to purchase £250 of APB at date of election, £
A6: Payment period (in years) à | B6: 1 | C6: 2 | D6: 3 | E6: 4 | F6: 5 | G6: 6 | H6: 7 | I6: 8 | J6: 9 | K6: 10 | L6: 11 | M6: 12 | N6: 13 | O6: 14 | P6: 15 | Q6: 16 | R6: 17 | S6: 18 | T6: 19 | U6: 20 | W6: Payment period (in years) à | X6: 1 | Y6: 2 | Z6: 3 | AA6: 4 | AB6: 5 | AC6: 6 | AD6: 7 | AE6: 8 | AF6: 9 | AG6: 10 | AH6: 11 | AI6: 12 | AJ6: 13 | AK6: 14 | AL6: 15 | AM6: 16 | AN6: 17 | AO6: 18 | AP6: 19 | AQ6: 20
A7: 16 | W7: 16
A8: 17 | W8: 17
A9: 18 | W9: 18
A10: 19 | W10: 19
A11: 20 | B11: 219.8 | C11: 111.9 | D11: 76 | E11: 58 | F11: 47.2 | G11: 40.1 | H11: 35 | I11: 31.1 | J11: 28.2 | K11: 25.8 | L11: 23.8 | M11: 22.2 | N11: 20.9 | O11: 19.7 | P11: 18.7 | Q11: 17.8 | R11: 17.1 | S11: 16.4 | T11: 15.8 | U11: 15.2 | W11: 20 | X11: 201.7 | Y11: 102.7 | Z11: 69.7 | AA11: 53.2 | AB11: 43.4 | AC11: 36.8 | AD11: 32.1 | AE11: 28.6 | AF11: 25.8 | AG11: 23.7 | AH11: 21.9 | AI11: 20.4 | AJ11: 19.2 | AK11: 18.1 | AL11: 17.2 | AM11: 16.4 | AN11: 15.7 | AO11: 15 | AP11: 14.5 | AQ11: 14
A12: 21 | B12: 223 | C12: 113.5 | D12: 77.1 | E12: 58.9 | F12: 47.9 | G12: 40.7 | H12: 35.5 | I12: 31.6 | J12: 28.6 | K12: 26.2 | L12: 24.2 | M12: 22.6 | N12: 21.2 | O12: 20 | P12: 19 | Q12: 18.1 | R12: 17.3 | S12: 16.6 | T12: 16 | U12: 15.5 | W12: 21 | X12: 204.6 | Y12: 104.2 | Z12: 70.7 | AA12: 54 | AB12: 44 | AC12: 37.3 | AD12: 32.6 | AE12: 29 | AF12: 26.2 | AG12: 24 | AH12: 22.2 | AI12: 20.7 | AJ12: 19.4 | AK12: 18.4 | AL12: 17.4 | AM12: 16.6 | AN12: 15.9 | AO12: 15.3 | AP12: 14.7 | AQ12: 14.2
A13: 22 | B13: 226.3 | C13: 115.2 | D13: 78.2 | E13: 59.7 | F13: 48.6 | G13: 41.3 | H13: 36 | I13: 32.1 | J13: 29 | K13: 26.6 | L13: 24.6 | M13: 22.9 | N13: 21.5 | O13: 20.3 | P13: 19.3 | Q13: 18.4 | R13: 17.6 | S13: 16.9 | T13: 16.3 | U13: 15.7 | W13: 22 | X13: 207.6 | Y13: 105.7 | Z13: 71.8 | AA13: 54.8 | AB13: 44.6 | AC13: 37.9 | AD13: 33 | AE13: 29.4 | AF13: 26.6 | AG13: 24.4 | AH13: 22.5 | AI13: 21 | AJ13: 19.7 | AK13: 18.6 | AL13: 17.7 | AM13: 16.9 | AN13: 16.1 | AO13: 15.5 | AP13: 14.9 | AQ13: 14.4
A14: 23 | B14: 229.6 | C14: 116.9 | D14: 79.4 | E14: 60.6 | F14: 49.4 | G14: 41.9 | H14: 36.5 | I14: 32.5 | J14: 29.4 | K14: 26.9 | L14: 24.9 | M14: 23.2 | N14: 21.8 | O14: 20.6 | P14: 19.6 | Q14: 18.6 | R14: 17.8 | S14: 17.1 | T14: 16.5 | U14: 15.9 | W14: 23 | X14: 210.7 | Y14: 107.3 | Z14: 72.8 | AA14: 55.6 | AB14: 45.3 | AC14: 38.4 | AD14: 33.5 | AE14: 29.8 | AF14: 27 | AG14: 24.7 | AH14: 22.9 | AI14: 21.3 | AJ14: 20 | AK14: 18.9 | AL14: 18 | AM14: 17.1 | AN14: 16.4 | AO14: 15.7 | AP14: 15.1 | AQ14: 14.6
A15: 24 | B15: 232.9 | C15: 118.6 | D15: 80.5 | E15: 61.5 | F15: 50.1 | G15: 42.5 | H15: 37.1 | I15: 33 | J15: 29.9 | K15: 27.3 | L15: 25.3 | M15: 23.6 | N15: 22.1 | O15: 20.9 | P15: 19.9 | Q15: 18.9 | R15: 18.1 | S15: 17.4 | T15: 16.7 | U15: 16.2 | W15: 24 | X15: 213.8 | Y15: 108.8 | Z15: 73.9 | AA15: 56.4 | AB15: 46 | AC15: 39 | AD15: 34 | AE15: 30.3 | AF15: 27.4 | AG15: 25.1 | AH15: 23.2 | AI15: 21.6 | AJ15: 20.3 | AK15: 19.2 | AL15: 18.2 | AM15: 17.4 | AN15: 16.6 | AO15: 16 | AP15: 15.4 | AQ15: 14.8
A16: 25 | B16: 236.3 | C16: 120.3 | D16: 81.7 | E16: 62.4 | F16: 50.8 | G16: 43.1 | H16: 37.6 | I16: 33.5 | J16: 30.3 | K16: 27.7 | L16: 25.7 | M16: 23.9 | N16: 22.5 | O16: 21.2 | P16: 20.1 | Q16: 19.2 | R16: 18.4 | S16: 17.6 | T16: 17 | U16: 16.4 | W16: 25 | X16: 216.9 | Y16: 110.4 | Z16: 75 | AA16: 57.2 | AB16: 46.6 | AC16: 39.6 | AD16: 34.5 | AE16: 30.7 | AF16: 27.8 | AG16: 25.5 | AH16: 23.5 | AI16: 22 | AJ16: 20.6 | AK16: 19.5 | AL16: 18.5 | AM16: 17.6 | AN16: 16.9 | AO16: 16.2 | AP16: 15.6 | AQ16: 15.1
A17: 26 | B17: 239.8 | C17: 122.1 | D17: 82.9 | E17: 63.3 | F17: 51.6 | G17: 43.7 | H17: 38.2 | I17: 34 | J17: 30.7 | K17: 28.2 | L17: 26 | M17: 24.3 | N17: 22.8 | O17: 21.5 | P17: 20.4 | Q17: 19.5 | R17: 18.7 | S17: 17.9 | T17: 17.3 | U17: 16.7 | W17: 26 | X17: 220 | Y17: 112 | Z17: 76.1 | AA17: 58.1 | AB17: 47.3 | AC17: 40.1 | AD17: 35 | AE17: 31.2 | AF17: 28.2 | AG17: 25.8 | AH17: 23.9 | AI17: 22.3 | AJ17: 20.9 | AK17: 19.8 | AL17: 18.8 | AM17: 17.9 | AN17: 17.1 | AO17: 16.4 | AP17: 15.8 | AQ17: 15.3
A18: 27 | B18: 243.3 | C18: 123.9 | D18: 84.1 | E18: 64.2 | F18: 52.3 | G18: 44.4 | H18: 38.7 | I18: 34.5 | J18: 31.2 | K18: 28.6 | L18: 26.4 | M18: 24.6 | N18: 23.1 | O18: 21.9 | P18: 20.7 | Q18: 19.8 | R18: 18.9 | S18: 18.2 | T18: 17.5 | U18: 16.9 | W18: 27 | X18: 223.2 | Y18: 113.7 | Z18: 77.2 | AA18: 58.9 | AB18: 48 | AC18: 40.7 | AD18: 35.5 | AE18: 31.6 | AF18: 28.6 | AG18: 26.2 | AH18: 24.2 | AI18: 22.6 | AJ18: 21.2 | AK18: 20.1 | AL18: 19 | AM18: 18.1 | AN18: 17.4 | AO18: 16.7 | AP18: 16.1 | AQ18: 15.5
A19: 28 | B19: 246.8 | C19: 125.7 | D19: 85.3 | E19: 65.2 | F19: 53.1 | G19: 45 | H19: 39.3 | I19: 35 | J19: 31.6 | K19: 29 | L19: 26.8 | M19: 25 | N19: 23.5 | O19: 22.2 | P19: 21.1 | Q19: 20.1 | R19: 19.2 | S19: 18.4 | T19: 17.8 | U19: 17.2 | W19: 28 | X19: 226.5 | Y19: 115.3 | Z19: 78.3 | AA19: 59.8 | AB19: 48.7 | AC19: 41.3 | AD19: 36 | AE19: 32.1 | AF19: 29 | AG19: 26.6 | AH19: 24.6 | AI19: 22.9 | AJ19: 21.5 | AK19: 20.3 | AL19: 19.3 | AM19: 18.4 | AN19: 17.6 | AO19: 16.9 | AP19: 16.3 | AQ19: 15.7
A20: 29 | B20: 250.4 | C20: 127.5 | D20: 86.6 | E20: 66.1 | F20: 53.8 | G20: 45.7 | H20: 39.9 | I20: 35.5 | J20: 32.1 | K20: 29.4 | L20: 27.2 | M20: 25.4 | N20: 23.8 | O20: 22.5 | P20: 21.4 | Q20: 20.4 | R20: 19.5 | S20: 18.7 | T20: 18 | U20: 17.4 | W20: 29 | X20: 229.8 | Y20: 117 | Z20: 79.4 | AA20: 60.7 | AB20: 49.4 | AC20: 41.9 | AD20: 36.6 | AE20: 32.6 | AF20: 29.5 | AG20: 27 | AH20: 25 | AI20: 23.3 | AJ20: 21.9 | AK20: 20.6 | AL20: 19.6 | AM20: 18.7 | AN20: 17.9 | AO20: 17.2 | AP20: 16.5 | AQ20: 16
A21: 30 | B21: 254 | C21: 129.4 | D21: 87.8 | E21: 67.1 | F21: 54.6 | G21: 46.3 | H21: 40.4 | I21: 36 | J21: 32.6 | K21: 29.8 | L21: 27.6 | M21: 25.7 | N21: 24.2 | O21: 22.8 | P21: 21.7 | Q21: 20.7 | R21: 19.8 | S21: 19 | T21: 18.3 | U21: 17.7 | W21: 30 | X21: 233.1 | Y21: 118.7 | Z21: 80.6 | AA21: 61.5 | AB21: 50.1 | AC21: 42.5 | AD21: 37.1 | AE21: 33 | AF21: 29.9 | AG21: 27.4 | AH21: 25.3 | AI21: 23.6 | AJ21: 22.2 | AK21: 21 | AL21: 19.9 | AM21: 19 | AN21: 18.2 | AO21: 17.4 | AP21: 16.8 | AQ21: 16.2
A22: 31 | B22: 257.7 | C22: 131.2 | D22: 89.1 | E22: 68 | F22: 55.4 | G22: 47 | H22: 41 | I22: 36.5 | J22: 33.1 | K22: 30.3 | L22: 28 | M22: 26.1 | N22: 24.5 | O22: 23.2 | P22: 22 | Q22: 21 | R22: 20.1 | S22: 19.3 | T22: 18.6 | U22: 17.9 | W22: 31 | X22: 236.5 | Y22: 120.4 | Z22: 81.7 | AA22: 62.4 | AB22: 50.9 | AC22: 43.1 | AD22: 37.6 | AE22: 33.5 | AF22: 30.3 | AG22: 27.8 | AH22: 25.7 | AI22: 24 | AJ22: 22.5 | AK22: 21.3 | AL22: 20.2 | AM22: 19.2 | AN22: 18.4 | AO22: 17.7 | AP22: 17 | AQ22: 16.5
A23: 32 | B23: 261.4 | C23: 133.1 | D23: 90.4 | E23: 69 | F23: 56.2 | G23: 47.7 | H23: 41.6 | I23: 37.1 | J23: 33.5 | K23: 30.7 | L23: 28.4 | M23: 26.5 | N23: 24.9 | O23: 23.5 | P23: 22.3 | Q23: 21.3 | R23: 20.4 | S23: 19.6 | T23: 18.9 | U23: 18.2 | W23: 32 | X23: 239.9 | Y23: 122.2 | Z23: 82.9 | AA23: 63.3 | AB23: 51.6 | AC23: 43.8 | AD23: 38.2 | AE23: 34 | AF23: 30.8 | AG23: 28.2 | AH23: 26.1 | AI23: 24.3 | AJ23: 22.8 | AK23: 21.6 | AL23: 20.5 | AM23: 19.5 | AN23: 18.7 | AO23: 18 | AP23: 17.3 | AQ23: 16.7
A24: 33 | B24: 265.1 | C24: 135 | D24: 91.7 | E24: 70 | F24: 57 | G24: 48.4 | H24: 42.2 | I24: 37.6 | J24: 34 | K24: 31.2 | L24: 28.8 | M24: 26.9 | N24: 25.3 | O24: 23.9 | P24: 22.7 | Q24: 21.6 | R24: 20.7 | S24: 19.9 | T24: 19.1 | U24: 18.5 | W24: 33 | X24: 243.3 | Y24: 123.9 | Z24: 84.1 | AA24: 64.3 | AB24: 52.3 | AC24: 44.4 | AD24: 38.7 | AE24: 34.5 | AF24: 31.2 | AG24: 28.6 | AH24: 26.5 | AI24: 24.7 | AJ24: 23.2 | AK24: 21.9 | AL24: 20.8 | AM24: 19.8 | AN24: 19 | AO24: 18.2 | AP24: 17.6 | AQ24: 17
A25: 34 | B25: 268.9 | C25: 137 | D25: 93 | E25: 71 | F25: 57.9 | G25: 49.1 | H25: 42.8 | I25: 38.2 | J25: 34.5 | K25: 31.6 | L25: 29.3 | M25: 27.3 | N25: 25.6 | O25: 24.2 | P25: 23 | Q25: 21.9 | R25: 21 | S25: 20.2 | T25: 19.4 | U25: 18.8 | W25: 34 | X25: 246.8 | Y25: 125.7 | Z25: 85.3 | AA25: 65.2 | AB25: 53.1 | AC25: 45 | AD25: 39.3 | AE25: 35 | AF25: 31.7 | AG25: 29 | AH25: 26.8 | AI25: 25 | AJ25: 23.5 | AK25: 22.2 | AL25: 21.1 | AM25: 20.1 | AN25: 19.3 | AO25: 18.5 | AP25: 17.8 | AQ25: 17.2
A26: 35 | B26: 272.8 | C26: 138.9 | D26: 94.3 | E26: 72 | F26: 58.7 | G26: 49.8 | H26: 43.5 | I26: 38.7 | J26: 35 | K26: 32.1 | L26: 29.7 | M26: 27.7 | N26: 26 | O26: 24.6 | P26: 23.3 | Q26: 22.3 | R26: 21.3 | S26: 20.5 | T26: 19.7 | U26: 19.1 | W26: 35 | X26: 250.4 | Y26: 127.5 | Z26: 86.6 | AA26: 66.1 | AB26: 53.9 | AC26: 45.7 | AD26: 39.9 | AE26: 35.5 | AF26: 32.1 | AG26: 29.4 | AH26: 27.2 | AI26: 25.4 | AJ26: 23.9 | AK26: 22.5 | AL26: 21.4 | AM26: 20.4 | AN26: 19.6 | AO26: 18.8 | AP26: 18.1 | AQ26: 17.5
A27: 36 | B27: 276.7 | C27: 140.9 | D27: 95.7 | E27: 73.1 | F27: 59.5 | G27: 50.5 | H27: 44.1 | I27: 39.3 | J27: 35.5 | K27: 32.5 | L27: 30.1 | M27: 28.1 | N27: 26.4 | O27: 24.9 | P27: 23.7 | Q27: 22.6 | R27: 21.6 | S27: 20.8 | T27: 20 | U27: 19.4 | W27: 36 | X27: 254 | Y27: 129.3 | Z27: 87.8 | AA27: 67.1 | AB27: 54.6 | AC27: 46.4 | AD27: 40.5 | AE27: 36 | AF27: 32.6 | AG27: 29.9 | AH27: 27.6 | AI27: 25.8 | AJ27: 24.2 | AK27: 22.9 | AL27: 21.7 | AM27: 20.7 | AN27: 19.9 | AO27: 19.1 | AP27: 18.4 | AQ27: 17.8
A28: 37 | B28: 280.6 | C28: 142.9 | D28: 97 | E28: 74.1 | F28: 60.4 | G28: 51.2 | H28: 44.7 | I28: 39.8 | J28: 36 | K28: 33 | L28: 30.6 | M28: 28.5 | N28: 26.8 | O28: 25.3 | P28: 24 | Q28: 22.9 | R28: 22 | S28: 21.1 | T28: 20.3 | U28: 19.7 | W28: 37 | X28: 257.6 | Y28: 131.2 | Z28: 89.1 | AA28: 68 | AB28: 55.4 | AC28: 47 | AD28: 41.1 | AE28: 36.6 | AF28: 33.1 | AG28: 30.3 | AH28: 28 | AI28: 26.2 | AJ28: 24.6 | AK28: 23.2 | AL28: 22.1 | AM28: 21.1 | AN28: 20.2 | AO28: 19.4 | AP28: 18.7 | AQ28: 18.1
A29: 38 | B29: 284.6 | C29: 145 | D29: 98.4 | E29: 75.2 | F29: 61.3 | G29: 52 | H29: 45.4 | I29: 40.4 | J29: 36.6 | K29: 33.5 | L29: 31 | M29: 28.9 | N29: 27.2 | O29: 25.7 | P29: 24.4 | Q29: 23.3 | R29: 22.3 | S29: 21.4 | T29: 20.7 | U29: 20 | W29: 38 | X29: 261.3 | Y29: 133.1 | Z29: 90.4 | AA29: 69 | AB29: 56.2 | AC29: 47.7 | AD29: 41.6 | AE29: 37.1 | AF29: 33.6 | AG29: 30.8 | AH29: 28.5 | AI29: 26.6 | AJ29: 25 | AK29: 23.6 | AL29: 22.4 | AM29: 21.4 | AN29: 20.5 | AO29: 19.7 | AP29: 19 | AQ29: 18.3
A30: 39 | B30: 288.6 | C30: 147 | D30: 99.8 | E30: 76.3 | F30: 62.1 | G30: 52.7 | H30: 46 | I30: 41 | J30: 37.1 | K30: 34 | L30: 31.5 | M30: 29.4 | N30: 27.6 | O30: 26.1 | P30: 24.8 | Q30: 23.6 | R30: 22.6 | S30: 21.8 | T30: 21 | U30: 20.3 | W30: 39 | X30: 265.1 | Y30: 135 | Z30: 91.7 | AA30: 70 | AB30: 57.1 | AC30: 48.4 | AD30: 42.3 | AE30: 37.6 | AF30: 34.1 | AG30: 31.2 | AH30: 28.9 | AI30: 27 | AJ30: 25.3 | AK30: 23.9 | AL30: 22.8 | AM30: 21.7 | AN30: 20.8 | AO30: 20 | AP30: 19.3 | AQ30: 18.6
A31: 40 | B31: 292.7 | C31: 149.1 | D31: 101.2 | E31: 77.3 | F31: 63 | G31: 53.5 | H31: 46.7 | I31: 41.6 | J31: 37.6 | K31: 34.5 | L31: 31.9 | M31: 29.8 | N31: 28 | O31: 26.5 | P31: 25.2 | Q31: 24 | R31: 23 | S31: 22.1 | T31: 21.3 | U31: 20.6 | W31: 40 | X31: 268.9 | Y31: 136.9 | Z31: 93 | AA31: 71 | AB31: 57.9 | AC31: 49.1 | AD31: 42.9 | AE31: 38.2 | AF31: 34.6 | AG31: 31.7 | AH31: 29.3 | AI31: 27.4 | AJ31: 25.7 | AK31: 24.3 | AL31: 23.1 | AM31: 22.1 | AN31: 21.1 | AO31: 20.3 | AP31: 19.6 | AQ31: 18.9
A32: 41 | B32: 296.8 | C32: 151.2 | D32: 102.7 | E32: 78.4 | F32: 63.9 | G32: 54.3 | H32: 47.4 | I32: 42.2 | J32: 38.2 | K32: 35 | L32: 32.4 | M32: 30.3 | N32: 28.4 | O32: 26.9 | P32: 25.5 | Q32: 24.4 | R32: 23.4 | S32: 22.5 | T32: 21.7 | U32: 21 | W32: 41 | X32: 272.7 | Y32: 138.9 | Z32: 94.3 | AA32: 72.1 | AB32: 58.7 | AC32: 49.8 | AD32: 43.5 | AE32: 38.8 | AF32: 35.1 | AG32: 32.2 | AH32: 29.8 | AI32: 27.8 | AJ32: 26.1 | AK32: 24.7 | AL32: 23.5 | AM32: 22.4 | AN32: 21.5 | AO32: 20.6 | AP32: 19.9 | AQ32: 19.3
A33: 42 | B33: 301 | C33: 153.3 | D33: 104.1 | E33: 79.6 | F33: 64.8 | G33: 55 | H33: 48.1 | I33: 42.8 | J33: 38.8 | K33: 35.5 | L33: 32.9 | M33: 30.7 | N33: 28.9 | O33: 27.3 | P33: 26 | Q33: 24.8 | R33: 23.7 | S33: 22.8 | T33: 22 | U33: 21.3 | W33: 42 | X33: 276.6 | Y33: 140.9 | Z33: 95.7 | AA33: 73.1 | AB33: 59.6 | AC33: 50.6 | AD33: 44.2 | AE33: 39.4 | AF33: 35.6 | AG33: 32.7 | AH33: 30.2 | AI33: 28.2 | AJ33: 26.5 | AK33: 25.1 | AL33: 23.8 | AM33: 22.8 | AN33: 21.8 | AO33: 21 | AP33: 20.2 | AQ33: 19.6
A34: 43 | B34: 305.3 | C34: 155.5 | D34: 105.6 | E34: 80.7 | F34: 65.8 | G34: 55.8 | H34: 48.8 | I34: 43.5 | J34: 39.4 | K34: 36.1 | L34: 33.4 | M34: 31.2 | N34: 29.3 | O34: 27.7 | P34: 26.4 | Q34: 25.2 | R34: 24.1 | S34: 23.2 | T34: 22.4 | U34: 21.7 | W34: 43 | X34: 280.5 | Y34: 142.9 | Z34: 97.1 | AA34: 74.2 | AB34: 60.5 | AC34: 51.3 | AD34: 44.8 | AE34: 39.9 | AF34: 36.2 | AG34: 33.2 | AH34: 30.7 | AI34: 28.7 | AJ34: 27 | AK34: 25.5 | AL34: 24.2 | AM34: 23.1 | AN34: 22.2 | AO34: 21.3 | AP34: 20.6 | AQ34: 19.9
A35: 44 | B35: 309.5 | C35: 157.7 | D35: 107.1 | E35: 81.9 | F35: 66.7 | G35: 56.7 | H35: 49.5 | I35: 44.1 | J35: 39.9 | K35: 36.6 | L35: 33.9 | M35: 31.7 | N35: 29.8 | O35: 28.2 | P35: 26.8 | Q35: 25.6 | R35: 24.5 | S35: 23.6 | T35: 22.8 | U35: 22 | W35: 44 | X35: 284.5 | Y35: 145 | Z35: 98.5 | AA35: 75.3 | AB35: 61.3 | AC35: 52.1 | AD35: 45.5 | AE35: 40.5 | AF35: 36.7 | AG35: 33.7 | AH35: 31.2 | AI35: 29.1 | AJ35: 27.4 | AK35: 25.9 | AL35: 24.6 | AM35: 23.5 | AN35: 22.6 | AO35: 21.7 | AP35: 20.9 | AQ35: 20.3
A36: 45 | B36: 313.8 | C36: 159.9 | D36: 108.6 | E36: 83 | F36: 67.7 | G36: 57.5 | H36: 50.2 | I36: 44.8 | J36: 40.5 | K36: 37.2 | L36: 34.4 | M36: 32.2 | N36: 30.3 | O36: 28.6 | P36: 27.2 | Q36: 26 | R36: 24.9 | S36: 24 | T36: 23.2 | U36: 22.4 | W36: 45 | X36: 288.6 | Y36: 147 | Z36: 99.9 | AA36: 76.3 | AB36: 62.2 | AC36: 52.9 | AD36: 46.2 | AE36: 41.2 | AF36: 37.3 | AG36: 34.2 | AH36: 31.7 | AI36: 29.6 | AJ36: 27.8 | AK36: 26.3 | AL36: 25 | AM36: 23.9 | AN36: 22.9 | AO36: 22.1 | AP36: 21.3 | AQ36: 20.6
A37: 46 | B37: 318.1 | C37: 162.1 | D37: 110.2 | E37: 84.2 | F37: 68.7 | G37: 58.3 | H37: 50.9 | I37: 45.4 | J37: 41.2 | K37: 37.7 | L37: 35 | M37: 32.7 | N37: 30.7 | O37: 29.1 | P37: 27.7 | Q37: 26.4 | R37: 25.3 | S37: 24.4 | T37: 23.6 | U37: 22.8 | W37: 46 | X37: 292.6 | Y37: 149.1 | Z37: 101.3 | AA37: 77.5 | AB37: 63.2 | AC37: 53.6 | AD37: 46.9 | AE37: 41.8 | AF37: 37.9 | AG37: 34.7 | AH37: 32.2 | AI37: 30.1 | AJ37: 28.3 | AK37: 26.8 | AL37: 25.4 | AM37: 24.3 | AN37: 23.3 | AO37: 22.4 | AP37: 21.7 | AQ37: 21
A38: 47 | B38: 322.5 | C38: 164.4 | D38: 111.7 | E38: 85.4 | F38: 69.6 | G38: 59.2 | H38: 51.7 | I38: 46.1 | J38: 41.8 | K38: 38.3 | L38: 35.5 | M38: 33.2 | N38: 31.2 | O38: 29.6 | P38: 28.1 | Q38: 26.9 | R38: 25.8 | S38: 24.8 | T38: 23.9 | W38: 47 | X38: 296.8 | Y38: 151.3 | Z38: 102.8 | AA38: 78.6 | AB38: 64.1 | AC38: 54.4 | AD38: 47.6 | AE38: 42.4 | AF38: 38.4 | AG38: 35.3 | AH38: 32.7 | AI38: 30.5 | AJ38: 28.7 | AK38: 27.2 | AL38: 25.9 | AM38: 24.7 | AN38: 23.7 | AO38: 22.8 | AP38: 22
A39: 48 | B39: 326.9 | C39: 166.7 | D39: 113.3 | E39: 86.6 | F39: 70.7 | G39: 60 | H39: 52.5 | I39: 46.8 | J39: 42.4 | K39: 38.9 | L39: 36.1 | M39: 33.7 | N39: 31.7 | O39: 30 | P39: 28.6 | Q39: 27.3 | R39: 26.2 | S39: 25.2 | W39: 48 | X39: 300.9 | Y39: 153.4 | Z39: 104.3 | AA39: 79.7 | AB39: 65 | AC39: 55.3 | AD39: 48.3 | AE39: 43.1 | AF39: 39 | AG39: 35.8 | AH39: 33.2 | AI39: 31 | AJ39: 29.2 | AK39: 27.6 | AL39: 26.3 | AM39: 25.1 | AN39: 24.1 | AO39: 23.2
A40: 49 | B40: 331.3 | C40: 168.9 | D40: 114.9 | E40: 87.8 | F40: 71.7 | G40: 60.9 | H40: 53.2 | I40: 47.5 | J40: 43.1 | K40: 39.5 | L40: 36.6 | M40: 34.2 | N40: 32.2 | O40: 30.5 | P40: 29 | Q40: 27.8 | R40: 26.6 | W40: 49 | X40: 305.1 | Y40: 155.6 | Z40: 105.8 | AA40: 80.9 | AB40: 66 | AC40: 56.1 | AD40: 49 | AE40: 43.7 | AF40: 39.7 | AG40: 36.4 | AH40: 33.7 | AI40: 31.5 | AJ40: 29.7 | AK40: 28.1 | AL40: 26.7 | AM40: 25.6 | AN40: 24.5
A41: 50 | B41: 335.8 | C41: 171.2 | D41: 116.4 | E41: 89.1 | F41: 72.7 | G41: 61.8 | H41: 54 | I41: 48.2 | J41: 43.7 | K41: 40.1 | L41: 37.2 | M41: 34.8 | N41: 32.8 | O41: 31 | P41: 29.5 | Q41: 28.2 | W41: 50 | X41: 309.3 | Y41: 157.8 | Z41: 107.3 | AA41: 82.1 | AB41: 67 | AC41: 56.9 | AD41: 49.8 | AE41: 44.4 | AF41: 40.3 | AG41: 37 | AH41: 34.3 | AI41: 32 | AJ41: 30.2 | AK41: 28.6 | AL41: 27.2 | AM41: 26
A42: 51 | B42: 340.3 | C42: 173.6 | D42: 118 | E42: 90.3 | F42: 73.7 | G42: 62.7 | H42: 54.8 | I42: 48.9 | J42: 44.4 | K42: 40.7 | L42: 37.8 | M42: 35.3 | N42: 33.3 | O42: 31.5 | P42: 30 | W42: 51 | X42: 313.6 | Y42: 160 | Z42: 108.8 | AA42: 83.2 | AB42: 67.9 | AC42: 57.8 | AD42: 50.5 | AE42: 45.1 | AF42: 40.9 | AG42: 37.5 | AH42: 34.8 | AI42: 32.6 | AJ42: 30.7 | AK42: 29 | AL42: 27.7
A43: 52 | B43: 344.8 | C43: 175.9 | D43: 119.7 | E43: 91.6 | F43: 74.8 | G43: 63.6 | H43: 55.6 | I43: 49.7 | J43: 45 | K43: 41.4 | L43: 38.4 | M43: 35.9 | N43: 33.8 | O43: 32 | W43: 52 | X43: 317.9 | Y43: 162.2 | Z43: 110.3 | AA43: 84.4 | AB43: 68.9 | AC43: 58.6 | AD43: 51.3 | AE43: 45.8 | AF43: 41.5 | AG43: 38.1 | AH43: 35.4 | AI43: 33.1 | AJ43: 31.2 | AK43: 29.5
A44: 53 | B44: 349.3 | C44: 178.3 | D44: 121.3 | E44: 92.9 | F44: 75.8 | G44: 64.5 | H44: 56.4 | I44: 50.4 | J44: 45.7 | K44: 42 | L44: 39 | M44: 36.5 | N44: 34.3 | W44: 53 | X44: 322.3 | Y44: 164.5 | Z44: 111.9 | AA44: 85.7 | AB44: 70 | AC44: 59.5 | AD44: 52.1 | AE44: 46.5 | AF44: 42.2 | AG44: 38.7 | AH44: 35.9 | AI44: 33.6 | AJ44: 31.7
A45: 54 | B45: 354 | C45: 180.7 | D45: 123 | E45: 94.2 | F45: 76.9 | G45: 65.4 | H45: 57.2 | I45: 51.1 | J45: 46.4 | K45: 42.6 | L45: 39.6 | M45: 37 | W45: 54 | X45: 326.7 | Y45: 166.8 | Z45: 113.5 | AA45: 86.9 | AB45: 71 | AC45: 60.4 | AD45: 52.8 | AE45: 47.2 | AF45: 42.8 | AG45: 39.4 | AH45: 36.5 | AI45: 34.2
A46: 55 | B46: 358.7 | C46: 183.1 | D46: 124.7 | E46: 95.5 | F46: 78 | G46: 66.4 | H46: 58.1 | I46: 51.9 | J46: 47.1 | K46: 43.3 | L46: 40.2 | W46: 55 | X46: 331.3 | Y46: 169.1 | Z46: 115.1 | AA46: 88.2 | AB46: 72 | AC46: 61.3 | AD46: 53.6 | AE46: 47.9 | AF46: 43.5 | AG46: 40 | AH46: 37.1
A47: 56 | B47: 363.4 | C47: 185.6 | D47: 126.4 | E47: 96.8 | F47: 79.1 | G47: 67.3 | H47: 58.9 | I47: 52.7 | J47: 47.8 | K47: 44 | W47: 56 | X47: 335.9 | Y47: 171.5 | Z47: 116.8 | AA47: 89.5 | AB47: 73.1 | AC47: 62.2 | AD47: 54.5 | AE47: 48.7 | AF47: 44.2 | AG47: 40.7
A48: 57 | B48: 368.3 | C48: 188.1 | D48: 128.1 | E48: 98.2 | F48: 80.2 | G48: 68.3 | H48: 59.8 | I48: 53.5 | J48: 48.6 | W48: 57 | X48: 340.6 | Y48: 174 | Z48: 118.5 | AA48: 90.8 | AB48: 74.2 | AC48: 63.2 | AD48: 55.3 | AE48: 49.5 | AF48: 44.9
A49: 58 | B49: 373.3 | C49: 190.8 | D49: 130 | E49: 99.6 | F49: 81.4 | G49: 69.3 | H49: 60.7 | I49: 54.3 | W49: 58 | X49: 345.5 | Y49: 176.6 | Z49: 120.3 | AA49: 92.2 | AB49: 75.4 | AC49: 64.2 | AD49: 56.2 | AE49: 50.3
A50: 59 | B50: 378.5 | C50: 193.4 | D50: 131.8 | E50: 101 | F50: 82.6 | G50: 70.4 | H50: 61.7 | W50: 59 | X50: 350.6 | Y50: 179.2 | Z50: 122.1 | AA50: 93.6 | AB50: 76.5 | AC50: 65.2 | AD50: 57.2
A51: 60 | B51: 383.9 | C51: 196.2 | D51: 133.7 | E51: 102.6 | F51: 83.9 | G51: 71.5 | W51: 60 | X51: 355.9 | Y51: 181.9 | Z51: 124 | AA51: 95.1 | AB51: 77.8 | AC51: 66.3
A52: 61 | B52: 389.4 | C52: 199.1 | D52: 135.7 | E52: 104.1 | F52: 85.2 | W52: 61 | X52: 361.3 | Y52: 184.8 | Z52: 126 | AA52: 96.6 | AB52: 79.1
A53: 62 | B53: 395.2 | C53: 202.1 | D53: 137.8 | E53: 105.8 | W53: 62 | X53: 367 | Y53: 187.7 | Z53: 128 | AA53: 98.2
A54: 63 | B54: 401.2 | C54: 205.2 | D54: 140 | W54: 63 | X54: 373 | Y54: 190.8 | Z54: 130.2
A55: 64 | B55: 407.4 | C55: 208.5 | W55: 64 | X55: 379.1 | Y55: 194
A56: 65 | B56: 413.9 | W56: 65 | X56: 385.6

Sheet NRA67 (hidden)
U1: Date Factors Issued to Client | V1: 2023-10-17
A2: Regular Contribution Elections | W2: Regular Contribution Elections
A3: Table D67: Personal and Dependant’s Benefits, NRA 67 | J3: x-713 | W3: Table P67: Personal Benefits, NRA 67 | AE3: x-712
A5: Age when notice of election given â | B5: Monthly contribution to purchase £250 of APB at date of election, £ | W5: Age when notice of election given â | X5: Monthly contribution to purchase £250 of APB at date of election, £
A6: Payment period (in years) à | B6: 1 | C6: 2 | D6: 3 | E6: 4 | F6: 5 | G6: 6 | H6: 7 | I6: 8 | J6: 9 | K6: 10 | L6: 11 | M6: 12 | N6: 13 | O6: 14 | P6: 15 | Q6: 16 | R6: 17 | S6: 18 | T6: 19 | U6: 20 | W6: Payment period (in years) à | X6: 1 | Y6: 2 | Z6: 3 | AA6: 4 | AB6: 5 | AC6: 6 | AD6: 7 | AE6: 8 | AF6: 9 | AG6: 10 | AH6: 11 | AI6: 12 | AJ6: 13 | AK6: 14 | AL6: 15 | AM6: 16 | AN6: 17 | AO6: 18 | AP6: 19 | AQ6: 20
A7: 16 | W7: 16
A8: 17 | W8: 17
A9: 18 | W9: 18
A10: 19 | W10: 19
A11: 20 | B11: 211.3 | C11: 107.6 | D11: 73 | E11: 55.8 | F11: 45.4 | G11: 38.5 | H11: 33.6 | I11: 29.9 | J11: 27.1 | K11: 24.8 | L11: 22.9 | M11: 21.4 | N11: 20.1 | O11: 19 | P11: 18 | Q11: 17.2 | R11: 16.4 | S11: 15.8 | T11: 15.2 | U11: 14.7 | W11: 20 | X11: 193.1 | Y11: 98.3 | Z11: 66.8 | AA11: 51 | AB11: 41.5 | AC11: 35.2 | AD11: 30.7 | AE11: 27.4 | AF11: 24.8 | AG11: 22.7 | AH11: 21 | AI11: 19.5 | AJ11: 18.4 | AK11: 17.3 | AL11: 16.5 | AM11: 15.7 | AN11: 15 | AO11: 14.4 | AP11: 13.9 | AQ11: 13.4
A12: 21 | B12: 214.3 | C12: 109.1 | D12: 74.1 | E12: 56.6 | F12: 46.1 | G12: 39.1 | H12: 34.1 | I12: 30.4 | J12: 27.5 | K12: 25.2 | L12: 23.3 | M12: 21.7 | N12: 20.4 | O12: 19.2 | P12: 18.3 | Q12: 17.4 | R12: 16.7 | S12: 16 | T12: 15.4 | U12: 14.9 | W12: 21 | X12: 196 | Y12: 99.8 | Z12: 67.7 | AA12: 51.7 | AB12: 42.1 | AC12: 35.7 | AD12: 31.2 | AE12: 27.8 | AF12: 25.1 | AG12: 23 | AH12: 21.3 | AI12: 19.8 | AJ12: 18.6 | AK12: 17.6 | AL12: 16.7 | AM12: 15.9 | AN12: 15.2 | AO12: 14.6 | AP12: 14.1 | AQ12: 13.6
A13: 22 | B13: 217.5 | C13: 110.7 | D13: 75.2 | E13: 57.4 | F13: 46.8 | G13: 39.7 | H13: 34.6 | I13: 30.8 | J13: 27.9 | K13: 25.5 | L13: 23.6 | M13: 22 | N13: 20.7 | O13: 19.5 | P13: 18.5 | Q13: 17.7 | R13: 16.9 | S13: 16.2 | T13: 15.6 | U13: 15.1 | W13: 22 | X13: 198.8 | Y13: 101.2 | Z13: 68.7 | AA13: 52.5 | AB13: 42.7 | AC13: 36.3 | AD13: 31.6 | AE13: 28.2 | AF13: 25.5 | AG13: 23.3 | AH13: 21.6 | AI13: 20.1 | AJ13: 18.9 | AK13: 17.8 | AL13: 16.9 | AM13: 16.1 | AN13: 15.5 | AO13: 14.8 | AP13: 14.3 | AQ13: 13.8
A14: 23 | B14: 220.6 | C14: 112.4 | D14: 76.3 | E14: 58.2 | F14: 47.4 | G14: 40.2 | H14: 35.1 | I14: 31.3 | J14: 28.3 | K14: 25.9 | L14: 24 | M14: 22.3 | N14: 21 | O14: 19.8 | P14: 18.8 | Q14: 17.9 | R14: 17.2 | S14: 16.5 | T14: 15.9 | U14: 15.3 | W14: 23 | X14: 201.7 | Y14: 102.7 | Z14: 69.7 | AA14: 53.2 | AB14: 43.4 | AC14: 36.8 | AD14: 32.1 | AE14: 28.6 | AF14: 25.9 | AG14: 23.7 | AH14: 21.9 | AI14: 20.4 | AJ14: 19.2 | AK14: 18.1 | AL14: 17.2 | AM14: 16.4 | AN14: 15.7 | AO14: 15.1 | AP14: 14.5 | AQ14: 14
A15: 24 | B15: 223.9 | C15: 114 | D15: 77.4 | E15: 59.1 | F15: 48.1 | G15: 40.8 | H15: 35.6 | I15: 31.7 | J15: 28.7 | K15: 26.3 | L15: 24.3 | M15: 22.7 | N15: 21.3 | O15: 20.1 | P15: 19.1 | Q15: 18.2 | R15: 17.4 | S15: 16.7 | T15: 16.1 | U15: 15.5 | W15: 24 | X15: 204.6 | Y15: 104.2 | Z15: 70.7 | AA15: 54 | AB15: 44 | AC15: 37.3 | AD15: 32.6 | AE15: 29 | AF15: 26.2 | AG15: 24 | AH15: 22.2 | AI15: 20.7 | AJ15: 19.5 | AK15: 18.4 | AL15: 17.4 | AM15: 16.6 | AN15: 15.9 | AO15: 15.3 | AP15: 14.7 | AQ15: 14.2
A16: 25 | B16: 227.1 | C16: 115.6 | D16: 78.5 | E16: 60 | F16: 48.8 | G16: 41.4 | H16: 36.1 | I16: 32.2 | J16: 29.1 | K16: 26.7 | L16: 24.7 | M16: 23 | N16: 21.6 | O16: 20.4 | P16: 19.4 | Q16: 18.5 | R16: 17.7 | S16: 17 | T16: 16.3 | U16: 15.8 | W16: 25 | X16: 207.6 | Y16: 105.7 | Z16: 71.8 | AA16: 54.8 | AB16: 44.6 | AC16: 37.9 | AD16: 33 | AE16: 29.4 | AF16: 26.6 | AG16: 24.4 | AH16: 22.5 | AI16: 21 | AJ16: 19.7 | AK16: 18.6 | AL16: 17.7 | AM16: 16.9 | AN16: 16.1 | AO16: 15.5 | AP16: 14.9 | AQ16: 14.4
A17: 26 | B17: 230.4 | C17: 117.3 | D17: 79.6 | E17: 60.8 | F17: 49.5 | G17: 42 | H17: 36.7 | I17: 32.7 | J17: 29.5 | K17: 27 | L17: 25 | M17: 23.3 | N17: 21.9 | O17: 20.7 | P17: 19.6 | Q17: 18.7 | R17: 17.9 | S17: 17.2 | T17: 16.6 | U17: 16 | W17: 26 | X17: 210.6 | Y17: 107.2 | Z17: 72.8 | AA17: 55.6 | AB17: 45.3 | AC17: 38.4 | AD17: 33.5 | AE17: 29.8 | AF17: 27 | AG17: 24.7 | AH17: 22.9 | AI17: 21.3 | AJ17: 20 | AK17: 18.9 | AL17: 18 | AM17: 17.1 | AN17: 16.4 | AO17: 15.7 | AP17: 15.2 | AQ17: 14.6
A18: 27 | B18: 233.7 | C18: 119 | D18: 80.8 | E18: 61.7 | F18: 50.3 | G18: 42.6 | H18: 37.2 | I18: 33.1 | J18: 30 | K18: 27.4 | L18: 25.4 | M18: 23.7 | N18: 22.2 | O18: 21 | P18: 19.9 | Q18: 19 | R18: 18.2 | S18: 17.5 | T18: 16.8 | U18: 16.2 | W18: 27 | X18: 213.7 | Y18: 108.8 | Z18: 73.9 | AA18: 56.4 | AB18: 45.9 | AC18: 39 | AD18: 34 | AE18: 30.3 | AF18: 27.4 | AG18: 25.1 | AH18: 23.2 | AI18: 21.6 | AJ18: 20.3 | AK18: 19.2 | AL18: 18.2 | AM18: 17.4 | AN18: 16.6 | AO18: 16 | AP18: 15.4 | AQ18: 14.9
A19: 28 | B19: 237.1 | C19: 120.7 | D19: 82 | E19: 62.6 | F19: 51 | G19: 43.3 | H19: 37.7 | I19: 33.6 | J19: 30.4 | K19: 27.8 | L19: 25.8 | M19: 24 | N19: 22.6 | O19: 21.3 | P19: 20.2 | Q19: 19.3 | R19: 18.5 | S19: 17.7 | T19: 17.1 | U19: 16.5 | W19: 28 | X19: 216.7 | Y19: 110.4 | Z19: 74.9 | AA19: 57.2 | AB19: 46.6 | AC19: 39.5 | AD19: 34.5 | AE19: 30.7 | AF19: 27.8 | AG19: 25.5 | AH19: 23.5 | AI19: 22 | AJ19: 20.6 | AK19: 19.5 | AL19: 18.5 | AM19: 17.6 | AN19: 16.9 | AO19: 16.2 | AP19: 15.6 | AQ19: 15.1
A20: 29 | B20: 240.5 | C20: 122.5 | D20: 83.2 | E20: 63.5 | F20: 51.7 | G20: 43.9 | H20: 38.3 | I20: 34.1 | J20: 30.8 | K20: 28.3 | L20: 26.1 | M20: 24.4 | N20: 22.9 | O20: 21.6 | P20: 20.5 | Q20: 19.6 | R20: 18.7 | S20: 18 | T20: 17.3 | U20: 16.7 | W20: 29 | X20: 219.9 | Y20: 112 | Z20: 76 | AA20: 58 | AB20: 47.3 | AC20: 40.1 | AD20: 35 | AE20: 31.2 | AF20: 28.2 | AG20: 25.8 | AH20: 23.9 | AI20: 22.3 | AJ20: 20.9 | AK20: 19.8 | AL20: 18.8 | AM20: 17.9 | AN20: 17.1 | AO20: 16.4 | AP20: 15.8 | AQ20: 15.3
A21: 30 | B21: 244 | C21: 124.3 | D21: 84.4 | E21: 64.4 | F21: 52.5 | G21: 44.5 | H21: 38.8 | I21: 34.6 | J21: 31.3 | K21: 28.7 | L21: 26.5 | M21: 24.7 | N21: 23.2 | O21: 21.9 | P21: 20.8 | Q21: 19.9 | R21: 19 | S21: 18.3 | T21: 17.6 | U21: 17 | W21: 30 | X21: 223 | Y21: 113.6 | Z21: 77.1 | AA21: 58.9 | AB21: 48 | AC21: 40.7 | AD21: 35.5 | AE21: 31.6 | AF21: 28.6 | AG21: 26.2 | AH21: 24.2 | AI21: 22.6 | AJ21: 21.2 | AK21: 20 | AL21: 19 | AM21: 18.1 | AN21: 17.4 | AO21: 16.7 | AP21: 16.1 | AQ21: 15.5
A22: 31 | B22: 247.5 | C22: 126 | D22: 85.6 | E22: 65.4 | F22: 53.2 | G22: 45.2 | H22: 39.4 | I22: 35.1 | J22: 31.7 | K22: 29.1 | L22: 26.9 | M22: 25.1 | N22: 23.6 | O22: 22.3 | P22: 21.1 | Q22: 20.1 | R22: 19.3 | S22: 18.5 | T22: 17.8 | U22: 17.2 | W22: 31 | X22: 226.2 | Y22: 115.2 | Z22: 78.2 | AA22: 59.7 | AB22: 48.7 | AC22: 41.3 | AD22: 36 | AE22: 32.1 | AF22: 29 | AG22: 26.6 | AH22: 24.6 | AI22: 22.9 | AJ22: 21.5 | AK22: 20.3 | AL22: 19.3 | AM22: 18.4 | AN22: 17.6 | AO22: 16.9 | AP22: 16.3 | AQ22: 15.8
A23: 32 | B23: 251 | C23: 127.8 | D23: 86.8 | E23: 66.3 | F23: 54 | G23: 45.8 | H23: 40 | I23: 35.6 | J23: 32.2 | K23: 29.5 | L23: 27.3 | M23: 25.5 | N23: 23.9 | O23: 22.6 | P23: 21.4 | Q23: 20.4 | R23: 19.6 | S23: 18.8 | T23: 18.1 | U23: 17.5 | W23: 32 | X23: 229.5 | Y23: 116.9 | Z23: 79.3 | AA23: 60.6 | AB23: 49.4 | AC23: 41.9 | AD23: 36.5 | AE23: 32.5 | AF23: 29.4 | AG23: 27 | AH23: 24.9 | AI23: 23.3 | AJ23: 21.9 | AK23: 20.6 | AL23: 19.6 | AM23: 18.7 | AN23: 17.9 | AO23: 17.2 | AP23: 16.6 | AQ23: 16
A24: 33 | B24: 254.6 | C24: 129.7 | D24: 88 | E24: 67.2 | F24: 54.8 | G24: 46.5 | H24: 40.5 | I24: 36.1 | J24: 32.7 | K24: 29.9 | L24: 27.7 | M24: 25.8 | N24: 24.3 | O24: 22.9 | P24: 21.8 | Q24: 20.7 | R24: 19.9 | S24: 19.1 | T24: 18.4 | U24: 17.8 | W24: 33 | X24: 232.8 | Y24: 118.5 | Z24: 80.5 | AA24: 61.5 | AB24: 50.1 | AC24: 42.5 | AD24: 37.1 | AE24: 33 | AF24: 29.9 | AG24: 27.4 | AH24: 25.3 | AI24: 23.6 | AJ24: 22.2 | AK24: 20.9 | AL24: 19.9 | AM24: 19 | AN24: 18.2 | AO24: 17.4 | AP24: 16.8 | AQ24: 16.2
A25: 34 | B25: 258.3 | C25: 131.5 | D25: 89.3 | E25: 68.2 | F25: 55.6 | G25: 47.1 | H25: 41.1 | I25: 36.6 | J25: 33.1 | K25: 30.4 | L25: 28.1 | M25: 26.2 | N25: 24.6 | O25: 23.2 | P25: 22.1 | Q25: 21.1 | R25: 20.2 | S25: 19.4 | T25: 18.7 | U25: 18 | W25: 34 | X25: 236.1 | Y25: 120.2 | Z25: 81.6 | AA25: 62.4 | AB25: 50.8 | AC25: 43.1 | AD25: 37.6 | AE25: 33.5 | AF25: 30.3 | AG25: 27.8 | AH25: 25.7 | AI25: 24 | AJ25: 22.5 | AK25: 21.3 | AL25: 20.2 | AM25: 19.2 | AN25: 18.4 | AO25: 17.7 | AP25: 17.1 | AQ25: 16.5
A26: 35 | B26: 261.9 | C26: 133.4 | D26: 90.6 | E26: 69.2 | F26: 56.3 | G26: 47.8 | H26: 41.7 | I26: 37.2 | J26: 33.6 | K26: 30.8 | L26: 28.5 | M26: 26.6 | N26: 25 | O26: 23.6 | P26: 22.4 | Q26: 21.4 | R26: 20.5 | S26: 19.7 | T26: 18.9 | U26: 18.3 | W26: 35 | X26: 239.5 | Y26: 122 | Z26: 82.8 | AA26: 63.2 | AB26: 51.5 | AC26: 43.7 | AD26: 38.1 | AE26: 34 | AF26: 30.7 | AG26: 28.2 | AH26: 26.1 | AI26: 24.3 | AJ26: 22.8 | AK26: 21.6 | AL26: 20.5 | AM26: 19.5 | AN26: 18.7 | AO26: 18 | AP26: 17.3 | AQ26: 16.7
A27: 36 | B27: 265.6 | C27: 135.3 | D27: 91.9 | E27: 70.2 | F27: 57.2 | G27: 48.5 | H27: 42.3 | I27: 37.7 | J27: 34.1 | K27: 31.2 | L27: 28.9 | M27: 27 | N27: 25.3 | O27: 23.9 | P27: 22.7 | Q27: 21.7 | R27: 20.8 | S27: 20 | T27: 19.2 | U27: 18.6 | W27: 36 | X27: 242.9 | Y27: 123.7 | Z27: 84 | AA27: 64.2 | AB27: 52.3 | AC27: 44.3 | AD27: 38.7 | AE27: 34.5 | AF27: 31.2 | AG27: 28.6 | AH27: 26.4 | AI27: 24.7 | AJ27: 23.2 | AK27: 21.9 | AL27: 20.8 | AM27: 19.8 | AN27: 19 | AO27: 18.2 | AP27: 17.6 | AQ27: 17
A28: 37 | B28: 269.4 | C28: 137.2 | D28: 93.2 | E28: 71.2 | F28: 58 | G28: 49.2 | H28: 42.9 | I28: 38.2 | J28: 34.6 | K28: 31.7 | L28: 29.3 | M28: 27.4 | N28: 25.7 | O28: 24.3 | P28: 23.1 | Q28: 22 | R28: 21.1 | S28: 20.3 | T28: 19.5 | U28: 18.9 | W28: 37 | X28: 246.4 | Y28: 125.5 | Z28: 85.2 | AA28: 65.1 | AB28: 53 | AC28: 45 | AD28: 39.3 | AE28: 35 | AF28: 31.6 | AG28: 29 | AH28: 26.8 | AI28: 25 | AJ28: 23.5 | AK28: 22.2 | AL28: 21.1 | AM28: 20.1 | AN28: 19.3 | AO28: 18.5 | AP28: 17.9 | AQ28: 17.3
A29: 38 | B29: 273.2 | C29: 139.1 | D29: 94.5 | E29: 72.2 | F29: 58.8 | G29: 49.9 | H29: 43.5 | I29: 38.8 | J29: 35.1 | K29: 32.2 | L29: 29.8 | M29: 27.8 | N29: 26.1 | O29: 24.7 | P29: 23.4 | Q29: 22.3 | R29: 21.4 | S29: 20.6 | T29: 19.8 | U29: 19.2 | W29: 38 | X29: 249.9 | Y29: 127.3 | Z29: 86.4 | AA29: 66 | AB29: 53.8 | AC29: 45.6 | AD29: 39.8 | AE29: 35.5 | AF29: 32.1 | AG29: 29.4 | AH29: 27.2 | AI29: 25.4 | AJ29: 23.9 | AK29: 22.6 | AL29: 21.4 | AM29: 20.4 | AN29: 19.6 | AO29: 18.8 | AP29: 18.1 | AQ29: 17.5
A30: 39 | B30: 277 | C30: 141.1 | D30: 95.8 | E30: 73.2 | F30: 59.6 | G30: 50.6 | H30: 44.2 | I30: 39.3 | J30: 35.6 | K30: 32.6 | L30: 30.2 | M30: 28.2 | N30: 26.5 | O30: 25 | P30: 23.8 | Q30: 22.7 | R30: 21.7 | S30: 20.9 | T30: 20.1 | U30: 19.5 | W30: 39 | X30: 253.4 | Y30: 129.1 | Z30: 87.7 | AA30: 67 | AB30: 54.5 | AC30: 46.3 | AD30: 40.4 | AE30: 36 | AF30: 32.6 | AG30: 29.8 | AH30: 27.6 | AI30: 25.8 | AJ30: 24.2 | AK30: 22.9 | AL30: 21.8 | AM30: 20.8 | AN30: 19.9 | AO30: 19.1 | AP30: 18.4 | AQ30: 17.8
A31: 40 | B31: 280.9 | C31: 143.1 | D31: 97.2 | E31: 74.2 | F31: 60.5 | G31: 51.3 | H31: 44.8 | I31: 39.9 | J31: 36.1 | K31: 33.1 | L31: 30.6 | M31: 28.6 | N31: 26.9 | O31: 25.4 | P31: 24.1 | Q31: 23 | R31: 22.1 | S31: 21.2 | T31: 20.5 | U31: 19.8 | W31: 40 | X31: 257 | Y31: 130.9 | Z31: 88.9 | AA31: 67.9 | AB31: 55.3 | AC31: 47 | AD31: 41 | AE31: 36.5 | AF31: 33.1 | AG31: 30.3 | AH31: 28 | AI31: 26.2 | AJ31: 24.6 | AK31: 23.2 | AL31: 22.1 | AM31: 21.1 | AN31: 20.2 | AO31: 19.4 | AP31: 18.7 | AQ31: 18.1
A32: 41 | B32: 284.8 | C32: 145.1 | D32: 98.5 | E32: 75.3 | F32: 61.3 | G32: 52.1 | H32: 45.4 | I32: 40.5 | J32: 36.7 | K32: 33.6 | L32: 31.1 | M32: 29 | N32: 27.3 | O32: 25.8 | P32: 24.5 | Q32: 23.4 | R32: 22.4 | S32: 21.6 | T32: 20.8 | U32: 20.1 | W32: 41 | X32: 260.7 | Y32: 132.8 | Z32: 90.2 | AA32: 68.9 | AB32: 56.1 | AC32: 47.6 | AD32: 41.6 | AE32: 37.1 | AF32: 33.5 | AG32: 30.7 | AH32: 28.5 | AI32: 26.6 | AJ32: 25 | AK32: 23.6 | AL32: 22.4 | AM32: 21.4 | AN32: 20.5 | AO32: 19.7 | AP32: 19 | AQ32: 18.4
A33: 42 | B33: 288.8 | C33: 147.1 | D33: 99.9 | E33: 76.3 | F33: 62.2 | G33: 52.8 | H33: 46.1 | I33: 41.1 | J33: 37.2 | K33: 34.1 | L33: 31.6 | M33: 29.5 | N33: 27.7 | O33: 26.2 | P33: 24.9 | Q33: 23.8 | R33: 22.8 | S33: 21.9 | T33: 21.1 | U33: 20.4 | W33: 42 | X33: 264.4 | Y33: 134.7 | Z33: 91.5 | AA33: 69.9 | AB33: 56.9 | AC33: 48.3 | AD33: 42.2 | AE33: 37.6 | AF33: 34 | AG33: 31.2 | AH33: 28.9 | AI33: 27 | AJ33: 25.4 | AK33: 24 | AL33: 22.8 | AM33: 21.8 | AN33: 20.9 | AO33: 20.1 | AP33: 19.3 | AQ33: 18.7
A34: 43 | B34: 292.8 | C34: 149.2 | D34: 101.3 | E34: 77.4 | F34: 63.1 | G34: 53.6 | H34: 46.8 | I34: 41.7 | J34: 37.7 | K34: 34.6 | L34: 32 | M34: 29.9 | N34: 28.1 | O34: 26.6 | P34: 25.3 | Q34: 24.2 | R34: 23.2 | S34: 22.3 | T34: 21.5 | U34: 20.8 | W34: 43 | X34: 268.1 | Y34: 136.6 | Z34: 92.8 | AA34: 70.9 | AB34: 57.8 | AC34: 49 | AD34: 42.8 | AE34: 38.2 | AF34: 34.6 | AG34: 31.7 | AH34: 29.3 | AI34: 27.4 | AJ34: 25.8 | AK34: 24.4 | AL34: 23.2 | AM34: 22.1 | AN34: 21.2 | AO34: 20.4 | AP34: 19.7 | AQ34: 19
A35: 44 | B35: 296.9 | C35: 151.3 | D35: 102.7 | E35: 78.5 | F35: 64 | G35: 54.3 | H35: 47.5 | I35: 42.3 | J35: 38.3 | K35: 35.1 | L35: 32.5 | M35: 30.4 | N35: 28.6 | O35: 27 | P35: 25.7 | Q35: 24.5 | R35: 23.5 | S35: 22.6 | T35: 21.8 | U35: 21.1 | W35: 44 | X35: 271.9 | Y35: 138.5 | Z35: 94.1 | AA35: 71.9 | AB35: 58.6 | AC35: 49.8 | AD35: 43.5 | AE35: 38.7 | AF35: 35.1 | AG35: 32.2 | AH35: 29.8 | AI35: 27.8 | AJ35: 26.2 | AK35: 24.8 | AL35: 23.5 | AM35: 22.5 | AN35: 21.5 | AO35: 20.7 | AP35: 20 | AQ35: 19.4
A36: 45 | B36: 300.9 | C36: 153.3 | D36: 104.2 | E36: 79.6 | F36: 64.9 | G36: 55.1 | H36: 48.1 | I36: 42.9 | J36: 38.9 | K36: 35.7 | L36: 33 | M36: 30.8 | N36: 29 | O36: 27.5 | P36: 26.1 | Q36: 24.9 | R36: 23.9 | S36: 23 | T36: 22.2 | U36: 21.5 | W36: 45 | X36: 275.7 | Y36: 140.5 | Z36: 95.4 | AA36: 72.9 | AB36: 59.5 | AC36: 50.5 | AD36: 44.1 | AE36: 39.3 | AF36: 35.6 | AG36: 32.7 | AH36: 30.3 | AI36: 28.3 | AJ36: 26.6 | AK36: 25.1 | AL36: 23.9 | AM36: 22.8 | AN36: 21.9 | AO36: 21.1 | AP36: 20.3 | AQ36: 19.7
A37: 46 | B37: 305 | C37: 155.5 | D37: 105.6 | E37: 80.7 | F37: 65.8 | G37: 55.9 | H37: 48.8 | I37: 43.6 | J37: 39.5 | K37: 36.2 | L37: 33.5 | M37: 31.3 | N37: 29.5 | O37: 27.9 | P37: 26.5 | Q37: 25.3 | R37: 24.3 | S37: 23.4 | T37: 22.6 | U37: 21.9 | W37: 46 | X37: 279.5 | Y37: 142.5 | Z37: 96.8 | AA37: 74 | AB37: 60.3 | AC37: 51.2 | AD37: 44.8 | AE37: 39.9 | AF37: 36.2 | AG37: 33.2 | AH37: 30.7 | AI37: 28.7 | AJ37: 27 | AK37: 25.6 | AL37: 24.3 | AM37: 23.2 | AN37: 22.3 | AO37: 21.4 | AP37: 20.7 | AQ37: 20
A38: 47 | B38: 309.2 | C38: 157.6 | D38: 107.1 | E38: 81.9 | F38: 66.8 | G38: 56.7 | H38: 49.6 | I38: 44.2 | J38: 40.1 | K38: 36.7 | L38: 34.1 | M38: 31.8 | N38: 29.9 | O38: 28.3 | P38: 27 | Q38: 25.8 | R38: 24.7 | S38: 23.8 | T38: 23 | U38: 22.2 | W38: 47 | X38: 283.4 | Y38: 144.5 | Z38: 98.2 | AA38: 75.1 | AB38: 61.2 | AC38: 52 | AD38: 45.4 | AE38: 40.5 | AF38: 36.7 | AG38: 33.7 | AH38: 31.2 | AI38: 29.2 | AJ38: 27.4 | AK38: 26 | AL38: 24.7 | AM38: 23.6 | AN38: 22.7 | AO38: 21.8 | AP38: 21 | AQ38: 20.4
A39: 48 | B39: 313.3 | C39: 159.7 | D39: 108.6 | E39: 83 | F39: 67.7 | G39: 57.5 | H39: 50.3 | I39: 44.9 | J39: 40.7 | K39: 37.3 | L39: 34.6 | M39: 32.3 | N39: 30.4 | O39: 28.8 | P39: 27.4 | Q39: 26.2 | R39: 25.1 | S39: 24.2 | T39: 23.3 | W39: 48 | X39: 287.3 | Y39: 146.5 | Z39: 99.6 | AA39: 76.1 | AB39: 62.1 | AC39: 52.8 | AD39: 46.1 | AE39: 41.1 | AF39: 37.3 | AG39: 34.2 | AH39: 31.7 | AI39: 29.6 | AJ39: 27.9 | AK39: 26.4 | AL39: 25.1 | AM39: 24 | AN39: 23 | AO39: 22.2 | AP39: 21.4
A40: 49 | B40: 317.5 | C40: 161.9 | D40: 110.1 | E40: 84.2 | F40: 68.7 | G40: 58.4 | H40: 51 | I40: 45.5 | J40: 41.3 | K40: 37.9 | L40: 35.1 | M40: 32.8 | N40: 30.9 | O40: 29.2 | P40: 27.8 | Q40: 26.6 | R40: 25.5 | S40: 24.6 | W40: 49 | X40: 291.3 | Y40: 148.5 | Z40: 101 | AA40: 77.2 | AB40: 63 | AC40: 53.5 | AD40: 46.8 | AE40: 41.8 | AF40: 37.9 | AG40: 34.7 | AH40: 32.2 | AI40: 30.1 | AJ40: 28.3 | AK40: 26.8 | AL40: 25.5 | AM40: 24.4 | AN40: 23.4 | AO40: 22.6
A41: 50 | B41: 321.7 | C41: 164.1 | D41: 111.6 | E41: 85.3 | F41: 69.6 | G41: 59.2 | H41: 51.8 | I41: 46.2 | J41: 41.9 | K41: 38.4 | L41: 35.6 | M41: 33.3 | N41: 31.4 | O41: 29.7 | P41: 28.3 | Q41: 27 | R41: 25.9 | W41: 50 | X41: 295.2 | Y41: 150.6 | Z41: 102.4 | AA41: 78.3 | AB41: 63.9 | AC41: 54.3 | AD41: 47.5 | AE41: 42.4 | AF41: 38.4 | AG41: 35.3 | AH41: 32.7 | AI41: 30.6 | AJ41: 28.8 | AK41: 27.3 | AL41: 26 | AM41: 24.8 | AN41: 23.8
A42: 51 | B42: 325.9 | C42: 166.2 | D42: 113.1 | E42: 86.5 | F42: 70.6 | G42: 60 | H42: 52.5 | I42: 46.9 | J42: 42.5 | K42: 39 | L42: 36.2 | M42: 33.8 | N42: 31.9 | O42: 30.2 | P42: 28.7 | Q42: 27.5 | W42: 51 | X42: 299.2 | Y42: 152.6 | Z42: 103.8 | AA42: 79.4 | AB42: 64.8 | AC42: 55.1 | AD42: 48.2 | AE42: 43 | AF42: 39 | AG42: 35.8 | AH42: 33.2 | AI42: 31.1 | AJ42: 29.3 | AK42: 27.7 | AL42: 26.4 | AM42: 25.2
A43: 52 | B43: 330.1 | C43: 168.4 | D43: 114.6 | E43: 87.7 | F43: 71.6 | G43: 60.9 | H43: 53.2 | I43: 47.5 | J43: 43.1 | K43: 39.6 | L43: 36.7 | M43: 34.4 | N43: 32.4 | O43: 30.7 | P43: 29.2 | W43: 52 | X43: 303.3 | Y43: 154.7 | Z43: 105.3 | AA43: 80.6 | AB43: 65.8 | AC43: 55.9 | AD43: 48.9 | AE43: 43.7 | AF43: 39.6 | AG43: 36.4 | AH43: 33.7 | AI43: 31.6 | AJ43: 29.7 | AK43: 28.2 | AL43: 26.8
A44: 53 | B44: 334.4 | C44: 170.6 | D44: 116.1 | E44: 88.9 | F44: 72.6 | G44: 61.7 | H44: 54 | I44: 48.2 | J44: 43.8 | K44: 40.2 | L44: 37.3 | M44: 34.9 | N44: 32.9 | O44: 31.2 | W44: 53 | X44: 307.3 | Y44: 156.8 | Z44: 106.7 | AA44: 81.7 | AB44: 66.7 | AC44: 56.7 | AD44: 49.6 | AE44: 44.3 | AF44: 40.2 | AG44: 36.9 | AH44: 34.3 | AI44: 32.1 | AJ44: 30.2 | AK44: 28.7
A45: 54 | B45: 338.7 | C45: 172.9 | D45: 117.7 | E45: 90.1 | F45: 73.6 | G45: 62.6 | H45: 54.8 | I45: 48.9 | J45: 44.4 | K45: 40.8 | L45: 37.9 | M45: 35.4 | N45: 33.4 | W45: 54 | X45: 311.5 | Y45: 159 | Z45: 108.2 | AA45: 82.9 | AB45: 67.7 | AC45: 57.6 | AD45: 50.4 | AE45: 45 | AF45: 40.8 | AG45: 37.5 | AH45: 34.8 | AI45: 32.6 | AJ45: 30.7
A46: 55 | B46: 343.1 | C46: 175.2 | D46: 119.2 | E46: 91.3 | F46: 74.6 | G46: 63.5 | H46: 55.6 | I46: 49.6 | J46: 45.1 | K46: 41.4 | L46: 38.4 | M46: 36 | W46: 55 | X46: 315.7 | Y46: 161.2 | Z46: 109.7 | AA46: 84 | AB46: 68.6 | AC46: 58.4 | AD46: 51.1 | AE46: 45.7 | AF46: 41.5 | AG46: 38.1 | AH46: 35.4 | AI46: 33.1
A47: 56 | B47: 347.5 | C47: 177.5 | D47: 120.8 | E47: 92.6 | F47: 75.6 | G47: 64.4 | H47: 56.4 | I47: 50.4 | J47: 45.7 | K47: 42 | L47: 39 | W47: 56 | X47: 320 | Y47: 163.4 | Z47: 111.3 | AA47: 85.2 | AB47: 69.6 | AC47: 59.3 | AD47: 51.9 | AE47: 46.4 | AF47: 42.1 | AG47: 38.7 | AH47: 36
A48: 57 | B48: 352 | C48: 179.8 | D48: 122.5 | E48: 93.8 | F48: 76.7 | G48: 65.3 | H48: 57.2 | I48: 51.1 | J48: 46.4 | K48: 42.7 | W48: 57 | X48: 324.4 | Y48: 165.7 | Z48: 112.9 | AA48: 86.5 | AB48: 70.7 | AC48: 60.2 | AD48: 52.7 | AE48: 47.1 | AF48: 42.8 | AG48: 39.4
A49: 58 | B49: 356.7 | C49: 182.2 | D49: 124.2 | E49: 95.2 | F49: 77.8 | G49: 66.2 | H49: 58 | I49: 51.9 | J49: 47.1 | W49: 58 | X49: 328.9 | Y49: 168.1 | Z49: 114.5 | AA49: 87.7 | AB49: 71.7 | AC49: 61.1 | AD49: 53.5 | AE49: 47.8 | AF49: 43.5
A50: 59 | B50: 361.5 | C50: 184.7 | D50: 125.9 | E50: 96.5 | F50: 78.9 | G50: 67.2 | H50: 58.9 | I50: 52.7 | W50: 59 | X50: 333.6 | Y50: 170.5 | Z50: 116.2 | AA50: 89.1 | AB50: 72.8 | AC50: 62 | AD50: 54.3 | AE50: 48.7
A51: 60 | B51: 366.4 | C51: 187.3 | D51: 127.7 | E51: 97.9 | F51: 80.1 | G51: 68.2 | H51: 59.8 | W51: 60 | X51: 338.5 | Y51: 173 | Z51: 117.9 | AA51: 90.4 | AB51: 74 | AC51: 63 | AD51: 55.3
A52: 61 | B52: 371.5 | C52: 190 | D52: 129.5 | E52: 99.3 | F52: 81.3 | G52: 69.3 | W52: 61 | X52: 343.5 | Y52: 175.6 | Z52: 119.7 | AA52: 91.8 | AB52: 75.1 | AC52: 64.1
A53: 62 | B53: 376.8 | C53: 192.7 | D53: 131.4 | E53: 100.8 | F53: 82.6 | W53: 62 | X53: 348.7 | Y53: 178.4 | Z53: 121.6 | AA53: 93.3 | AB53: 76.4
A54: 63 | B54: 382.4 | C54: 195.6 | D54: 133.4 | E54: 102.4 | W54: 63 | X54: 354.2 | Y54: 181.2 | Z54: 123.6 | AA54: 94.9
A55: 64 | B55: 388.2 | C55: 198.6 | D55: 135.6 | W55: 64 | X55: 360 | Y55: 184.2 | Z55: 125.7
A56: 65 | B56: 394.2 | C56: 201.8 | W56: 65 | X56: 366 | Y56: 187.4
A57: 66 | B57: 400.5 | W57: 66 | X57: 372.2

Sheet NRA68 (hidden)
A2: Regular Contribution Elections | W2: Regular Contribution Elections
A3: Table D68: Personal and Dependant’s Benefits, NRA 68 | I3: x-715 | W3: Table P68: Personal Benefits, NRA 68 | AC3: x-714
A5: Age when notice of election given â | B5: Monthly contribution to purchase £250 of APB at date of election, £ | W5: Age when notice of election given â | X5: Monthly contribution to purchase £250 of APB at date of election, £
A6: Payment period (in years) à | B6: 1 | C6: 2 | D6: 3 | E6: 4 | F6: 5 | G6: 6 | H6: 7 | I6: 8 | J6: 9 | K6: 10 | L6: 11 | M6: 12 | N6: 13 | O6: 14 | P6: 15 | Q6: 16 | R6: 17 | S6: 18 | T6: 19 | U6: 20 | W6: Payment period (in years) à | X6: 1 | Y6: 2 | Z6: 3 | AA6: 4 | AB6: 5 | AC6: 6 | AD6: 7 | AE6: 8 | AF6: 9 | AG6: 10 | AH6: 11 | AI6: 12 | AJ6: 13 | AK6: 14 | AL6: 15 | AM6: 16 | AN6: 17 | AO6: 18 | AP6: 19 | AQ6: 20
A7: 16 | W7: 16
A8: 17 | W8: 17
A9: 18 | W9: 18
A10: 19 | W10: 19
A11: 20 | B11: 203 | C11: 103.4 | D11: 70.2 | E11: 53.6 | F11: 43.6 | G11: 37 | H11: 32.3 | I11: 28.8 | J11: 26 | K11: 23.8 | L11: 22 | M11: 20.5 | N11: 19.3 | O11: 18.2 | P11: 17.3 | Q11: 16.5 | R11: 15.8 | S11: 15.1 | T11: 14.6 | U11: 14.1 | W11: 20 | X11: 184.9 | Y11: 94.1 | Z11: 63.9 | AA11: 48.8 | AB11: 39.7 | AC11: 33.7 | AD11: 29.4 | AE11: 26.2 | AF11: 23.7 | AG11: 21.7 | AH11: 20.1 | AI11: 18.7 | AJ11: 17.6 | AK11: 16.6 | AL11: 15.8 | AM11: 15 | AN11: 14.4 | AO11: 13.8 | AP11: 13.3 | AQ11: 12.8
A12: 21 | B12: 206 | C12: 104.9 | D12: 71.2 | E12: 54.4 | F12: 44.3 | G12: 37.6 | H12: 32.8 | I12: 29.2 | J12: 26.4 | K12: 24.2 | L12: 22.4 | M12: 20.8 | N12: 19.6 | O12: 18.5 | P12: 17.5 | Q12: 16.7 | R12: 16 | S12: 15.4 | T12: 14.8 | U12: 14.3 | W12: 21 | X12: 187.5 | Y12: 95.5 | Z12: 64.8 | AA12: 49.5 | AB12: 40.3 | AC12: 34.2 | AD12: 29.8 | AE12: 26.6 | AF12: 24 | AG12: 22 | AH12: 20.4 | AI12: 19 | AJ12: 17.8 | AK12: 16.8 | AL12: 16 | AM12: 15.2 | AN12: 14.6 | AO12: 14 | AP12: 13.5 | AQ12: 13
A13: 22 | B13: 209 | C13: 106.4 | D13: 72.2 | E13: 55.2 | F13: 44.9 | G13: 38.1 | H13: 33.2 | I13: 29.6 | J13: 26.8 | K13: 24.5 | L13: 22.7 | M13: 21.2 | N13: 19.9 | O13: 18.8 | P13: 17.8 | Q13: 17 | R13: 16.2 | S13: 15.6 | T13: 15 | U13: 14.5 | W13: 22 | X13: 190.3 | Y13: 96.9 | Z13: 65.8 | AA13: 50.2 | AB13: 40.9 | AC13: 34.7 | AD13: 30.3 | AE13: 27 | AF13: 24.4 | AG13: 22.3 | AH13: 20.7 | AI13: 19.3 | AJ13: 18.1 | AK13: 17.1 | AL13: 16.2 | AM13: 15.5 | AN13: 14.8 | AO13: 14.2 | AP13: 13.7 | AQ13: 13.2
A14: 23 | B14: 212 | C14: 107.9 | D14: 73.3 | E14: 56 | F14: 45.6 | G14: 38.7 | H14: 33.7 | I14: 30 | J14: 27.2 | K14: 24.9 | L14: 23 | M14: 21.5 | N14: 20.1 | O14: 19 | P14: 18.1 | Q14: 17.2 | R14: 16.5 | S14: 15.8 | T14: 15.2 | U14: 14.7 | W14: 23 | X14: 193 | Y14: 98.3 | Z14: 66.7 | AA14: 51 | AB14: 41.5 | AC14: 35.2 | AD14: 30.7 | AE14: 27.4 | AF14: 24.7 | AG14: 22.7 | AH14: 21 | AI14: 19.5 | AJ14: 18.4 | AK14: 17.3 | AL14: 16.5 | AM14: 15.7 | AN14: 15 | AO14: 14.4 | AP14: 13.9 | AQ14: 13.4
A15: 24 | B15: 215.1 | C15: 109.5 | D15: 74.3 | E15: 56.8 | F15: 46.2 | G15: 39.2 | H15: 34.2 | I15: 30.5 | J15: 27.6 | K15: 25.2 | L15: 23.3 | M15: 21.8 | N15: 20.4 | O15: 19.3 | P15: 18.3 | Q15: 17.5 | R15: 16.7 | S15: 16.1 | T15: 15.5 | U15: 14.9 | W15: 24 | X15: 195.8 | Y15: 99.7 | Z15: 67.7 | AA15: 51.7 | AB15: 42.1 | AC15: 35.7 | AD15: 31.2 | AE15: 27.7 | AF15: 25.1 | AG15: 23 | AH15: 21.3 | AI15: 19.8 | AJ15: 18.6 | AK15: 17.6 | AL15: 16.7 | AM15: 15.9 | AN15: 15.2 | AO15: 14.6 | AP15: 14.1 | AQ15: 13.6
A16: 25 | B16: 218.2 | C16: 111.1 | D16: 75.4 | E16: 57.6 | F16: 46.9 | G16: 39.8 | H16: 34.7 | I16: 30.9 | J16: 28 | K16: 25.6 | L16: 23.7 | M16: 22.1 | N16: 20.7 | O16: 19.6 | P16: 18.6 | Q16: 17.7 | R16: 17 | S16: 16.3 | T16: 15.7 | U16: 15.2 | W16: 25 | X16: 198.6 | Y16: 101.1 | Z16: 68.7 | AA16: 52.4 | AB16: 42.7 | AC16: 36.2 | AD16: 31.6 | AE16: 28.2 | AF16: 25.5 | AG16: 23.3 | AH16: 21.6 | AI16: 20.1 | AJ16: 18.9 | AK16: 17.8 | AL16: 16.9 | AM16: 16.1 | AN16: 15.5 | AO16: 14.8 | AP16: 14.3 | AQ16: 13.8
A17: 26 | B17: 221.3 | C17: 112.7 | D17: 76.5 | E17: 58.4 | F17: 47.6 | G17: 40.4 | H17: 35.2 | I17: 31.4 | J17: 28.4 | K17: 26 | L17: 24 | M17: 22.4 | N17: 21 | O17: 19.9 | P17: 18.9 | Q17: 18 | R17: 17.2 | S17: 16.5 | T17: 15.9 | U17: 15.4 | W17: 26 | X17: 201.5 | Y17: 102.6 | Z17: 69.7 | AA17: 53.2 | AB17: 43.3 | AC17: 36.8 | AD17: 32.1 | AE17: 28.6 | AF17: 25.8 | AG17: 23.7 | AH17: 21.9 | AI17: 20.4 | AJ17: 19.2 | AK17: 18.1 | AL17: 17.2 | AM17: 16.4 | AN17: 15.7 | AO17: 15.1 | AP17: 14.5 | AQ17: 14
A18: 27 | B18: 224.5 | C18: 114.3 | D18: 77.6 | E18: 59.3 | F18: 48.3 | G18: 40.9 | H18: 35.7 | I18: 31.8 | J18: 28.8 | K18: 26.4 | L18: 24.4 | M18: 22.7 | N18: 21.4 | O18: 20.2 | P18: 19.1 | Q18: 18.3 | R18: 17.5 | S18: 16.8 | T18: 16.2 | U18: 15.6 | W18: 27 | X18: 204.4 | Y18: 104.1 | Z18: 70.7 | AA18: 54 | AB18: 44 | AC18: 37.3 | AD18: 32.5 | AE18: 29 | AF18: 26.2 | AG18: 24 | AH18: 22.2 | AI18: 20.7 | AJ18: 19.4 | AK18: 18.4 | AL18: 17.4 | AM18: 16.6 | AN18: 15.9 | AO18: 15.3 | AP18: 14.7 | AQ18: 14.2
A19: 28 | B19: 227.7 | C19: 116 | D19: 78.7 | E19: 60.1 | F19: 49 | G19: 41.5 | H19: 36.2 | I19: 32.3 | J19: 29.2 | K19: 26.7 | L19: 24.7 | M19: 23.1 | N19: 21.7 | O19: 20.5 | P19: 19.4 | Q19: 18.5 | R19: 17.7 | S19: 17 | T19: 16.4 | U19: 15.8 | W19: 28 | X19: 207.3 | Y19: 105.6 | Z19: 71.7 | AA19: 54.7 | AB19: 44.6 | AC19: 37.8 | AD19: 33 | AE19: 29.4 | AF19: 26.6 | AG19: 24.4 | AH19: 22.5 | AI19: 21 | AJ19: 19.7 | AK19: 18.6 | AL19: 17.7 | AM19: 16.9 | AN19: 16.1 | AO19: 15.5 | AP19: 14.9 | AQ19: 14.4
A20: 29 | B20: 231 | C20: 117.6 | D20: 79.9 | E20: 61 | F20: 49.7 | G20: 42.1 | H20: 36.8 | I20: 32.7 | J20: 29.6 | K20: 27.1 | L20: 25.1 | M20: 23.4 | N20: 22 | O20: 20.8 | P20: 19.7 | Q20: 18.8 | R20: 18 | S20: 17.3 | T20: 16.6 | U20: 16.1 | W20: 29 | X20: 210.3 | Y20: 107.1 | Z20: 72.7 | AA20: 55.5 | AB20: 45.2 | AC20: 38.4 | AD20: 33.5 | AE20: 29.8 | AF20: 27 | AG20: 24.7 | AH20: 22.9 | AI20: 21.3 | AJ20: 20 | AK20: 18.9 | AL20: 17.9 | AM20: 17.1 | AN20: 16.4 | AO20: 15.7 | AP20: 15.2 | AQ20: 14.6
A21: 30 | B21: 234.3 | C21: 119.3 | D21: 81 | E21: 61.9 | F21: 50.4 | G21: 42.7 | H21: 37.3 | I21: 33.2 | J21: 30 | K21: 27.5 | L21: 25.5 | M21: 23.7 | N21: 22.3 | O21: 21.1 | P21: 20 | Q21: 19.1 | R21: 18.2 | S21: 17.5 | T21: 16.9 | U21: 16.3 | W21: 30 | X21: 213.3 | Y21: 108.6 | Z21: 73.7 | AA21: 56.3 | AB21: 45.9 | AC21: 38.9 | AD21: 34 | AE21: 30.2 | AF21: 27.4 | AG21: 25.1 | AH21: 23.2 | AI21: 21.6 | AJ21: 20.3 | AK21: 19.2 | AL21: 18.2 | AM21: 17.4 | AN21: 16.6 | AO21: 16 | AP21: 15.4 | AQ21: 14.9
A22: 31 | B22: 237.6 | C22: 121 | D22: 82.2 | E22: 62.7 | F22: 51.1 | G22: 43.4 | H22: 37.8 | I22: 33.7 | J22: 30.5 | K22: 27.9 | L22: 25.8 | M22: 24.1 | N22: 22.6 | O22: 21.4 | P22: 20.3 | Q22: 19.3 | R22: 18.5 | S22: 17.8 | T22: 17.1 | U22: 16.5 | W22: 31 | X22: 216.4 | Y22: 110.2 | Z22: 74.8 | AA22: 57.1 | AB22: 46.5 | AC22: 39.5 | AD22: 34.4 | AE22: 30.7 | AF22: 27.8 | AG22: 25.4 | AH22: 23.5 | AI22: 21.9 | AJ22: 20.6 | AK22: 19.5 | AL22: 18.5 | AM22: 17.6 | AN22: 16.9 | AO22: 16.2 | AP22: 15.6 | AQ22: 15.1
A23: 32 | B23: 241 | C23: 122.7 | D23: 83.3 | E23: 63.6 | F23: 51.8 | G23: 44 | H23: 38.4 | I23: 34.2 | J23: 30.9 | K23: 28.3 | L23: 26.2 | M23: 24.4 | N23: 22.9 | O23: 21.7 | P23: 20.6 | Q23: 19.6 | R23: 18.8 | S23: 18 | T23: 17.4 | U23: 16.8 | W23: 32 | X23: 219.4 | Y23: 111.7 | Z23: 75.9 | AA23: 57.9 | AB23: 47.2 | AC23: 40 | AD23: 34.9 | AE23: 31.1 | AF23: 28.2 | AG23: 25.8 | AH23: 23.9 | AI23: 22.3 | AJ23: 20.9 | AK23: 19.7 | AL23: 18.7 | AM23: 17.9 | AN23: 17.1 | AO23: 16.4 | AP23: 15.8 | AQ23: 15.3
A24: 33 | B24: 244.4 | C24: 124.5 | D24: 84.5 | E24: 64.5 | F24: 52.6 | G24: 44.6 | H24: 38.9 | I24: 34.7 | J24: 31.4 | K24: 28.7 | L24: 26.6 | M24: 24.8 | N24: 23.3 | O24: 22 | P24: 20.9 | Q24: 19.9 | R24: 19.1 | S24: 18.3 | T24: 17.6 | U24: 17 | W24: 33 | X24: 222.6 | Y24: 113.3 | Z24: 77 | AA24: 58.8 | AB24: 47.9 | AC24: 40.6 | AD24: 35.4 | AE24: 31.6 | AF24: 28.6 | AG24: 26.2 | AH24: 24.2 | AI24: 22.6 | AJ24: 21.2 | AK24: 20 | AL24: 19 | AM24: 18.1 | AN24: 17.4 | AO24: 16.7 | AP24: 16.1 | AQ24: 15.5
A25: 34 | B25: 247.9 | C25: 126.2 | D25: 85.7 | E25: 65.5 | F25: 53.3 | G25: 45.2 | H25: 39.5 | I25: 35.2 | J25: 31.8 | K25: 29.1 | L25: 27 | M25: 25.1 | N25: 23.6 | O25: 22.3 | P25: 21.2 | Q25: 20.2 | R25: 19.3 | S25: 18.6 | T25: 17.9 | U25: 17.3 | W25: 34 | X25: 225.7 | Y25: 115 | Z25: 78.1 | AA25: 59.6 | AB25: 48.6 | AC25: 41.2 | AD25: 36 | AE25: 32 | AF25: 29 | AG25: 26.5 | AH25: 24.6 | AI25: 22.9 | AJ25: 21.5 | AK25: 20.3 | AL25: 19.3 | AM25: 18.4 | AN25: 17.6 | AO25: 16.9 | AP25: 16.3 | AQ25: 15.8
A26: 35 | B26: 251.4 | C26: 128 | D26: 86.9 | E26: 66.4 | F26: 54.1 | G26: 45.9 | H26: 40 | I26: 35.7 | J26: 32.3 | K26: 29.6 | L26: 27.3 | M26: 25.5 | N26: 24 | O26: 22.6 | P26: 21.5 | Q26: 20.5 | R26: 19.6 | S26: 18.9 | T26: 18.2 | U26: 17.6 | W26: 35 | X26: 228.9 | Y26: 116.6 | Z26: 79.2 | AA26: 60.5 | AB26: 49.3 | AC26: 41.8 | AD26: 36.5 | AE26: 32.5 | AF26: 29.4 | AG26: 26.9 | AH26: 24.9 | AI26: 23.2 | AJ26: 21.8 | AK26: 20.6 | AL26: 19.6 | AM26: 18.7 | AN26: 17.9 | AO26: 17.2 | AP26: 16.6 | AQ26: 16
A27: 36 | B27: 254.9 | C27: 129.8 | D27: 88.1 | E27: 67.3 | F27: 54.8 | G27: 46.5 | H27: 40.6 | I27: 36.2 | J27: 32.7 | K27: 30 | L27: 27.7 | M27: 25.9 | N27: 24.3 | O27: 23 | P27: 21.8 | Q27: 20.8 | R27: 19.9 | S27: 19.1 | T27: 18.5 | U27: 17.8 | W27: 36 | X27: 232.2 | Y27: 118.2 | Z27: 80.3 | AA27: 61.3 | AB27: 50 | AC27: 42.4 | AD27: 37 | AE27: 33 | AF27: 29.8 | AG27: 27.3 | AH27: 25.3 | AI27: 23.6 | AJ27: 22.1 | AK27: 20.9 | AL27: 19.9 | AM27: 19 | AN27: 18.2 | AO27: 17.4 | AP27: 16.8 | AQ27: 16.3
A28: 37 | B28: 258.5 | C28: 131.6 | D28: 89.4 | E28: 68.3 | F28: 55.6 | G28: 47.2 | H28: 41.2 | I28: 36.7 | J28: 33.2 | K28: 30.4 | L28: 28.1 | M28: 26.3 | N28: 24.7 | O28: 23.3 | P28: 22.1 | Q28: 21.1 | R28: 20.2 | S28: 19.4 | T28: 18.7 | U28: 18.1 | W28: 37 | X28: 235.5 | Y28: 119.9 | Z28: 81.4 | AA28: 62.2 | AB28: 50.7 | AC28: 43 | AD28: 37.5 | AE28: 33.4 | AF28: 30.2 | AG28: 27.7 | AH28: 25.6 | AI28: 23.9 | AJ28: 22.5 | AK28: 21.2 | AL28: 20.2 | AM28: 19.2 | AN28: 18.4 | AO28: 17.7 | AP28: 17.1 | AQ28: 16.5
A29: 38 | B29: 262.1 | C29: 133.5 | D29: 90.6 | E29: 69.2 | F29: 56.4 | G29: 47.9 | H29: 41.8 | I29: 37.2 | J29: 33.7 | K29: 30.9 | L29: 28.6 | M29: 26.6 | N29: 25 | O29: 23.7 | P29: 22.5 | Q29: 21.4 | R29: 20.5 | S29: 19.7 | T29: 19 | U29: 18.4 | W29: 38 | X29: 238.8 | Y29: 121.6 | Z29: 82.6 | AA29: 63.1 | AB29: 51.4 | AC29: 43.6 | AD29: 38.1 | AE29: 33.9 | AF29: 30.7 | AG29: 28.1 | AH29: 26 | AI29: 24.3 | AJ29: 22.8 | AK29: 21.6 | AL29: 20.5 | AM29: 19.5 | AN29: 18.7 | AO29: 18 | AP29: 17.3 | AQ29: 16.8
A30: 39 | B30: 265.8 | C30: 135.4 | D30: 91.9 | E30: 70.2 | F30: 57.2 | G30: 48.5 | H30: 42.4 | I30: 37.7 | J30: 34.2 | K30: 31.3 | L30: 29 | M30: 27 | N30: 25.4 | O30: 24 | P30: 22.8 | Q30: 21.8 | R30: 20.9 | S30: 20 | T30: 19.3 | U30: 18.7 | W30: 39 | X30: 242.2 | Y30: 123.3 | Z30: 83.8 | AA30: 64 | AB30: 52.1 | AC30: 44.2 | AD30: 38.6 | AE30: 34.4 | AF30: 31.1 | AG30: 28.5 | AH30: 26.4 | AI30: 24.6 | AJ30: 23.1 | AK30: 21.9 | AL30: 20.8 | AM30: 19.8 | AN30: 19 | AO30: 18.3 | AP30: 17.6 | AQ30: 17
A31: 40 | B31: 269.4 | C31: 137.2 | D31: 93.2 | E31: 71.2 | F31: 58 | G31: 49.2 | H31: 43 | I31: 38.3 | J31: 34.7 | K31: 31.8 | L31: 29.4 | M31: 27.4 | N31: 25.8 | O31: 24.4 | P31: 23.2 | Q31: 22.1 | R31: 21.2 | S31: 20.4 | T31: 19.6 | U31: 19 | W31: 40 | X31: 245.6 | Y31: 125.1 | Z31: 84.9 | AA31: 64.9 | AB31: 52.9 | AC31: 44.9 | AD31: 39.2 | AE31: 34.9 | AF31: 31.6 | AG31: 28.9 | AH31: 26.8 | AI31: 25 | AJ31: 23.5 | AK31: 22.2 | AL31: 21.1 | AM31: 20.1 | AN31: 19.3 | AO31: 18.6 | AP31: 17.9 | AQ31: 17.3
A32: 41 | B32: 273.2 | C32: 139.2 | D32: 94.5 | E32: 72.2 | F32: 58.8 | G32: 49.9 | H32: 43.6 | I32: 38.8 | J32: 35.2 | K32: 32.2 | L32: 29.8 | M32: 27.8 | N32: 26.2 | O32: 24.7 | P32: 23.5 | Q32: 22.4 | R32: 21.5 | S32: 20.7 | T32: 19.9 | U32: 19.3 | W32: 41 | X32: 249 | Y32: 126.8 | Z32: 86.1 | AA32: 65.8 | AB32: 53.6 | AC32: 45.5 | AD32: 39.7 | AE32: 35.4 | AF32: 32.1 | AG32: 29.4 | AH32: 27.2 | AI32: 25.4 | AJ32: 23.9 | AK32: 22.6 | AL32: 21.4 | AM32: 20.5 | AN32: 19.6 | AO32: 18.9 | AP32: 18.2 | AQ32: 17.6
A33: 42 | B33: 277 | C33: 141.1 | D33: 95.8 | E33: 73.2 | F33: 59.7 | G33: 50.6 | H33: 44.2 | I33: 39.4 | J33: 35.7 | K33: 32.7 | L33: 30.3 | M33: 28.3 | N33: 26.6 | O33: 25.1 | P33: 23.9 | Q33: 22.8 | R33: 21.8 | S33: 21 | T33: 20.3 | U33: 19.6 | W33: 42 | X33: 252.5 | Y33: 128.6 | Z33: 87.4 | AA33: 66.8 | AB33: 54.4 | AC33: 46.2 | AD33: 40.3 | AE33: 35.9 | AF33: 32.5 | AG33: 29.8 | AH33: 27.6 | AI33: 25.8 | AJ33: 24.2 | AK33: 22.9 | AL33: 21.8 | AM33: 20.8 | AN33: 19.9 | AO33: 19.2 | AP33: 18.5 | AQ33: 17.9
A34: 43 | B34: 280.8 | C34: 143 | D34: 97.2 | E34: 74.2 | F34: 60.5 | G34: 51.4 | H34: 44.8 | I34: 40 | J34: 36.2 | K34: 33.2 | L34: 30.7 | M34: 28.7 | N34: 27 | O34: 25.5 | P34: 24.3 | Q34: 23.2 | R34: 22.2 | S34: 21.4 | T34: 20.6 | U34: 19.9 | W34: 43 | X34: 256.1 | Y34: 130.5 | Z34: 88.6 | AA34: 67.7 | AB34: 55.2 | AC34: 46.8 | AD34: 40.9 | AE34: 36.5 | AF34: 33 | AG34: 30.3 | AH34: 28 | AI34: 26.2 | AJ34: 24.6 | AK34: 23.3 | AL34: 22.1 | AM34: 21.1 | AN34: 20.2 | AO34: 19.5 | AP34: 18.8 | AQ34: 18.2
A35: 44 | B35: 284.6 | C35: 145 | D35: 98.5 | E35: 75.3 | F35: 61.4 | G35: 52.1 | H35: 45.5 | I35: 40.6 | J35: 36.7 | K35: 33.7 | L35: 31.2 | M35: 29.1 | N35: 27.4 | O35: 25.9 | P35: 24.6 | Q35: 23.5 | R35: 22.6 | S35: 21.7 | T35: 20.9 | U35: 20.3 | W35: 44 | X35: 259.6 | Y35: 132.3 | Z35: 89.9 | AA35: 68.7 | AB35: 56 | AC35: 47.5 | AD35: 41.5 | AE35: 37 | AF35: 33.5 | AG35: 30.7 | AH35: 28.5 | AI35: 26.6 | AJ35: 25 | AK35: 23.6 | AL35: 22.5 | AM35: 21.5 | AN35: 20.6 | AO35: 19.8 | AP35: 19.1 | AQ35: 18.5
A36: 45 | B36: 288.5 | C36: 147 | D36: 99.9 | E36: 76.3 | F36: 62.2 | G36: 52.8 | H36: 46.1 | I36: 41.1 | J36: 37.3 | K36: 34.2 | L36: 31.7 | M36: 29.6 | N36: 27.8 | O36: 26.3 | P36: 25 | Q36: 23.9 | R36: 22.9 | S36: 22.1 | T36: 21.3 | U36: 20.6 | W36: 45 | X36: 263.2 | Y36: 134.1 | Z36: 91.1 | AA36: 69.6 | AB36: 56.8 | AC36: 48.2 | AD36: 42.1 | AE36: 37.5 | AF36: 34 | AG36: 31.2 | AH36: 28.9 | AI36: 27 | AJ36: 25.4 | AK36: 24 | AL36: 22.8 | AM36: 21.8 | AN36: 20.9 | AO36: 20.1 | AP36: 19.4 | AQ36: 18.8
A37: 46 | B37: 292.3 | C37: 149 | D37: 101.2 | E37: 77.4 | F37: 63.1 | G37: 53.6 | H37: 46.8 | I37: 41.7 | J37: 37.8 | K37: 34.7 | L37: 32.1 | M37: 30 | N37: 28.2 | O37: 26.7 | P37: 25.4 | Q37: 24.3 | R37: 23.3 | S37: 22.4 | T37: 21.6 | U37: 20.9 | W37: 46 | X37: 266.9 | Y37: 136 | Z37: 92.4 | AA37: 70.6 | AB37: 57.6 | AC37: 48.9 | AD37: 42.7 | AE37: 38.1 | AF37: 34.5 | AG37: 31.7 | AH37: 29.3 | AI37: 27.4 | AJ37: 25.8 | AK37: 24.4 | AL37: 23.2 | AM37: 22.2 | AN37: 21.3 | AO37: 20.5 | AP37: 19.8 | AQ37: 19.1
A38: 47 | B38: 296.2 | C38: 151 | D38: 102.6 | E38: 78.5 | F38: 64 | G38: 54.3 | H38: 47.5 | I38: 42.4 | J38: 38.4 | K38: 35.2 | L38: 32.6 | M38: 30.5 | N38: 28.7 | O38: 27.2 | P38: 25.8 | Q38: 24.7 | R38: 23.7 | S38: 22.8 | T38: 22 | U38: 21.3 | W38: 47 | X38: 270.5 | Y38: 137.9 | Z38: 93.7 | AA38: 71.6 | AB38: 58.4 | AC38: 49.6 | AD38: 43.4 | AE38: 38.7 | AF38: 35 | AG38: 32.2 | AH38: 29.8 | AI38: 27.8 | AJ38: 26.2 | AK38: 24.8 | AL38: 23.6 | AM38: 22.5 | AN38: 21.6 | AO38: 20.8 | AP38: 20.1 | AQ38: 19.5
A39: 48 | B39: 300.2 | C39: 153 | D39: 104 | E39: 79.5 | F39: 64.9 | G39: 55.1 | H39: 48.2 | I39: 43 | J39: 38.9 | K39: 35.7 | L39: 33.1 | M39: 31 | N39: 29.1 | O39: 27.6 | P39: 26.2 | Q39: 25.1 | R39: 24.1 | S39: 23.2 | T39: 22.4 | U39: 21.6 | W39: 48 | X39: 274.2 | Y39: 139.8 | Z39: 95 | AA39: 72.7 | AB39: 59.3 | AC39: 50.4 | AD39: 44 | AE39: 39.3 | AF39: 35.6 | AG39: 32.6 | AH39: 30.3 | AI39: 28.3 | AJ39: 26.6 | AK39: 25.2 | AL39: 24 | AM39: 22.9 | AN39: 22 | AO39: 21.2 | AP39: 20.4 | AQ39: 19.8
A40: 49 | B40: 304.1 | C40: 155.1 | D40: 105.4 | E40: 80.6 | F40: 65.8 | G40: 55.9 | H40: 48.9 | I40: 43.6 | J40: 39.5 | K40: 36.3 | L40: 33.6 | M40: 31.4 | N40: 29.6 | O40: 28 | P40: 26.7 | Q40: 25.5 | R40: 24.5 | S40: 23.5 | T40: 22.7 | W40: 49 | X40: 277.9 | Y40: 141.7 | Z40: 96.3 | AA40: 73.7 | AB40: 60.1 | AC40: 51.1 | AD40: 44.7 | AE40: 39.8 | AF40: 36.1 | AG40: 33.2 | AH40: 30.7 | AI40: 28.7 | AJ40: 27 | AK40: 25.6 | AL40: 24.4 | AM40: 23.3 | AN40: 22.4 | AO40: 21.5 | AP40: 20.8
A41: 50 | B41: 308 | C41: 157.1 | D41: 106.8 | E41: 81.7 | F41: 66.7 | G41: 56.7 | H41: 49.6 | I41: 44.2 | J41: 40.1 | K41: 36.8 | L41: 34.1 | M41: 31.9 | N41: 30 | O41: 28.5 | P41: 27.1 | Q41: 25.9 | R41: 24.9 | S41: 23.9 | W41: 50 | X41: 281.6 | Y41: 143.6 | Z41: 97.7 | AA41: 74.7 | AB41: 61 | AC41: 51.8 | AD41: 45.3 | AE41: 40.4 | AF41: 36.7 | AG41: 33.7 | AH41: 31.2 | AI41: 29.2 | AJ41: 27.5 | AK41: 26 | AL41: 24.8 | AM41: 23.7 | AN41: 22.7 | AO41: 21.9
A42: 51 | B42: 312 | C42: 159.1 | D42: 108.2 | E42: 82.8 | F42: 67.6 | G42: 57.5 | H42: 50.3 | I42: 44.9 | J42: 40.7 | K42: 37.4 | L42: 34.6 | M42: 32.4 | N42: 30.5 | O42: 28.9 | P42: 27.5 | Q42: 26.3 | R42: 25.3 | W42: 51 | X42: 285.3 | Y42: 145.6 | Z42: 99 | AA42: 75.7 | AB42: 61.8 | AC42: 52.6 | AD42: 46 | AE42: 41 | AF42: 37.2 | AG42: 34.2 | AH42: 31.7 | AI42: 29.6 | AJ42: 27.9 | AK42: 26.4 | AL42: 25.2 | AM42: 24.1 | AN42: 23.1
A43: 52 | B43: 315.9 | C43: 161.2 | D43: 109.7 | E43: 83.9 | F43: 68.5 | G43: 58.3 | H43: 51 | I43: 45.5 | J43: 41.3 | K43: 37.9 | L43: 35.2 | M43: 32.9 | N43: 31 | O43: 29.3 | P43: 27.9 | Q43: 26.7 | W43: 52 | X43: 289.1 | Y43: 147.5 | Z43: 100.3 | AA43: 76.8 | AB43: 62.7 | AC43: 53.3 | AD43: 46.6 | AE43: 41.6 | AF43: 37.8 | AG43: 34.7 | AH43: 32.2 | AI43: 30.1 | AJ43: 28.3 | AK43: 26.9 | AL43: 25.6 | AM43: 24.5
A44: 53 | B44: 319.9 | C44: 163.3 | D44: 111.1 | E44: 85 | F44: 69.4 | G44: 59.1 | H44: 51.7 | I44: 46.1 | J44: 41.9 | K44: 38.5 | L44: 35.7 | M44: 33.4 | N44: 31.4 | O44: 29.8 | P44: 28.4 | W44: 53 | X44: 292.9 | Y44: 149.5 | Z44: 101.7 | AA44: 77.9 | AB44: 63.6 | AC44: 54.1 | AD44: 47.3 | AE44: 42.3 | AF44: 38.3 | AG44: 35.2 | AH44: 32.7 | AI44: 30.6 | AJ44: 28.8 | AK44: 27.3 | AL44: 26
A45: 54 | B45: 323.9 | C45: 165.3 | D45: 112.5 | E45: 86.2 | F45: 70.4 | G45: 59.9 | H45: 52.4 | I45: 46.8 | J45: 42.5 | K45: 39 | L45: 36.2 | M45: 33.9 | N45: 31.9 | O45: 30.3 | W45: 54 | X45: 296.7 | Y45: 151.5 | Z45: 103.1 | AA45: 78.9 | AB45: 64.5 | AC45: 54.8 | AD45: 48 | AE45: 42.9 | AF45: 38.9 | AG45: 35.7 | AH45: 33.2 | AI45: 31 | AJ45: 29.2 | AK45: 27.8
A46: 55 | B46: 328 | C46: 167.5 | D46: 114 | E46: 87.3 | F46: 71.3 | G46: 60.7 | H46: 53.1 | I46: 47.5 | J46: 43.1 | K46: 39.6 | L46: 36.7 | M46: 34.4 | N46: 32.4 | W46: 55 | X46: 300.6 | Y46: 153.5 | Z46: 104.5 | AA46: 80 | AB46: 65.4 | AC46: 55.6 | AD46: 48.7 | AE46: 43.5 | AF46: 39.5 | AG46: 36.3 | AH46: 33.7 | AI46: 31.5 | AJ46: 29.7
A47: 56 | B47: 332.1 | C47: 169.6 | D47: 115.5 | E47: 88.5 | F47: 72.3 | G47: 61.5 | H47: 53.9 | I47: 48.1 | J47: 43.7 | K47: 40.2 | L47: 37.3 | M47: 34.9 | W47: 56 | X47: 304.6 | Y47: 155.6 | Z47: 105.9 | AA47: 81.1 | AB47: 66.3 | AC47: 56.4 | AD47: 49.4 | AE47: 44.2 | AF47: 40.1 | AG47: 36.8 | AH47: 34.2 | AI47: 32.1
A48: 57 | B48: 336.3 | C48: 171.8 | D48: 117 | E48: 89.6 | F48: 73.3 | G48: 62.4 | H48: 54.6 | I48: 48.8 | J48: 44.3 | K48: 40.8 | L48: 37.9 | W48: 57 | X48: 308.7 | Y48: 157.7 | Z48: 107.4 | AA48: 82.3 | AB48: 67.3 | AC48: 57.3 | AD48: 50.1 | AE48: 44.8 | AF48: 40.7 | AG48: 37.4 | AH48: 34.8
A49: 58 | B49: 340.6 | C49: 174 | D49: 118.5 | E49: 90.9 | F49: 74.3 | G49: 63.2 | H49: 55.4 | I49: 49.5 | J49: 45 | K49: 41.4 | W49: 58 | X49: 312.8 | Y49: 159.8 | Z49: 108.9 | AA49: 83.5 | AB49: 68.2 | AC49: 58.1 | AD49: 50.9 | AE49: 45.5 | AF49: 41.3 | AG49: 38.1
A50: 59 | B50: 345 | C50: 176.3 | D50: 120.1 | E50: 92.1 | F50: 75.3 | G50: 64.1 | H50: 56.2 | I50: 50.2 | J50: 45.7 | W50: 59 | X50: 317.2 | Y50: 162.1 | Z50: 110.5 | AA50: 84.7 | AB50: 69.2 | AC50: 59 | AD50: 51.7 | AE50: 46.2 | AF50: 42
A51: 60 | B51: 349.5 | C51: 178.7 | D51: 121.8 | E51: 93.4 | F51: 76.4 | G51: 65.1 | H51: 57 | I51: 51.1 | W51: 60 | X51: 321.6 | Y51: 164.4 | Z51: 112.1 | AA51: 85.9 | AB51: 70.3 | AC51: 59.9 | AD51: 52.5 | AE51: 47
A52: 61 | B52: 354.2 | C52: 181.1 | D52: 123.5 | E52: 94.7 | F52: 77.5 | G52: 66 | H52: 57.9 | W52: 61 | X52: 326.2 | Y52: 166.8 | Z52: 113.7 | AA52: 87.2 | AB52: 71.4 | AC52: 60.8 | AD52: 53.4
A53: 62 | B53: 359.1 | C53: 183.7 | D53: 125.2 | E53: 96.1 | F53: 78.6 | G53: 67.1 | W53: 62 | X53: 331.1 | Y53: 169.3 | Z53: 115.5 | AA53: 88.6 | AB53: 72.5 | AC53: 61.8
A54: 63 | B54: 364.2 | C54: 186.3 | D54: 127.1 | E54: 97.5 | F54: 79.9 | W54: 63 | X54: 336.1 | Y54: 171.9 | Z54: 117.3 | AA54: 90 | AB54: 73.7
A55: 64 | B55: 369.6 | C55: 189.1 | D55: 129 | E55: 99.1 | W55: 64 | X55: 341.4 | Y55: 174.7 | Z55: 119.2 | AA55: 91.5
A56: 65 | B56: 375.2 | C56: 192 | D56: 131.1 | W56: 65 | X56: 347 | Y56: 177.6 | Z56: 121.2
A57: 66 | B57: 381 | C57: 195.1 | W57: 66 | X57: 352.8 | Y57: 180.7
A58: 67 | B58: 387.1 | W58: 67 | X58: 358.9

Sheet ERF (hidden)
M1: Date Factors Issued to Client | N1: 2023-06-30
A2: TABLE ERF1_NHSSS_2015
A3: NHS SUPERANNUATION SCHEME SCOTLAND (2015): ACTUARIAL FACTORS
A4: BENEFITS PAYABLE TO THE MEMBER ON VOLUNTARY EARLY RETIREMENT (WITH ACTUARIAL REDUCTION)
A5: FACTORS APPLICABLE TO MAIN SCHEME PENSION AND ADDITIONAL PENSION
A6: PENSION FACTORS | P6: x-408
A7: Time to NPA: Monthsà Years â | B7: 0 | C7: 1 | D7: 2 | E7: 3 | F7: 4 | G7: 5 | H7: 6 | I7: 7 | J7: 8 | K7: 9 | L7: 10 | M7: 11
A8: 0 | B8: 1 | C8: 0.998 | D8: 0.993 | E8: 0.989 | F8: 0.984 | G8: 0.98 | H8: 0.976 | I8: 0.971 | J8: 0.967 | K8: 0.962 | L8: 0.958 | M8: 0.953
A9: 1 | B9: 0.949 | C9: 0.945 | D9: 0.941 | E9: 0.937 | F9: 0.933 | G9: 0.929 | H9: 0.924 | I9: 0.92 | J9: 0.916 | K9: 0.912 | L9: 0.908 | M9: 0.904
A10: 2 | B10: 0.9 | C10: 0.896 | D10: 0.893 | E10: 0.889 | F10: 0.885 | G10: 0.881 | H10: 0.878 | I10: 0.874 | J10: 0.87 | K10: 0.867 | L10: 0.863 | M10: 0.859
A11: 3 | B11: 0.855 | C11: 0.852 | D11: 0.848 | E11: 0.845 | F11: 0.842 | G11: 0.838 | H11: 0.835 | I11: 0.831 | J11: 0.828 | K11: 0.825 | L11: 0.821 | M11: 0.818
A12: 4 | B12: 0.814 | C12: 0.811 | D12: 0.808 | E12: 0.805 | F12: 0.802 | G12: 0.798 | H12: 0.795 | I12: 0.792 | J12: 0.789 | K12: 0.786 | L12: 0.783 | M12: 0.78
A13: 5 | B13: 0.776 | C13: 0.773 | D13: 0.77 | E13: 0.768 | F13: 0.765 | G13: 0.762 | H13: 0.759 | I13: 0.756 | J13: 0.753 | K13: 0.75 | L13: 0.747 | M13: 0.744
A14: 6 | B14: 0.741 | C14: 0.739 | D14: 0.736 | E14: 0.733 | F14: 0.73 | G14: 0.728 | H14: 0.725 | I14: 0.722 | J14: 0.72 | K14: 0.717 | L14: 0.714 | M14: 0.712
A15: 7 | B15: 0.709 | C15: 0.706 | D15: 0.704 | E15: 0.701 | F15: 0.699 | G15: 0.696 | H15: 0.694 | I15: 0.691 | J15: 0.689 | K15: 0.686 | L15: 0.684 | M15: 0.681
A16: 8 | B16: 0.679 | C16: 0.676 | D16: 0.674 | E16: 0.672 | F16: 0.669 | G16: 0.667 | H16: 0.665 | I16: 0.662 | J16: 0.66 | K16: 0.658 | L16: 0.655 | M16: 0.653
A17: 9 | B17: 0.651 | C17: 0.648 | D17: 0.646 | E17: 0.644 | F17: 0.642 | G17: 0.64 | H17: 0.638 | I17: 0.635 | J17: 0.633 | K17: 0.631 | L17: 0.629 | M17: 0.627
A18: 10 | B18: 0.625 | C18: 0.622 | D18: 0.62 | E18: 0.618 | F18: 0.616 | G18: 0.614 | H18: 0.612 | I18: 0.61 | J18: 0.608 | K18: 0.606 | L18: 0.604 | M18: 0.602
A19: 11 | B19: 0.6 | C19: 0.598 | D19: 0.596 | E19: 0.594 | F19: 0.592 | G19: 0.591 | H19: 0.589 | I19: 0.587 | J19: 0.585 | K19: 0.583 | L19: 0.581 | M19: 0.579
A20: 12 | B20: 0.577 | C20: 0.575 | D20: 0.574 | E20: 0.572 | F20: 0.57 | G20: 0.568 | H20: 0.566 | I20: 0.565 | J20: 0.563 | K20: 0.561 | L20: 0.559 | M20: 0.558
A21: 13 | B21: 0.531
A23: Notes: | B23: (1) NPA should be substituted for RRA where appropriate
B24: (2) AP should be pro-rated to take account of unpaid contributions at date of retirement. Any paid up AP entitlement should include PI to DOR
B25: (3) The appropriate factor is based on the period between DOR and NPA (or RRA) in years and months, rounded up to the next higher month.
